Workbook

Sheet DB
A1: 1 | B1: =A1+1 -> 2 | C1: =B1 -> 2 | D1: =B1 -> 2 | E1: =B1+1 -> 3 | F1: =E1 -> 3 | G1: =E1 -> 3 | H1: =G1+1 -> 4 | I1: =H1 -> 4 | J1: =H1 -> 4 | K1: =J1+1 -> 5 | L1: =K1 -> 5 | M1: =K1 -> 5 | N1: =M1+1 -> 6 | O1: =N1 -> 6 | P1: =N1 -> 6 | Q1: =P1+1 -> 7 | R1: =Q1 -> 7 | S1: =Q1 -> 7 | T1: =S1+1 -> 8 | U1: =T1 -> 8 | V1: =T1 -> 8 | W1: =V1+1 -> 9 | X1: =W1 -> 9 | Y1: =W1 -> 9 | Z1: =Y1+1 -> 10 | AA1: =Z1 -> 10 | AB1: =Z1 -> 10 | AC1: =AB1+1 -> 11 | AD1: =AC1 -> 11 | AE1: =AC1 -> 11 | AF1: =AE1+1 -> 12 | AG1: =AF1 -> 12 | AH1: =AF1 -> 12 | AI1: =AH1+1 -> 13 | AJ1: =AI1 -> 13 | AK1: =AI1 -> 13 | AL1: =AK1+1 -> 14 | AM1: =AL1 -> 14 | AN1: =AL1 -> 14 | AO1: =AN1+1 -> 15 | AP1: =AO1 -> 15 | AQ1: =AO1 -> 15 | AR1: =AQ1+1 -> 16 | AS1: =AR1 -> 16 | AT1: =AR1 -> 16 | AU1: =AT1+1 -> 17 | AV1: =AU1 -> 17 | AW1: =AU1 -> 17 | AX1: =AW1+1 -> 18 | AY1: =AX1 -> 18 | AZ1: =AX1 -> 18 | BA1: =AZ1+1 -> 19 | BB1: =BA1 -> 19 | BC1: =BA1 -> 19 | BD1: =BC1+1 -> 20 | BE1: =BD1 -> 20 | BF1: =BD1 -> 20 | BG1: =BF1+1 -> 21 | BH1: =BG1 -> 21 | BI1: =BG1 -> 21 | BJ1: =BI1+1 -> 22 | BK1: =BJ1 -> 22 | BL1: =BJ1 -> 22 | BM1: =BL1+1 -> 23 | BN1: =BM1 -> 23 | BO1: =BM1 -> 23 | BP1: =BO1+1 -> 24 | BQ1: =BP1 -> 24 | BR1: =BP1 -> 24 | BS1: =BR1+1 -> 25 | BT1: =BS1 -> 25 | BU1: =BS1 -> 25 | BV1: =BU1+1 -> 26 | BW1: =BV1 -> 26 | BX1: =BV1 -> 26 | BY1: =BX1+1 -> 27 | BZ1: =BY1 -> 27 | CA1: =BY1 -> 27 | CB1: =CA1+1 -> 28 | CC1: =CB1 -> 28 | CD1: =CB1 -> 28 | CE1: =CD1+1 -> 29 | CF1: =CE1 -> 29 | CG1: =CE1 -> 29 | CH1: =CG1+1 -> 30 | CI1: =CH1 -> 30 | CJ1: =CH1 -> 30 | CK1: =CJ1+1 -> 31 | CL1: =CK1 -> 31 | CM1: =CK1 -> 31 | CN1: =CM1+1 -> 32 | CO1: =CN1 -> 32 | CP1: =CN1 -> 32 | CQ1: =CP1+1 -> 33 | CR1: =CQ1 -> 33 | CS1: =CQ1 -> 33 | CT1: =CS1+1 -> 34 | CU1: =CT1 -> 34 | CV1: =CT1 -> 34 | CW1: =CV1+1 -> 35 | CX1: =CW1 -> 35 | CY1: =CW1 -> 35 | CZ1: =CY1+1 -> 36 | DA1: =CZ1 -> 36 | DB1: =CZ1 -> 36 | DC1: =DB1+1 -> 37 | DD1: =DC1 -> 37 | DE1: =DC1 -> 37 | DF1: =DE1+1 -> 38 | DG1: =DF1 -> 38 | DH1: =DF1 -> 38 | DI1: =DH1+1 -> 39 | DJ1: =DI1 -> 39 | DK1: =DI1 -> 39 | DL1: =DK1+1 -> 40 | DM1: =DL1 -> 40 | DN1: =DL1 -> 40 | DO1: =DN1+1 -> 41 | DP1: =DO1 -> 41 | DQ1: =DO1 -> 41 | DR1: =DQ1+1 -> 42 | DS1: =DR1 -> 42 | DT1: =DR1 -> 42 | DU1: =DT1+1 -> 43 | DV1: =DU1 -> 43 | DW1: =DU1 -> 43 | DX1: =DW1+1 -> 44 | DY1: =DX1 -> 44 | DZ1: =DX1 -> 44 | EA1: =DZ1+1 -> 45 | EB1: =EA1 -> 45 | EC1: =EA1 -> 45 | ED1: =EC1+1 -> 46 | EE1: =ED1 -> 46 | EF1: =ED1 -> 46 | EG1: =EF1+1 -> 47 | EH1: =EG1 -> 47 | EI1: =EG1 -> 47 | EJ1: =EI1+1 -> 48 | EK1: =EJ1 -> 48 | EL1: =EJ1 -> 48 | EM1: =EL1+1 -> 49 | EN1: =EM1 -> 49 | EO1: =EM1 -> 49 | EP1: =EO1+1 -> 50 | EQ1: =EP1 -> 50 | ER1: =EP1 -> 50 | ES1: =ER1+1 -> 51 | ET1: =ES1 -> 51 | EU1: =ES1 -> 51 | EV1: =EU1+1 -> 52 | EW1: =EV1 -> 52 | EX1: =EV1 -> 52 | EY1: =EX1+1 -> 53 | EZ1: =EY1 -> 53 | FA1: =EY1 -> 53 | FB1: =FA1+1 -> 54 | FC1: =FB1 -> 54 | FD1: =FB1 -> 54 | FE1: =FD1+1 -> 55 | FF1: =FE1 -> 55 | FG1: =FE1 -> 55 | FH1: =FG1+1 -> 56 | FI1: =FH1 -> 56 | FJ1: =FH1 -> 56 | FK1: =FJ1+1 -> 57 | FL1: =FK1 -> 57 | FM1: =FK1 -> 57 | FN1: =FM1+1 -> 58 | FO1: =FN1 -> 58 | FP1: =FN1 -> 58 | FQ1: =FP1+1 -> 59 | FR1: =FQ1 -> 59 | FS1: =FQ1 -> 59 | FT1: =FS1+1 -> 60 | FU1: =FT1 -> 60 | FV1: =FT1 -> 60 | FW1: =FV1+1 -> 61 | FX1: =FW1 -> 61 | FY1: =FW1 -> 61 | FZ1: =FY1+1 -> 62 | GA1: =FZ1 -> 62 | GB1: =FZ1 -> 62 | GC1: =GB1+1 -> 63 | GD1: =GC1 -> 63 | GE1: =GC1 -> 63 | GF1: =GE1+1 -> 64 | GG1: =GF1 -> 64 | GH1: =GF1 -> 64 | GI1: =GH1+1 -> 65 | GJ1: =GI1 -> 65 | GK1: =GI1 -> 65 | GL1: =GK1+1 -> 66 | GM1: =GL1 -> 66 | GN1: =GL1 -> 66 | GO1: =GN1+1 -> 67 | GP1: =GO1 -> 67 | GQ1: =GO1 -> 67 | GR1: =GQ1+1 -> 68 | GS1: =GR1 -> 68 | GT1: =GR1 -> 68 | GU1: =GT1+1 -> 69 | GV1: =GU1 -> 69 | GW1: =GU1 -> 69 | GX1: =GW1+1 -> 70 | GY1: =GX1 -> 70 | GZ1: =GX1 -> 70 | HA1: =GZ1+1 -> 71 | HB1: =HA1 -> 71 | HC1: =HA1 -> 71 | HD1: =HC1+1 -> 72 | HE1: =HD1 -> 72 | HF1: =HD1 -> 72 | HG1: =HF1+1 -> 73 | HH1: =HG1 -> 73 | HI1: =HG1 -> 73 | HJ1: =HI1+1 -> 74 | HK1: =HJ1 -> 74 | HL1: =HJ1 -> 74 | HM1: =HL1+1 -> 75 | HN1: =HM1 -> 75 | HO1: =HM1 -> 75 | HP1: =HO1+1 -> 76 | HQ1: =HP1 -> 76 | HR1: =HP1 -> 76 | HS1: =HR1+1 -> 77 | HT1: =HS1 -> 77 | HU1: =HS1 -> 77 | HV1: =HU1+1 -> 78 | HW1: =HV1 -> 78 | HX1: =HV1 -> 78 | HY1: =HX1+1 -> 79 | HZ1: =HY1 -> 79 | IA1: =HY1 -> 79 | IB1: =IA1+1 -> 80 | IC1: =IB1 -> 80 | ID1: =IB1 -> 80 | IE1: =ID1+1 -> 81 | IF1: =IE1 -> 81 | IG1: =IE1 -> 81 | IH1: =IG1+1 -> 82 | II1: =IH1 -> 82 | IJ1: =IH1 -> 82 | IK1: =IJ1+1 -> 83 | IL1: =IK1 -> 83 | IM1: =IK1 -> 83 | IN1: =IM1+1 -> 84 | IO1: =IN1 -> 84 | IP1: =IN1 -> 84 | IQ1: =IP1+1 -> 85 | IR1: =IQ1 -> 85 | IS1: =IQ1 -> 85 | IT1: =IS1+1 -> 86 | IU1: =IT1 -> 86 | IV1: =IT1 -> 86 | IW1: =IV1+1 -> 87 | IX1: =IW1 -> 87 | IY1: =IW1 -> 87 | IZ1: =IY1+1 -> 88 | JA1: =IZ1 -> 88 | JB1: =IZ1 -> 88 | JC1: =JB1+1 -> 89 | JD1: =JC1 -> 89 | JE1: =JC1 -> 89 | JF1: =JE1+1 -> 90 | JG1: =JF1 -> 90 | JH1: =JF1 -> 90 | JI1: =JH1+1 -> 91 | JJ1: =JI1 -> 91 | JK1: =JI1 -> 91 | JL1: =JK1+1 -> 92 | JM1: =JL1 -> 92 | JN1: =JL1 -> 92 | JO1: =JN1+1 -> 93 | JP1: =JO1 -> 93 | JQ1: =JO1 -> 93 | JR1: =JQ1+1 -> 94 | JS1: =JR1 -> 94 | JT1: =JR1 -> 94 | JU1: =JT1+1 -> 95 | JV1: =JU1 -> 95 | JW1: =JU1 -> 95 | JX1: =JW1+1 -> 96 | JY1: =JX1 -> 96 | JZ1: =JX1 -> 96 | KA1: =JZ1+1 -> 97 | KB1: =KA1 -> 97 | KC1: =KA1 -> 97 | KD1: =KC1+1 -> 98 | KE1: =KD1 -> 98 | KF1: =KD1 -> 98 | KG1: =KF1+1 -> 99 | KH1: =KG1 -> 99 | KI1: =KG1 -> 99 | KJ1: =KI1+1 -> 100 | KK1: =KJ1 -> 100 | KL1: =KJ1 -> 100 | KM1: =KL1+1 -> 101 | KN1: =KM1 -> 101 | KO1: =KM1 -> 101 | KP1: =KO1+1 -> 102 | KQ1: =KP1 -> 102 | KR1: =KP1 -> 102 | KS1: =KR1+1 -> 103 | KT1: =KS1 -> 103 | KU1: =KS1 -> 103 | KV1: =KU1+1 -> 104 | KW1: =KV1 -> 104 | KX1: =KV1 -> 104 | KY1: =KX1+1 -> 105 | KZ1: =KY1 -> 105 | LA1: =KY1 -> 105 | LB1: =LA1+1 -> 106 | LC1: =LB1 -> 106 | LD1: =LB1 -> 106 | LE1: =LD1+1 -> 107 | LF1: =LE1 -> 107 | LG1: =LE1 -> 107 | LH1: =LG1+1 -> 108 | LI1: =LH1 -> 108 | LJ1: =LH1 -> 108 | LK1: =LJ1+1 -> 109 | LL1: =LK1 -> 109 | LM1: =LK1 -> 109 | LN1: =LM1+1 -> 110 | LO1: =LN1 -> 110 | LP1: =LN1 -> 110 | LQ1: =LP1+1 -> 111 | LR1: =LQ1 -> 111 | LS1: =LQ1 -> 111 | LT1: =LS1+1 -> 112 | LU1: =LT1 -> 112 | LV1: =LT1 -> 112 | LW1: =LV1+1 -> 113 | LX1: =LW1 -> 113 | LY1: =LW1 -> 113 | LZ1: =LY1+1 -> 114 | MA1: =LZ1 -> 114 | MB1: =LZ1 -> 114 | MC1: =MB1+1 -> 115 | MD1: =MC1 -> 115 | ME1: =MC1 -> 115 | MF1: =ME1+1 -> 116 | MG1: =MF1 -> 116 | MH1: =MF1 -> 116 | MI1: =MH1+1 -> 117 | MJ1: =MI1 -> 117 | MK1: =MI1 -> 117 | ML1: =MK1+1 -> 118 | MM1: =ML1 -> 118 | MN1: =ML1 -> 118 | MO1: =MN1+1 -> 119 | MP1: =MO1 -> 119 | MQ1: =MO1 -> 119 | MR1: =MQ1+1 -> 120 | MS1: =MR1 -> 120 | MT1: =MR1 -> 120 | MU1: =MT1+1 -> 121 | MV1: =MU1 -> 121 | MW1: =MU1 -> 121 | MX1: =MW1+1 -> 122 | MY1: =MX1 -> 122 | MZ1: =MX1 -> 122 | NA1: =MZ1+1 -> 123 | NB1: =NA1 -> 123 | NC1: =NA1 -> 123 | ND1: =NC1+1 -> 124 | NE1: =ND1 -> 124 | NF1: =ND1 -> 124 | NG1: =NF1+1 -> 125 | NH1: =NG1 -> 125 | NI1: =NG1 -> 125 | NJ1: =NI1+1 -> 126 | NK1: =NJ1 -> 126 | NL1: =NJ1 -> 126 | NM1: =NL1+1 -> 127 | NN1: =NM1 -> 127 | NO1: =NM1 -> 127 | NP1: =NO1+1 -> 128 | NQ1: =NP1 -> 128 | NR1: =NP1 -> 128 | NS1: =NR1+1 -> 129 | NT1: =NS1 -> 129 | NU1: =NS1 -> 129 | NV1: =NU1+1 -> 130 | NW1: =NV1 -> 130 | NX1: =NV1 -> 130 | NY1: =NX1+1 -> 131 | NZ1: =NY1 -> 131 | OA1: =NY1 -> 131 | OB1: =OA1+1 -> 132 | OC1: =OB1 -> 132 | OD1: =OB1 -> 132 | OE1: =OD1+1 -> 133 | OF1: =OE1 -> 133 | OG1: =OE1 -> 133 | OH1: =OG1+1 -> 134 | OI1: =OH1 -> 134 | OJ1: =OH1 -> 134 | OK1: =OJ1+1 -> 135 | OL1: =OK1 -> 135 | OM1: =OK1 -> 135 | ON1: =OM1+1 -> 136 | OO1: =ON1 -> 136 | OP1: =ON1 -> 136 | OQ1: =OP1+1 -> 137 | OR1: =OQ1 -> 137 | OS1: =OQ1 -> 137 | OT1: =OS1+1 -> 138 | OU1: =OT1 -> 138 | OV1: =OT1 -> 138 | OW1: =OV1+1 -> 139 | OX1: =OW1 -> 139 | OY1: =OW1 -> 139 | OZ1: =OY1+1 -> 140 | PA1: =OZ1 -> 140 | PB1: =OZ1 -> 140 | PC1: =PB1+1 -> 141 | PD1: =PC1 -> 141 | PE1: =PC1 -> 141 | PF1: =PE1+1 -> 142 | PG1: =PF1 -> 142 | PH1: =PF1 -> 142 | PI1: =PH1+1 -> 143 | PJ1: =PI1 -> 143 | PK1: =PI1 -> 143 | PL1: =PK1+1 -> 144 | PM1: =PL1 -> 144 | PN1: =PL1 -> 144 | PO1: =PN1+1 -> 145 | PP1: =PO1 -> 145 | PQ1: =PO1 -> 145 | PR1: =PQ1+1 -> 146 | PS1: =PR1 -> 146 | PT1: =PR1 -> 146 | PU1: =PT1+1 -> 147 | PV1: =PU1 -> 147 | PW1: =PU1 -> 147 | PX1: =PW1+1 -> 148 | PY1: =PX1 -> 148 | PZ1: =PX1 -> 148 | QA1: =PZ1+1 -> 149 | QB1: =QA1 -> 149 | QC1: =QA1 -> 149 | QD1: =QC1+1 -> 150 | QE1: =QD1 -> 150 | QF1: =QD1 -> 150 | QG1: =QF1+1 -> 151 | QH1: =QG1 -> 151 | QI1: =QG1 -> 151 | QJ1: =QI1+1 -> 152 | QK1: =QJ1 -> 152 | QL1: =QJ1 -> 152 | QM1: =QL1+1 -> 153 | QN1: =QM1 -> 153 | QO1: =QM1 -> 153 | QP1: =QO1+1 -> 154 | QQ1: =QP1 -> 154 | QR1: =QP1 -> 154 | QS1: =QR1+1 -> 155 | QT1: =QS1 -> 155 | QU1: =QS1 -> 155 | QV1: =QU1+1 -> 156 | QW1: =QV1 -> 156 | QX1: =QV1 -> 156 | QY1: =QX1+1 -> 157 | QZ1: =QY1 -> 157 | RA1: =QY1 -> 157 | RB1: =RA1+1 -> 158 | RC1: =RB1 -> 158 | RD1: =RB1 -> 158 | RE1: =RD1+1 -> 159 | RF1: =RE1 -> 159 | RG1: =RE1 -> 159 | RH1: =RG1+1 -> 160 | RI1: =RH1 -> 160 | RJ1: =RH1 -> 160 | RK1: =RJ1+1 -> 161 | RL1: =RK1 -> 161 | RM1: =RK1 -> 161 | RN1: =RM1+1 -> 162 | RO1: =RN1 -> 162 | RP1: =RN1 -> 162 | RQ1: =RP1+1 -> 163 | RR1: =RQ1 -> 163 | RS1: =RQ1 -> 163 | RT1: =RS1+1 -> 164 | RU1: =RT1 -> 164 | RV1: =RT1 -> 164 | RW1: =RV1+1 -> 165 | RX1: =RW1 -> 165 | RY1: =RW1 -> 165 | RZ1: =RY1+1 -> 166 | SA1: =RZ1 -> 166 | SB1: =RZ1 -> 166 | SC1: =SB1+1 -> 167 | SD1: =SC1 -> 167 | SE1: =SC1 -> 167 | SF1: =SE1+1 -> 168 | SG1: =SF1 -> 168 | SH1: =SF1 -> 168 | SI1: =SH1+1 -> 169 | SJ1: =SI1 -> 169 | SK1: =SI1 -> 169 | SL1: =SK1+1 -> 170 | SM1: =SL1 -> 170 | SN1: =SL1 -> 170 | SO1: =SN1+1 -> 171 | SP1: =SO1 -> 171 | SQ1: =SO1 -> 171 | SR1: =SQ1+1 -> 172 | SS1: =SR1 -> 172 | ST1: =SR1 -> 172 | SU1: =ST1+1 -> 173 | SV1: =SU1 -> 173 | SW1: =SU1 -> 173 | SX1: =SW1+1 -> 174 | SY1: =SX1 -> 174 | SZ1: =SX1 -> 174 | TA1: =SZ1+1 -> 175 | TB1: =TA1 -> 175 | TC1: =TA1 -> 175 | TD1: =TC1+1 -> 176 | TE1: =TD1 -> 176 | TF1: =TD1 -> 176 | TG1: =TF1+1 -> 177 | TH1: =TG1 -> 177 | TI1: =TG1 -> 177 | TJ1: =TI1+1 -> 178 | TK1: =TJ1 -> 178 | TL1: =TJ1 -> 178 | TM1: =TL1+1 -> 179 | TN1: =TM1 -> 179 | TO1: =TM1 -> 179 | TP1: =TO1+1 -> 180 | TQ1: =TP1 -> 180 | TR1: =TP1 -> 180 | TS1: =TR1+1 -> 181 | TT1: =TS1 -> 181 | TU1: =TS1 -> 181
A2: 1 | B2: =A2+1 -> 2 | C2: =B2+1 -> 3 | D2: 4 | E2: 5 | F2: 6 | G2: 7 | H2: 8 | I2: 9 | J2: 10 | K2: 11 | L2: 12 | M2: 13 | N2: 14 | O2: 15 | P2: 16 | Q2: 17 | R2: 18 | S2: 19 | T2: 20 | U2: 21 | V2: 22 | W2: 23 | X2: 24 | Y2: 25 | Z2: 26 | AA2: 27 | AB2: 28 | AC2: 29 | AD2: 30 | AE2: 31 | AF2: 32 | AG2: 33 | AH2: 34 | AI2: 35 | AJ2: 36 | AK2: 37 | AL2: 38 | AM2: 39 | AN2: 40 | AO2: 41 | AP2: 42 | AQ2: 43 | AR2: 44 | AS2: 45 | AT2: 46 | AU2: 47 | AV2: 48 | AW2: 49 | AX2: 50 | AY2: 51 | AZ2: 52 | BA2: 53 | BB2: 54 | BC2: 55 | BD2: 56 | BE2: 57 | BF2: 58 | BG2: 59 | BH2: 60 | BI2: 61 | BJ2: 62 | BK2: 63 | BL2: 64 | BM2: 65 | BN2: 66 | BO2: =BN2+1 -> 67 | BP2: 68 | BQ2: 69 | BR2: 70 | BS2: 71 | BT2: 72 | BU2: 73 | BV2: 74 | BW2: 75 | BX2: 76 | BY2: 77 | BZ2: 78 | CA2: 79 | CB2: 80 | CC2: 81 | CD2: 82 | CE2: =CD2+1 -> 83 | CF2: 84 | CG2: 85 | CH2: 86 | CI2: 87 | CJ2: 88 | CK2: 89 | CL2: 90 | CM2: 91 | CN2: 92 | CO2: 93 | CP2: 94 | CQ2: 95 | CR2: 96 | CS2: 97 | CT2: 98 | CU2: =CT2+1 -> 99 | CV2: 100 | CW2: 101 | CX2: 102 | CY2: 103 | CZ2: 104 | DA2: 105 | DB2: 106 | DC2: 107 | DD2: 108 | DE2: 109 | DF2: 110 | DG2: 111 | DH2: 112 | DI2: 113 | DJ2: 114 | DK2: =DJ2+1 -> 115 | DL2: 116 | DM2: 117 | DN2: 118 | DO2: 119 | DP2: 120 | DQ2: 121 | DR2: 122 | DS2: 123 | DT2: 124 | DU2: 125 | DV2: 126 | DW2: 127 | DX2: 128 | DY2: 129 | DZ2: 130 | EA2: =DZ2+1 -> 131 | EB2: 132 | EC2: 133 | ED2: 134 | EE2: 135 | EF2: 136 | EG2: 137 | EH2: 138 | EI2: 139 | EJ2: 140 | EK2: 141 | EL2: 142 | EM2: 143 | EN2: 144 | EO2: 145 | EP2: 146 | EQ2: =EP2+1 -> 147 | ER2: 148 | ES2: 149 | ET2: 150 | EU2: 151 | EV2: 152 | EW2: 153 | EX2: 154 | EY2: 155 | EZ2: 156 | FA2: 157 | FB2: 158 | FC2: 159 | FD2: 160 | FE2: 161 | FF2: 162 | FG2: =FF2+1 -> 163 | FH2: 164 | FI2: 165 | FJ2: 166 | FK2: 167 | FL2: 168 | FM2: 169 | FN2: 170 | FO2: 171 | FP2: 172 | FQ2: =FP2+1 -> 173 | FR2: =FQ2+1 -> 174 | FS2: =FR2+1 -> 175 | FT2: =FS2+1 -> 176 | FU2: =FT2+1 -> 177 | FV2: =FU2+1 -> 178 | FW2: =FV2+1 -> 179 | FX2: =FW2+1 -> 180 | FY2: =FX2+1 -> 181 | FZ2: =FY2+1 -> 182 | GA2: =FZ2+1 -> 183 | GB2: =GA2+1 -> 184 | GC2: =GB2+1 -> 185 | GD2: =GC2+1 -> 186 | GE2: =GD2+1 -> 187 | GF2: =GE2+1 -> 188 | GG2: =GF2+1 -> 189 | GH2: =GG2+1 -> 190 | GI2: =GH2+1 -> 191 | GJ2: =GI2+1 -> 192 | GK2: =GJ2+1 -> 193 | GL2: =GK2+1 -> 194 | GM2: =GL2+1 -> 195 | GN2: =GM2+1 -> 196 | GO2: =GN2+1 -> 197 | GP2: =GO2+1 -> 198 | GQ2: =GP2+1 -> 199 | GR2: =GQ2+1 -> 200 | GS2: =GR2+1 -> 201 | GT2: =GS2+1 -> 202 | GU2: =GT2+1 -> 203 | GV2: =GU2+1 -> 204 | GW2: =GV2+1 -> 205 | GX2: =GW2+1 -> 206 | GY2: =GX2+1 -> 207 | GZ2: =GY2+1 -> 208 | HA2: =GZ2+1 -> 209 | HB2: =HA2+1 -> 210 | HC2: =HB2+1 -> 211 | HD2: =HC2+1 -> 212 | HE2: =HD2+1 -> 213 | HF2: =HE2+1 -> 214 | HG2: =HF2+1 -> 215 | HH2: =HG2+1 -> 216 | HI2: =HH2+1 -> 217 | HJ2: =HI2+1 -> 218 | HK2: =HJ2+1 -> 219 | HL2: =HK2+1 -> 220 | HM2: =HL2+1 -> 221 | HN2: =HM2+1 -> 222 | HO2: =HN2+1 -> 223 | HP2: =HO2+1 -> 224 | HQ2: =HP2+1 -> 225 | HR2: =HQ2+1 -> 226 | HS2: =HR2+1 -> 227 | HT2: =HS2+1 -> 228 | HU2: =HT2+1 -> 229 | HV2: =HU2+1 -> 230 | HW2: =HV2+1 -> 231 | HX2: =HW2+1 -> 232 | HY2: =HX2+1 -> 233 | HZ2: =HY2+1 -> 234 | IA2: =HZ2+1 -> 235 | IB2: =IA2+1 -> 236 | IC2: =IB2+1 -> 237 | ID2: =IC2+1 -> 238 | IE2: =ID2+1 -> 239 | IF2: =IE2+1 -> 240 | IG2: =IF2+1 -> 241 | IH2: =IG2+1 -> 242 | II2: =IH2+1 -> 243 | IJ2: =II2+1 -> 244 | IK2: =IJ2+1 -> 245 | IL2: =IK2+1 -> 246 | IM2: =IL2+1 -> 247 | IN2: =IM2+1 -> 248 | IO2: =IN2+1 -> 249 | IP2: =IO2+1 -> 250 | IQ2: =IP2+1 -> 251 | IR2: =IQ2+1 -> 252 | IS2: =IR2+1 -> 253 | IT2: =IS2+1 -> 254 | IU2: =IT2+1 -> 255 | IV2: =IU2+1 -> 256 | IW2: =IV2+1 -> 257 | IX2: =IW2+1 -> 258 | IY2: =IX2+1 -> 259 | IZ2: =IY2+1 -> 260 | JA2: =IZ2+1 -> 261 | JB2: =JA2+1 -> 262 | JC2: =JB2+1 -> 263 | JD2: =JC2+1 -> 264 | JE2: =JD2+1 -> 265 | JF2: =JE2+1 -> 266 | JG2: =JF2+1 -> 267 | JH2: =JG2+1 -> 268 | JI2: =JH2+1 -> 269 | JJ2: =JI2+1 -> 270 | JK2: =JJ2+1 -> 271 | JL2: =JK2+1 -> 272 | JM2: =JL2+1 -> 273 | JN2: =JM2+1 -> 274 | JO2: =JN2+1 -> 275 | JP2: =JO2+1 -> 276 | JQ2: =JP2+1 -> 277 | JR2: =JQ2+1 -> 278 | JS2: =JR2+1 -> 279 | JT2: =JS2+1 -> 280 | JU2: =JT2+1 -> 281 | JV2: =JU2+1 -> 282 | JW2: =JV2+1 -> 283 | JX2: =JW2+1 -> 284 | JY2: =JX2+1 -> 285 | JZ2: =JY2+1 -> 286 | KA2: =JZ2+1 -> 287 | KB2: =KA2+1 -> 288 | KC2: =KB2+1 -> 289 | KD2: =KC2+1 -> 290 | KE2: =KD2+1 -> 291 | KF2: =KE2+1 -> 292 | KG2: =KF2+1 -> 293 | KH2: =KG2+1 -> 294 | KI2: =KH2+1 -> 295 | KJ2: =KI2+1 -> 296 | KK2: =KJ2+1 -> 297 | KL2: =KK2+1 -> 298 | KM2: =KL2+1 -> 299 | KN2: =KM2+1 -> 300 | KO2: =KN2+1 -> 301 | KP2: =KO2+1 -> 302 | KQ2: =KP2+1 -> 303 | KR2: =KQ2+1 -> 304 | KS2: =KR2+1 -> 305 | KT2: =KS2+1 -> 306 | KU2: =KT2+1 -> 307 | KV2: =KU2+1 -> 308 | KW2: =KV2+1 -> 309 | KX2: =KW2+1 -> 310 | KY2: =KX2+1 -> 311 | KZ2: =KY2+1 -> 312 | LA2: =KZ2+1 -> 313 | LB2: =LA2+1 -> 314 | LC2: =LB2+1 -> 315 | LD2: =LC2+1 -> 316 | LE2: =LD2+1 -> 317 | LF2: =LE2+1 -> 318 | LG2: =LF2+1 -> 319 | LH2: =LG2+1 -> 320 | LI2: =LH2+1 -> 321 | LJ2: =LI2+1 -> 322 | LK2: =LJ2+1 -> 323 | LL2: =LK2+1 -> 324 | LM2: =LL2+1 -> 325 | LN2: =LM2+1 -> 326 | LO2: =LN2+1 -> 327 | LP2: =LO2+1 -> 328 | LQ2: =LP2+1 -> 329 | LR2: =LQ2+1 -> 330 | LS2: =LR2+1 -> 331 | LT2: =LS2+1 -> 332 | LU2: =LT2+1 -> 333 | LV2: =LU2+1 -> 334 | LW2: =LV2+1 -> 335 | LX2: =LW2+1 -> 336 | LY2: =LX2+1 -> 337 | LZ2: =LY2+1 -> 338 | MA2: =LZ2+1 -> 339 | MB2: =MA2+1 -> 340 | MC2: =MB2+1 -> 341 | MD2: =MC2+1 -> 342 | ME2: =MD2+1 -> 343 | MF2: =ME2+1 -> 344 | MG2: =MF2+1 -> 345 | MH2: =MG2+1 -> 346 | MI2: =MH2+1 -> 347 | MJ2: =MI2+1 -> 348 | MK2: =MJ2+1 -> 349 | ML2: =MK2+1 -> 350 | MM2: =ML2+1 -> 351 | MN2: =MM2+1 -> 352 | MO2: =MN2+1 -> 353 | MP2: =MO2+1 -> 354 | MQ2: =MP2+1 -> 355 | MR2: =MQ2+1 -> 356 | MS2: =MR2+1 -> 357 | MT2: =MS2+1 -> 358 | MU2: =MT2+1 -> 359 | MV2: =MU2+1 -> 360 | MW2: =MV2+1 -> 361 | MX2: =MW2+1 -> 362 | MY2: =MX2+1 -> 363 | MZ2: =MY2+1 -> 364 | NA2: =MZ2+1 -> 365 | NB2: =NA2+1 -> 366 | NC2: =NB2+1 -> 367 | ND2: =NC2+1 -> 368 | NE2: =ND2+1 -> 369 | NF2: =NE2+1 -> 370 | NG2: =NF2+1 -> 371 | NH2: =NG2+1 -> 372 | NI2: =NH2+1 -> 373 | NJ2: =NI2+1 -> 374 | NK2: =NJ2+1 -> 375 | NL2: =NK2+1 -> 376 | NM2: =NL2+1 -> 377 | NN2: =NM2+1 -> 378 | NO2: =NN2+1 -> 379 | NP2: =NO2+1 -> 380 | NQ2: =NP2+1 -> 381 | NR2: =NQ2+1 -> 382 | NS2: =NR2+1 -> 383 | NT2: =NS2+1 -> 384 | NU2: =NT2+1 -> 385 | NV2: =NU2+1 -> 386 | NW2: =NV2+1 -> 387 | NX2: =NW2+1 -> 388 | NY2: =NX2+1 -> 389 | NZ2: =NY2+1 -> 390 | OA2: =NZ2+1 -> 391 | OB2: =OA2+1 -> 392 | OC2: =OB2+1 -> 393 | OD2: =OC2+1 -> 394 | OE2: =OD2+1 -> 395 | OF2: =OE2+1 -> 396 | OG2: =OF2+1 -> 397 | OH2: =OG2+1 -> 398 | OI2: =OH2+1 -> 399 | OJ2: =OI2+1 -> 400 | OK2: =OJ2+1 -> 401 | OL2: =OK2+1 -> 402 | OM2: =OL2+1 -> 403 | ON2: =OM2+1 -> 404 | OO2: =ON2+1 -> 405 | OP2: =OO2+1 -> 406 | OQ2: =OP2+1 -> 407 | OR2: =OQ2+1 -> 408 | OS2: =OR2+1 -> 409 | OT2: =OS2+1 -> 410 | OU2: =OT2+1 -> 411 | OV2: =OU2+1 -> 412 | OW2: =OV2+1 -> 413 | OX2: =OW2+1 -> 414 | OY2: =OX2+1 -> 415 | OZ2: =OY2+1 -> 416 | PA2: =OZ2+1 -> 417 | PB2: =PA2+1 -> 418 | PC2: =PB2+1 -> 419 | PD2: =PC2+1 -> 420 | PE2: =PD2+1 -> 421 | PF2: =PE2+1 -> 422 | PG2: =PF2+1 -> 423 | PH2: =PG2+1 -> 424 | PI2: =PH2+1 -> 425 | PJ2: =PI2+1 -> 426 | PK2: =PJ2+1 -> 427 | PL2: =PK2+1 -> 428 | PM2: =PL2+1 -> 429 | PN2: =PM2+1 -> 430 | PO2: =PN2+1 -> 431 | PP2: =PO2+1 -> 432 | PQ2: =PP2+1 -> 433 | PR2: =PQ2+1 -> 434 | PS2: =PR2+1 -> 435 | PT2: =PS2+1 -> 436 | PU2: =PT2+1 -> 437 | PV2: =PU2+1 -> 438 | PW2: =PV2+1 -> 439 | PX2: =PW2+1 -> 440 | PY2: =PX2+1 -> 441 | PZ2: =PY2+1 -> 442 | QA2: =PZ2+1 -> 443 | QB2: =QA2+1 -> 444 | QC2: =QB2+1 -> 445 | QD2: =QC2+1 -> 446 | QE2: =QD2+1 -> 447 | QF2: =QE2+1 -> 448 | QG2: =QF2+1 -> 449 | QH2: =QG2+1 -> 450 | QI2: =QH2+1 -> 451 | QJ2: =QI2+1 -> 452 | QK2: =QJ2+1 -> 453 | QL2: =QK2+1 -> 454 | QM2: =QL2+1 -> 455 | QN2: =QM2+1 -> 456 | QO2: =QN2+1 -> 457 | QP2: =QO2+1 -> 458 | QQ2: =QP2+1 -> 459 | QR2: =QQ2+1 -> 460 | QS2: =QR2+1 -> 461 | QT2: =QS2+1 -> 462 | QU2: =QT2+1 -> 463 | QV2: =QU2+1 -> 464 | QW2: =QV2+1 -> 465 | QX2: =QW2+1 -> 466 | QY2: =QX2+1 -> 467 | QZ2: =QY2+1 -> 468 | RA2: =QZ2+1 -> 469 | RB2: =RA2+1 -> 470 | RC2: =RB2+1 -> 471 | RD2: =RC2+1 -> 472 | RE2: =RD2+1 -> 473 | RF2: =RE2+1 -> 474 | RG2: =RF2+1 -> 475 | RH2: =RG2+1 -> 476 | RI2: =RH2+1 -> 477 | RJ2: =RI2+1 -> 478 | RK2: =RJ2+1 -> 479 | RL2: =RK2+1 -> 480 | RM2: =RL2+1 -> 481 | RN2: =RM2+1 -> 482 | RO2: =RN2+1 -> 483 | RP2: =RO2+1 -> 484 | RQ2: =RP2+1 -> 485 | RR2: =RQ2+1 -> 486 | RS2: =RR2+1 -> 487 | RT2: =RS2+1 -> 488 | RU2: =RT2+1 -> 489 | RV2: =RU2+1 -> 490 | RW2: =RV2+1 -> 491 | RX2: =RW2+1 -> 492 | RY2: =RX2+1 -> 493 | RZ2: =RY2+1 -> 494 | SA2: =RZ2+1 -> 495 | SB2: =SA2+1 -> 496 | SC2: =SB2+1 -> 497 | SD2: =SC2+1 -> 498 | SE2: =SD2+1 -> 499 | SF2: =SE2+1 -> 500 | SG2: =SF2+1 -> 501 | SH2: =SG2+1 -> 502 | SI2: =SH2+1 -> 503 | SJ2: =SI2+1 -> 504 | SK2: =SJ2+1 -> 505 | SL2: =SK2+1 -> 506 | SM2: =SL2+1 -> 507 | SN2: =SM2+1 -> 508 | SO2: =SN2+1 -> 509 | SP2: =SO2+1 -> 510 | SQ2: =SP2+1 -> 511 | SR2: =SQ2+1 -> 512 | SS2: =SR2+1 -> 513 | ST2: =SS2+1 -> 514 | SU2: =ST2+1 -> 515 | SV2: =SU2+1 -> 516 | SW2: =SV2+1 -> 517 | SX2: =SW2+1 -> 518 | SY2: =SX2+1 -> 519 | SZ2: =SY2+1 -> 520 | TA2: =SZ2+1 -> 521 | TB2: =TA2+1 -> 522 | TC2: =TB2+1 -> 523 | TD2: =TC2+1 -> 524 | TE2: =TD2+1 -> 525 | TF2: =TE2+1 -> 526 | TG2: =TF2+1 -> 527 | TH2: =TG2+1 -> 528 | TI2: =TH2+1 -> 529 | TJ2: =TI2+1 -> 530 | TK2: =TJ2+1 -> 531 | TL2: =TK2+1 -> 532 | TM2: =TL2+1 -> 533 | TN2: =TM2+1 -> 534 | TO2: =TN2+1 -> 535 | TP2: =TO2+1 -> 536 | TQ2: =TP2+1 -> 537 | TR2: =TQ2+1 -> 538 | TS2: =TR2+1 -> 539 | TT2: =TS2+1 -> 540 | TU2: =TT2+1 -> 541
B3: TABEL_MAPEL | O3: DATA_JURUSAN | T3: PILIH_JURUSAN
D4: 1 | E4: TGB | F4: TEI | G4: TPL | H4: TP | I4: TKR | J4: TSM | K4: TIPTL | L4: TKJ | M4: RPL | O4: TGB | P4: Teknologi dan Rekayasa | Q4: Teknik Bangunan | R4: Teknik Gambar Bangunan | T4: TGB | U4: TGB | X4: DESKRIPSI NILAI SIKAP SPIRITUAL
A5: 1 | B5: A | C5: 1 | D5: =D4+1 -> 2 | E5: Pendidikan Agama dan Budi Pekerti | F5: Pendidikan Agama dan Budi Pekerti | G5: Pendidikan Agama dan Budi Pekerti | H5: Pendidikan Agama dan Budi Pekerti | I5: Pendidikan Agama dan Budi Pekerti | J5: Pendidikan Agama dan Budi Pekerti | K5: Pendidikan Agama dan Budi Pekerti | L5: Pendidikan Agama dan Budi Pekerti | M5: Pendidikan Agama dan Budi Pekerti | O5: TEI | P5: Teknologi dan Rekayasa | Q5: Teknik Elektronika | R5: Teknik Elektronika Industri | T5: TEI | U5: TEI | X5: A | Y5: Sangat menerima, menjalankan, menghargai, menghayati dan mengamalkan ajaran agama yang dianut.
A6: 2 | B6: A | D6: =D5+1 -> 3 | E6: Pendidikan Pancasila dan Kewarganegaraan | F6: Pendidikan Pancasila dan Kewarganegaraan | G6: Pendidikan Pancasila dan Kewarganegaraan | H6: Pendidikan Pancasila dan Kewarganegaraan | I6: Pendidikan Pancasila dan Kewarganegaraan | J6: Pendidikan Pancasila dan Kewarganegaraan | K6: Pendidikan Pancasila dan Kewarganegaraan | L6: Pendidikan Pancasila dan Kewarganegaraan | M6: Pendidikan Pancasila dan Kewarganegaraan | O6: TPL | P6: Teknologi dan Rekayasa | Q6: Teknik Mesin | R6: Teknik Pengelasan | T6: TPL | U6: TPL | X6: B | Y6: Baik, dapat menerima, menjalankan, menghargai, menghayati dan mengamalkan ajaran agama yang dianut.
A7: 3 | B7: A | D7: 4 | E7: Bahasa Indonesia | F7: Bahasa Indonesia | G7: Bahasa Indonesia | H7: Bahasa Indonesia | I7: Bahasa Indonesia | J7: Bahasa Indonesia | K7: Bahasa Indonesia | L7: Bahasa Indonesia | M7: Bahasa Indonesia | O7: TP | P7: Teknologi dan Rekayasa | Q7: Teknik Mesin | R7: Teknik Pemesinan | T7: TP | U7: TP | X7: C | Y7: Cukup menerima, menjalankan, menghargai, menghayati dan mengamalkan ajaran agama yang dianut.
A8: 4 | B8: A | D8: 5 | E8: Matematika | F8: Matematika | G8: Matematika | H8: Matematika | I8: Matematika | J8: Matematika | K8: Matematika | L8: Matematika | M8: Matematika | O8: TKR | P8: Teknologi dan Rekayasa | Q8: Teknik Otomotif | R8: Teknik Kendaraan Ringan | T8: TKR | U8: TKR | X8: D | Y8: Kurang menerima, menjalankan, menghargai, menghayati dan mengamalkan ajaran agama yang dianut.
A9: 5 | B9: A | D9: 6 | E9: Sejarah Indonesia | F9: Sejarah Indonesia | G9: Sejarah Indonesia | H9: Sejarah Indonesia | I9: Sejarah Indonesia | J9: Sejarah Indonesia | K9: Sejarah Indonesia | L9: Sejarah Indonesia | M9: Sejarah Indonesia | O9: TSM | P9: Teknologi dan Rekayasa | Q9: Teknik Otomotif | R9: Teknik Sepeda Motor | T9: TSM | U9: TSM
A10: 6 | B10: A | D10: 7 | E10: Bahasa Inggris | F10: Bahasa Inggris | G10: Bahasa Inggris | H10: Bahasa Inggris | I10: Bahasa Inggris | J10: Bahasa Inggris | K10: Bahasa Inggris | L10: Bahasa Inggris | M10: Bahasa Inggris | O10: TIPTL | P10: Teknologi dan Rekayasa | Q10: Teknik Ketenagalistrikan | R10: Teknik Instalasi Pemanfaatan Tenaga Listrik | T10: TIP | U10: TIPTL | X10: DESKRIPSI NILAI SIKAP SOSIAL
A11: 7 | B11: B | D11: 8 | E11: Seni Budaya | F11: Seni Budaya | G11: Seni Budaya | H11: Seni Budaya | I11: Seni Budaya | J11: Seni Budaya | K11: Seni Budaya | L11: Seni Budaya | M11: Seni Budaya | O11: TKJ | P11: Teknologi Informasi dan Komunikasi | Q11: Teknik Komputer dan Informatika | R11: Teknik Komputer dan Jaringan | T11: TKJ | U11: TKJ | X11: A | Y11: Sudah bersungguh-sungguh dan selalu konsisten menerapkan sikap jujur, santun dan toleran dalam pergaulan, disiplin, kerjasama dalam kelompok dan tanggungjawab dalam keseharian sebagai hasil pembelajaran di sekolah. Pertahankan sikap-sikap tersebut agar menjadi teladan bagi kawan-kawan di sekolah.
A12: 8 | B12: B | D12: 9 | E12: Prakarya dan Kewirausahaan | F12: Prakarya dan Kewirausahaan | G12: Prakarya dan Kewirausahaan | H12: Prakarya dan Kewirausahaan | I12: Prakarya dan Kewirausahaan | J12: Prakarya dan Kewirausahaan | K12: Prakarya dan Kewirausahaan | L12: Prakarya dan Kewirausahaan | M12: Prakarya dan Kewirausahaan | O12: RPL | P12: Teknologi Informasi dan Komunikasi | Q12: Teknik Komputer dan Informatika | R12: Rekayasa Perangkat Lunak | T12: RPL | U12: RPL | X12: B | Y12: Sudah menunjukkan konsisten menerapkan sikap jujur, santun dan toleran dalam pergaulan, disiplin, kerjasama dalam kelompok dan tanggungjawab dalam keseharian sebagai hasil pembelajaran di sekolah. Tingkatkan sikap-sikap positif tersebut agar lebih baik.
A13: 9 | B13: B | D13: 10 | E13: Pendidikan Jasmani, Olah Raga & Kesehatan | F13: Pendidikan Jasmani, Olah Raga & Kesehatan | G13: Pendidikan Jasmani, Olah Raga & Kesehatan | H13: Pendidikan Jasmani, Olah Raga & Kesehatan | I13: Pendidikan Jasmani, Olah Raga & Kesehatan | J13: Pendidikan Jasmani, Olah Raga & Kesehatan | K13: Pendidikan Jasmani, Olah Raga & Kesehatan | L13: Pendidikan Jasmani, Olah Raga & Kesehatan | M13: Pendidikan Jasmani, Olah Raga & Kesehatan | X13: C | Y13: Mulai menunjukkan konsisten menerapkan sikap jujur, santun dan toleran dalam pergaulan, disiplin, kerjasama dalam kelompok dan tanggungjawab dalam keseharian sebagai hasil pembelajaran di sekolah dan perlu ditingkatkan kembali agar lebih baik.
A14: 10 | B14: C1 | D14: 11 | E14: Fisika | F14: Fisika | G14: Fisika | H14: Fisika | I14: Fisika | J14: Fisika | K14: Fisika | L14: Fisika | M14: Fisika | X14: D | Y14: Belum menunjukkan konsisten menerapkan sikap jujur, santun dan toleran dalam pergaulan, disiplin, kerjasama dalam kelompok dan tanggungjawab dalam keseharian sebagai hasil pembelajaran di sekolah, perlu perbaikan dan perhatian dari semua pihak baik guru maupun orangtua.
A15: 11 | B15: C1 | D15: 12 | E15: Kimia | F15: Kimia | G15: Kimia | H15: Kimia | I15: Kimia | J15: Kimia | K15: Kimia | L15: Pemrograman Dasar | M15: Pemrograman Dasar
A16: 12 | B16: C1 | D16: 13 | E16: Gambar Teknik | F16: Gambar Teknik | G16: Gambar Teknik | H16: Gambar Teknik | I16: Gambar Teknik | J16: Gambar Teknik | K16: Gambar Teknik | L16: Sistem Komputer | M16: Sistem Komputer
A17: 13 | B17: C2 | D17: 14 | E17: Simulasi Digital | F17: Simulasi Digital | G17: Simulasi Digital | H17: Simulasi Digital | I17: Simulasi Digital | J17: Simulasi Digital | K17: Simulasi Digital | L17: Simulasi Digital | M17: Simulasi Digital
A18: 14 | B18: C2 | D18: 15 | E18: Mekanika Teknik | F18: Teknik Kerja Bengkel | G18: Teknologi Mekanik | H18: Teknologi Mekanik | I18: Teknologi Dasar Otomotif | J18: Teknologi Dasar Otomotif | K18: Dasar dan Pengukuran Listrik | L18: Perakitan Komputer | M18: Perakitan Komputer
A19: 15 | B19: C2 | D19: 16 | E19: Ilmu Bangunan | F19: Teknik Listrik | G19: Kelistrikan Mesin dan Konversi Energi | H19: Kelistrikan Mesin dan Konversi Energi | I19: Pekerjaan Dasar Teknik Otomotif | J19: Pekerjaan Dasar Teknik Otomotif | K19: Pekerjaan Dasar Elektromekanik | L19: Sistem Operasi | M19: Sistem Operasi
A20: 16 | B20: C2 | D20: 17 | E20: Ilmu Ukur Tanah | F20: Teknik Elektronika | G20: Mekanika Teknik | H20: Mekanika Teknik | I20: Teknik Listrik Dasar Otomotif | J20: Teknik Listrik Dasar Otomotif | K20: - | L20: Jaringan Dasar | M20: Jaringan Dasar
A21: 17 | B21: C2 | D21: 18 | E21: Rencana Anggaran Biaya (RAB) | F21: Teknik Microprosessor | G21: - | H21: - | I21: - | J21: - | K21: - | L21: Pemrograman Web | M21: Pemrograman Web
A22: 18 | B22: C2 | D22: 19 | E22: - | F22: Teknik Pemrograman | G22: - | H22: - | I22: - | J22: - | K22: - | L22: - | M22: -
A23: 19 | B23: C3 | D23: 20 | E23: - | F23: - | G23: - | H23: - | I23: - | J23: - | K23: - | L23: - | M23: -
A24: 20 | B24: C3 | D24: 21 | E24: - | F24: - | G24: - | H24: - | I24: - | J24: - | K24: - | L24: - | M24: -
A25: 21 | B25: C3 | D25: 22 | E25: - | F25: - | G25: - | H25: - | I25: - | J25: - | K25: - | L25: - | M25: -
A26: 22 | B26: C3 | D26: 23 | E26: - | F26: - | G26: - | H26: - | I26: - | J26: - | K26: - | L26: - | M26: -
A27: 23 | B27: C3 | D27: 24 | E27: - | F27: - | G27: - | H27: - | I27: - | J27: - | K27: - | L27: - | M27: -
A28: 24 | B28: C3 | D28: 25 | E28: - | F28: - | G28: - | H28: Menggambar dengan sistem CAD | I28: - | J28: - | K28: - | L28: - | M28: -
A29: 25 | B29: C3 | D29: 26 | E29: - | F29: - | G29: - | H29: - | I29: - | J29: - | K29: - | L29: - | M29: -
A30: 26 | B30: C3 | D30: 27 | E30: - | F30: - | G30: - | H30: - | I30: - | J30: - | K30: - | L30: - | M30: -
A31: 27 | B31: C3 | D31: 28 | E31: - | F31: - | G31: - | H31: - | I31: - | J31: - | K31: - | L31: - | M31: -
A32: 28 | B32: MUL | D32: 29 | E32: Bahasa dan Sastra Sunda | F32: Bahasa dan Sastra Sunda | G32: Bahasa dan Sastra Sunda | H32: Bahasa dan Sastra Sunda | I32: Bahasa dan Sastra Sunda | J32: Bahasa dan Sastra Sunda | K32: Bahasa dan Sastra Sunda | L32: Bahasa dan Sastra Sunda | M32: Bahasa dan Sastra Sunda
A33: 29 | B33: MUL | D33: 30 | E33: - | F33: - | G33: - | H33: - | I33: - | J33: - | K33: - | L33: - | M33: -
A34: 30 | B34: MUL | D34: 31 | E34: - | F34: - | G34: - | H34: - | I34: - | J34: - | K34: - | L34: - | M34: -
C35: 2 | D35: 32 | E35: Pendidikan Agama dan Budi Pekerti | F35: Pendidikan Agama dan Budi Pekerti | G35: Pendidikan Agama dan Budi Pekerti | H35: Pendidikan Agama dan Budi Pekerti | I35: Pendidikan Agama dan Budi Pekerti | J35: Pendidikan Agama dan Budi Pekerti | K35: Pendidikan Agama dan Budi Pekerti | L35: Pendidikan Agama dan Budi Pekerti | M35: Pendidikan Agama dan Budi Pekerti
D36: 33 | E36: Pendidikan Pancasila dan Kewarganegaraan | F36: Pendidikan Pancasila dan Kewarganegaraan | G36: Pendidikan Pancasila dan Kewarganegaraan | H36: Pendidikan Pancasila dan Kewarganegaraan | I36: Pendidikan Pancasila dan Kewarganegaraan | J36: Pendidikan Pancasila dan Kewarganegaraan | K36: Pendidikan Pancasila dan Kewarganegaraan | L36: Pendidikan Pancasila dan Kewarganegaraan | M36: Pendidikan Pancasila dan Kewarganegaraan
D37: 34 | E37: Bahasa Indonesia | F37: Bahasa Indonesia | G37: Bahasa Indonesia | H37: Bahasa Indonesia | I37: Bahasa Indonesia | J37: Bahasa Indonesia | K37: Bahasa Indonesia | L37: Bahasa Indonesia | M37: Bahasa Indonesia
D38: 35 | E38: Matematika | F38: Matematika | G38: Matematika | H38: Matematika | I38: Matematika | J38: Matematika | K38: Matematika | L38: Matematika | M38: Matematika
D39: 36 | E39: Sejarah Indonesia | F39: Sejarah Indonesia | G39: Sejarah Indonesia | H39: Sejarah Indonesia | I39: Sejarah Indonesia | J39: Sejarah Indonesia | K39: Sejarah Indonesia | L39: Sejarah Indonesia | M39: Sejarah Indonesia
D40: 37 | E40: Bahasa Inggris | F40: Bahasa Inggris | G40: Bahasa Inggris | H40: Bahasa Inggris | I40: Bahasa Inggris | J40: Bahasa Inggris | K40: Bahasa Inggris | L40: Bahasa Inggris | M40: Bahasa Inggris
D41: 38 | E41: Seni Budaya | F41: Seni Budaya | G41: Seni Budaya | H41: Seni Budaya | I41: Seni Budaya | J41: Seni Budaya | K41: Seni Budaya | L41: Seni Budaya | M41: Seni Budaya
D42: 39 | E42: Prakarya dan Kewirausahaan | F42: Prakarya dan Kewirausahaan | G42: Prakarya dan Kewirausahaan | H42: Prakarya dan Kewirausahaan | I42: Prakarya dan Kewirausahaan | J42: Prakarya dan Kewirausahaan | K42: Prakarya dan Kewirausahaan | L42: Prakarya dan Kewirausahaan | M42: Prakarya dan Kewirausahaan
D43: 40 | E43: Pendidikan Jasmani, Olah Raga & Kesehatan | F43: Pendidikan Jasmani, Olah Raga & Kesehatan | G43: Pendidikan Jasmani, Olah Raga & Kesehatan | H43: Pendidikan Jasmani, Olah Raga & Kesehatan | I43: Pendidikan Jasmani, Olah Raga & Kesehatan | J43: Pendidikan Jasmani, Olah Raga & Kesehatan | K43: Pendidikan Jasmani, Olah Raga & Kesehatan | L43: Pendidikan Jasmani, Olah Raga & Kesehatan | M43: Pendidikan Jasmani, Olah Raga & Kesehatan
D44: 41 | E44: Fisika | F44: Fisika | G44: Fisika | H44: Fisika | I44: Fisika | J44: Fisika | K44: Fisika | L44: Fisika | M44: Fisika
D45: 42 | E45: Kimia | F45: Kimia | G45: Kimia | H45: Kimia | I45: Kimia | J45: Kimia | K45: Kimia | L45: Pemrograman Dasar | M45: Pemrograman Dasar
D46: 43 | E46: Gambar Teknik | F46: Gambar Teknik | G46: Gambar Teknik | H46: Gambar Teknik | I46: Gambar Teknik | J46: Gambar Teknik | K46: Gambar Teknik | L46: Sistem Komputer | M46: Sistem Komputer
D47: 44 | E47: Simulasi Digital | F47: Simulasi Digital | G47: Simulasi Digital | H47: Simulasi Digital | I47: Simulasi Digital | J47: Simulasi Digital | K47: Simulasi Digital | L47: Simulasi Digital | M47: Simulasi Digital
D48: 45 | E48: Mekanika Teknik | F48: Teknik Kerja Bengkel | G48: Teknologi Mekanik | H48: Teknologi Mekanik | I48: Teknologi Dasar Otomotif | J48: Teknologi Dasar Otomotif | K48: Dasar dan Pengukuran Listrik | L48: Perakitan Komputer | M48: Perakitan Komputer
D49: 46 | E49: Ilmu Bangunan | F49: Teknik Listrik | G49: Kelistrikan Mesin dan Konversi Energi | H49: Kelistrikan Mesin dan Konversi Energi | I49: Pekerjaan Dasar Teknik Otomotif | J49: Pekerjaan Dasar Teknik Otomotif | K49: Pekerjaan Dasar Elektromekanik | L49: Sistem Operasi | M49: Sistem Operasi
D50: 47 | E50: Ilmu Ukur Tanah | F50: Teknik Elektronika | G50: Mekanika Teknik | H50: Mekanika Teknik | I50: Teknik Listrik Dasar Otomotif | J50: Teknik Listrik Dasar Otomotif | K50: - | L50: Jaringan Dasar | M50: Jaringan Dasar
D51: 48 | E51: Rencana Anggaran Biaya (RAB) | F51: Teknik Microprosessor | G51: - | H51: - | I51: - | J51: - | K51: - | L51: Pemrograman Web | M51: Pemrograman Web
D52: 49 | E52: - | F52: Teknik Pemrograman | G52: - | H52: - | I52: - | J52: - | K52: - | L52: - | M52: -
D53: 50 | E53: - | F53: - | G53: - | H53: - | I53: - | J53: - | K53: - | L53: - | M53: -
D54: 51 | E54: - | F54: - | G54: - | H54: - | I54: - | J54: - | K54: - | L54: - | M54: -
D55: 52 | E55: - | F55: - | G55: - | H55: - | I55: - | J55: - | K55: - | L55: - | M55: -
D56: 53 | E56: - | F56: - | G56: - | H56: - | I56: - | J56: - | K56: - | L56: - | M56: -
D57: 54 | E57: - | F57: - | G57: - | H57: - | I57: - | J57: - | K57: - | L57: - | M57: -
D58: 55 | E58: - | F58: - | G58: - | H58: Menggambar dengan sistem CAD | I58: - | J58: - | K58: - | L58: - | M58: -
D59: 56 | E59: - | F59: - | G59: - | H59: - | I59: - | J59: - | K59: - | L59: - | M59: -
D60: 57 | E60: - | F60: - | G60: - | H60: - | I60: - | J60: - | K60: - | L60: - | M60: -
D61: 58 | E61: - | F61: - | G61: - | H61: - | I61: - | J61: - | K61: - | L61: - | M61: -
D62: 59 | E62: Bahasa dan Sastra Sunda | F62: Bahasa dan Sastra Sunda | G62: Bahasa dan Sastra Sunda | H62: Bahasa dan Sastra Sunda | I62: Bahasa dan Sastra Sunda | J62: Bahasa dan Sastra Sunda | K62: Bahasa dan Sastra Sunda | L62: Bahasa dan Sastra Sunda | M62: Bahasa dan Sastra Sunda
D63: 60 | E63: - | F63: - | G63: - | H63: - | I63: - | J63: - | K63: - | L63: - | M63: -
D64: 61 | E64: - | F64: - | G64: - | H64: - | I64: - | J64: - | K64: - | L64: - | M64: -
C65: 3 | D65: 62 | E65: Pendidikan Agama dan Budi Pekerti | F65: Pendidikan Agama dan Budi Pekerti | G65: Pendidikan Agama dan Budi Pekerti | H65: Pendidikan Agama dan Budi Pekerti | I65: Pendidikan Agama dan Budi Pekerti | J65: Pendidikan Agama dan Budi Pekerti | K65: Pendidikan Agama dan Budi Pekerti | L65: Pendidikan Agama dan Budi Pekerti | M65: Pendidikan Agama dan Budi Pekerti
D66: 63 | E66: Pendidikan Pancasila dan Kewarganegaraan | F66: Pendidikan Pancasila dan Kewarganegaraan | G66: Pendidikan Pancasila dan Kewarganegaraan | H66: Pendidikan Pancasila dan Kewarganegaraan | I66: Pendidikan Pancasila dan Kewarganegaraan | J66: Pendidikan Pancasila dan Kewarganegaraan | K66: Pendidikan Pancasila dan Kewarganegaraan | L66: Pendidikan Pancasila dan Kewarganegaraan | M66: Pendidikan Pancasila dan Kewarganegaraan
D67: 64 | E67: Bahasa Indonesia | F67: Bahasa Indonesia | G67: Bahasa Indonesia | H67: Bahasa Indonesia | I67: Bahasa Indonesia | J67: Bahasa Indonesia | K67: Bahasa Indonesia | L67: Bahasa Indonesia | M67: Bahasa Indonesia
D68: 65 | E68: Matematika | F68: Matematika | G68: Matematika | H68: Matematika | I68: Matematika | J68: Matematika | K68: Matematika | L68: Matematika | M68: Matematika
D69: 66 | E69: Sejarah Indonesia | F69: Sejarah Indonesia | G69: Sejarah Indonesia | H69: Sejarah Indonesia | I69: Sejarah Indonesia | J69: Sejarah Indonesia | K69: Sejarah Indonesia | L69: Sejarah Indonesia | M69: Sejarah Indonesia
D70: =D69+1 -> 67 | E70: Bahasa Inggris | F70: Bahasa Inggris | G70: Bahasa Inggris | H70: Bahasa Inggris | I70: Bahasa Inggris | J70: Bahasa Inggris | K70: Bahasa Inggris | L70: Bahasa Inggris | M70: Bahasa Inggris
D71: 68 | E71: Seni Budaya | F71: Seni Budaya | G71: Seni Budaya | H71: Seni Budaya | I71: Seni Budaya | J71: Seni Budaya | K71: Seni Budaya | L71: Seni Budaya | M71: Seni Budaya
D72: 69 | E72: Prakarya dan Kewirausahaan | F72: Prakarya dan Kewirausahaan | G72: Prakarya dan Kewirausahaan | H72: Prakarya dan Kewirausahaan | I72: Prakarya dan Kewirausahaan | J72: Prakarya dan Kewirausahaan | K72: Prakarya dan Kewirausahaan | L72: Prakarya dan Kewirausahaan | M72: Prakarya dan Kewirausahaan
D73: 70 | E73: Pendidikan Jasmani, Olah Raga & Kesehatan | F73: Pendidikan Jasmani, Olah Raga & Kesehatan | G73: Pendidikan Jasmani, Olah Raga & Kesehatan | H73: Pendidikan Jasmani, Olah Raga & Kesehatan | I73: Pendidikan Jasmani, Olah Raga & Kesehatan | J73: Pendidikan Jasmani, Olah Raga & Kesehatan | K73: Pendidikan Jasmani, Olah Raga & Kesehatan | L73: Pendidikan Jasmani, Olah Raga & Kesehatan | M73: Pendidikan Jasmani, Olah Raga & Kesehatan
D74: 71 | E74: Fisika | F74: Fisika | G74: Fisika | H74: Fisika | I74: Fisika | J74: Fisika | K74: Fisika | L74: Fisika | M74: Fisika
D75: 72 | E75: Kimia | F75: Kimia | G75: Kimia | H75: Kimia | I75: Kimia | J75: Kimia | K75: Kimia | L75: Pemrograman Dasar | M75: Pemrograman Dasar
D76: 73 | E76: Gambar Teknik | F76: Gambar Teknik | G76: Gambar Teknik | H76: Gambar Teknik | I76: Gambar Teknik | J76: Gambar Teknik | K76: Gambar Teknik | L76: Sistem Komputer | M76: Sistem Komputer
D77: 74 | E77: Mekanika Teknik | F77: Simulasi Digital | G77: Simulasi Digital | H77: Simulasi Digital | I77: Simulasi Digital | J77: Simulasi Digital | K77: Simulasi Digital | L77: - | M77: -
D78: 75 | E78: Simulasi Digital | F78: - | G78: - | H78: - | I78: - | J78: - | K78: - | L78: - | M78: -
D79: 76 | E79: - | F79: - | G79: - | H79: - | I79: - | J79: - | K79: - | L79: - | M79: -
D80: 77 | E80: - | F80: - | G80: - | H80: - | I80: - | J80: - | K80: - | L80: - | M80: -
D81: 78 | E81: - | F81: - | G81: - | H81: - | I81: - | J81: - | K81: - | L81: - | M81: -
D82: 79 | E82: - | F82: - | G82: - | H82: - | I82: - | J82: - | K82: - | L82: - | M82: -
D83: 80 | E83: Gambar Konstruksi Bangunan | F83: Rangkaian Elektronika | G83: Teknik Pengelasan Oksi-Asetilin (OAW) | H83: Teknik Pemesinan Sekrap | I83: Pemeliharaan Mesin Kendaraan Ringan | J83: Pemeliharaan Mesin Sepeda Motor | K83: Instalasi Penerangan Listrik | L83: Komputer Terapan | M83: Pemodelan Perangkat Lunak
D84: 81 | E84: Gambar Interior dan Eksterior Bangunan Gedung | F84: Komunikasi Data & Interface | G84: Teknik Pengelasan Las Busur Manual (SMAW) | H84: Teknik Pemesinan Bubut | I84: Pemeliharaan Sasis Kendaraan Ringan | J84: Pemeliharaan Sasis Sepeda Motor | K84: Instalasi Tenaga Listrik | L84: Komunikasi Data (VoIP) | M84: Pemrograman Desktop
D85: 82 | E85: Menggambar dengan Perangkat Lunak | F85: Sensor & Aktuator | G85: Teknik Pengelasan Gas Metal (MIG/MAG) | H85: Teknik Pemesinan Frais | I85: Pemeliharaan Kelistrikan Kendaraan Ringan | J85: Pemeliharaan Kelistrikan Sepeda Motor | K85: Instalasi Motor Listrik | L85: Sistem Operasi Jaringan | M85: Pemrograman Berorientasi Obyek
D86: 83 | E86: - | F86: Perekayasaan Sistem Kontrol | G86: - | H86: - | I86: Pemeliharaan Panel-panel Bodi Kendaraan Ringan | J86: - | K86: - | L86: Administrasi Server | M86: Basis Data
D87: 84 | E87: - | F87: - | G87: Menggambar dengan sistem CAD | H87: Teknik Pemesinan CNC | I87: - | J87: - | K87: - | L87: Rancang Bangun Jaringan | M87: Pemrograman Web Dinamis
D88: 85 | E88: - | F88: - | G88: - | H88: - | I88: - | J88: - | K88: - | L88: - | M88: -
D89: 86 | E89: - | F89: - | G89: - | H89: - | I89: - | J89: - | K89: - | L89: - | M89: -
D90: 87 | E90: - | F90: - | G90: - | H90: - | I90: - | J90: - | K90: - | L90: - | M90: -
D91: 88 | E91: - | F91: - | G91: - | H91: - | I91: - | J91: - | K91: - | L91: - | M91: -
D92: 89 | E92: - | F92: - | G92: - | H92: - | I92: - | J92: - | K92: - | L92: - | M92: -
D93: 90 | E93: Pendidikan Lingkungan Hidup | F93: Pendidikan Lingkungan Hidup | G93: Pendidikan Lingkungan Hidup | H93: Pendidikan Lingkungan Hidup | I93: Pendidikan Lingkungan Hidup | J93: Pendidikan Lingkungan Hidup | K93: Pendidikan Lingkungan Hidup | L93: Pendidikan Lingkungan Hidup | M93: Pendidikan Lingkungan Hidup
D94: 91 | E94: - | F94: - | G94: - | H94: - | I94: - | J94: - | K94: - | L94: - | M94: -
C95: 4 | D95: 92 | E95: Pendidikan Agama dan Budi Pekerti | F95: Pendidikan Agama dan Budi Pekerti | G95: Pendidikan Agama dan Budi Pekerti | H95: Pendidikan Agama dan Budi Pekerti | I95: Pendidikan Agama dan Budi Pekerti | J95: Pendidikan Agama dan Budi Pekerti | K95: Pendidikan Agama dan Budi Pekerti | L95: Pendidikan Agama dan Budi Pekerti | M95: Pendidikan Agama dan Budi Pekerti
D96: 93 | E96: Pendidikan Pancasila dan Kewarganegaraan | F96: Pendidikan Pancasila dan Kewarganegaraan | G96: Pendidikan Pancasila dan Kewarganegaraan | H96: Pendidikan Pancasila dan Kewarganegaraan | I96: Pendidikan Pancasila dan Kewarganegaraan | J96: Pendidikan Pancasila dan Kewarganegaraan | K96: Pendidikan Pancasila dan Kewarganegaraan | L96: Pendidikan Pancasila dan Kewarganegaraan | M96: Pendidikan Pancasila dan Kewarganegaraan
D97: 94 | E97: Bahasa Indonesia | F97: Bahasa Indonesia | G97: Bahasa Indonesia | H97: Bahasa Indonesia | I97: Bahasa Indonesia | J97: Bahasa Indonesia | K97: Bahasa Indonesia | L97: Bahasa Indonesia | M97: Bahasa Indonesia
D98: 95 | E98: Matematika | F98: Matematika | G98: Matematika | H98: Matematika | I98: Matematika | J98: Matematika | K98: Matematika | L98: Matematika | M98: Matematika
D99: 96 | E99: Sejarah Indonesia | F99: Sejarah Indonesia | G99: Sejarah Indonesia | H99: Sejarah Indonesia | I99: Sejarah Indonesia | J99: Sejarah Indonesia | K99: Sejarah Indonesia | L99: Sejarah Indonesia | M99: Sejarah Indonesia
D100: 97 | E100: Bahasa Inggris | F100: Bahasa Inggris | G100: Bahasa Inggris | H100: Bahasa Inggris | I100: Bahasa Inggris | J100: Bahasa Inggris | K100: Bahasa Inggris | L100: Bahasa Inggris | M100: Bahasa Inggris
D101: 98 | E101: Seni Budaya | F101: Seni Budaya | G101: Seni Budaya | H101: Seni Budaya | I101: Seni Budaya | J101: Seni Budaya | K101: Seni Budaya | L101: Seni Budaya | M101: Seni Budaya
D102: 99 | E102: Prakarya dan Kewirausahaan | F102: Prakarya dan Kewirausahaan | G102: Prakarya dan Kewirausahaan | H102: Prakarya dan Kewirausahaan | I102: Prakarya dan Kewirausahaan | J102: Prakarya dan Kewirausahaan | K102: Prakarya dan Kewirausahaan | L102: Prakarya dan Kewirausahaan | M102: Prakarya dan Kewirausahaan
D103: 100 | E103: Pendidikan Jasmani, Olah Raga & Kesehatan | F103: Pendidikan Jasmani, Olah Raga & Kesehatan | G103: Pendidikan Jasmani, Olah Raga & Kesehatan | H103: Pendidikan Jasmani, Olah Raga & Kesehatan | I103: Pendidikan Jasmani, Olah Raga & Kesehatan | J103: Pendidikan Jasmani, Olah Raga & Kesehatan | K103: Pendidikan Jasmani, Olah Raga & Kesehatan | L103: Pendidikan Jasmani, Olah Raga & Kesehatan | M103: Pendidikan Jasmani, Olah Raga & Kesehatan
D104: 101 | E104: Fisika | F104: Fisika | G104: Fisika | H104: Fisika | I104: Fisika | J104: Fisika | K104: Fisika | L104: Fisika | M104: Fisika
D105: 102 | E105: Kimia | F105: Kimia | G105: Kimia | H105: Kimia | I105: Kimia | J105: Kimia | K105: Kimia | L105: Pemrograman Dasar | M105: Pemrograman Dasar
D106: 103 | E106: Gambar Teknik | F106: Gambar Teknik | G106: Gambar Teknik | H106: Gambar Teknik | I106: Gambar Teknik | J106: Gambar Teknik | K106: Gambar Teknik | L106: Sistem Komputer | M106: Sistem Komputer
D107: 104 | E107: Mekanika Teknik | F107: Simulasi Digital | G107: Simulasi Digital | H107: Simulasi Digital | I107: Simulasi Digital | J107: Simulasi Digital | K107: Simulasi Digital | L107: - | M107: -
D108: 105 | E108: Simulasi Digital | F108: - | G108: - | H108: - | I108: - | J108: - | K108: - | L108: - | M108: -
D109: 106 | E109: - | F109: - | G109: - | H109: - | I109: - | J109: - | K109: - | L109: - | M109: -
D110: 107 | E110: - | F110: - | G110: - | H110: - | I110: - | J110: - | K110: - | L110: - | M110: -
D111: 108 | E111: - | F111: - | G111: - | H111: - | I111: - | J111: - | K111: - | L111: - | M111: -
D112: 109 | E112: - | F112: - | G112: - | H112: - | I112: - | J112: - | K112: - | L112: - | M112: -
D113: 110 | E113: Gambar Konstruksi Bangunan | F113: Rangkaian Elektronika | G113: Teknik Pengelasan Oksi-Asetilin (OAW) | H113: Teknik Pemesinan Sekrap | I113: Pemeliharaan Mesin Kendaraan Ringan | J113: Pemeliharaan Mesin Sepeda Motor | K113: Instalasi Penerangan Listrik | L113: Komputer Terapan | M113: Pemodelan Perangkat Lunak
D114: 111 | E114: Gambar Interior dan Eksterior Bangunan Gedung | F114: Komunikasi Data & Interface | G114: Teknik Pengelasan Las Busur Manual (SMAW) | H114: Teknik Pemesinan Bubut | I114: Pemeliharaan Sasis Kendaraan Ringan | J114: Pemeliharaan Sasis Sepeda Motor | K114: Instalasi Tenaga Listrik | L114: Komunikasi Data (VoIP) | M114: Pemrograman Desktop
D115: 112 | E115: Menggambar dengan Perangkat Lunak | F115: Sensor & Aktuator | G115: Teknik Pengelasan Gas Metal (MIG/MAG) | H115: Teknik Pemesinan Frais | I115: Pemeliharaan Kelistrikan Kendaraan Ringan | J115: Pemeliharaan Kelistrikan Sepeda Motor | K115: Instalasi Motor Listrik | L115: Sistem Operasi Jaringan | M115: Pemrograman Berorientasi Obyek
D116: 113 | E116: - | F116: Perekayasaan Sistem Kontrol | G116: - | H116: - | I116: Pemeliharaan Panel-panel Bodi Kendaraan Ringan | J116: - | K116: - | L116: Administrasi Server | M116: Basis Data
D117: 114 | E117: - | F117: - | G117: Menggambar dengan sistem CAD | H117: Teknik Pemesinan CNC | I117: - | J117: - | K117: - | L117: Rancang Bangun Jaringan | M117: Pemrograman Web Dinamis
D118: 115 | E118: - | F118: - | G118: - | H118: - | I118: - | J118: - | K118: - | L118: - | M118: -
D119: 116 | E119: - | F119: - | G119: - | H119: - | I119: - | J119: - | K119: - | L119: - | M119: -
D120: 117 | E120: - | F120: - | G120: - | H120: - | I120: - | J120: - | K120: - | L120: - | M120: -
D121: 118 | E121: - | F121: - | G121: - | H121: - | I121: - | J121: - | K121: - | L121: - | M121: -
D122: 119 | E122: - | F122: - | G122: - | H122: - | I122: - | J122: - | K122: - | L122: - | M122: -
D123: 120 | E123: Pendidikan Lingkungan Hidup | F123: Pendidikan Lingkungan Hidup | G123: Pendidikan Lingkungan Hidup | H123: Pendidikan Lingkungan Hidup | I123: Pendidikan Lingkungan Hidup | J123: Pendidikan Lingkungan Hidup | K123: Pendidikan Lingkungan Hidup | L123: Pendidikan Lingkungan Hidup | M123: Pendidikan Lingkungan Hidup
D124: 121 | E124: - | F124: - | G124: - | H124: - | I124: - | J124: - | K124: - | L124: - | M124: -
C125: 5 | D125: 122 | E125: Pendidikan Agama dan Budi Pekerti | F125: Pendidikan Agama dan Budi Pekerti | G125: Pendidikan Agama dan Budi Pekerti | H125: Pendidikan Agama dan Budi Pekerti | I125: Pendidikan Agama dan Budi Pekerti | J125: Pendidikan Agama dan Budi Pekerti | K125: Pendidikan Agama dan Budi Pekerti | L125: Pendidikan Agama dan Budi Pekerti | M125: Pendidikan Agama dan Budi Pekerti
D126: 123 | E126: Pendidikan Pancasila dan Kewarganegaraan | F126: Pendidikan Pancasila dan Kewarganegaraan | G126: Pendidikan Pancasila dan Kewarganegaraan | H126: Pendidikan Pancasila dan Kewarganegaraan | I126: Pendidikan Pancasila dan Kewarganegaraan | J126: Pendidikan Pancasila dan Kewarganegaraan | K126: Pendidikan Pancasila dan Kewarganegaraan | L126: Pendidikan Pancasila dan Kewarganegaraan | M126: Pendidikan Pancasila dan Kewarganegaraan
D127: 124 | E127: Bahasa Indonesia | F127: Bahasa Indonesia | G127: Bahasa Indonesia | H127: Bahasa Indonesia | I127: Bahasa Indonesia | J127: Bahasa Indonesia | K127: Bahasa Indonesia | L127: Bahasa Indonesia | M127: Bahasa Indonesia
D128: 125 | E128: Matematika | F128: Matematika | G128: Matematika | H128: Matematika | I128: Matematika | J128: Matematika | K128: Matematika | L128: Matematika | M128: Matematika
D129: 126 | E129: Sejarah Indonesia | F129: Sejarah Indonesia | G129: Sejarah Indonesia | H129: Sejarah Indonesia | I129: Sejarah Indonesia | J129: Sejarah Indonesia | K129: Sejarah Indonesia | L129: Sejarah Indonesia | M129: Sejarah Indonesia
D130: 127 | E130: Bahasa Inggris | F130: Bahasa Inggris | G130: Bahasa Inggris | H130: Bahasa Inggris | I130: Bahasa Inggris | J130: Bahasa Inggris | K130: Bahasa Inggris | L130: Bahasa Inggris | M130: Bahasa Inggris
D131: 128 | E131: Seni Budaya | F131: Seni Budaya | G131: Seni Budaya | H131: Seni Budaya | I131: Seni Budaya | J131: Seni Budaya | K131: Seni Budaya | L131: Seni Budaya | M131: Seni Budaya
D132: 129 | E132: Prakarya dan Kewirausahaan | F132: Prakarya dan Kewirausahaan | G132: Prakarya dan Kewirausahaan | H132: Prakarya dan Kewirausahaan | I132: Prakarya dan Kewirausahaan | J132: Prakarya dan Kewirausahaan | K132: Prakarya dan Kewirausahaan | L132: Prakarya dan Kewirausahaan | M132: Prakarya dan Kewirausahaan
D133: 130 | E133: Pendidikan Jasmani, Olah Raga & Kesehatan | F133: Pendidikan Jasmani, Olah Raga & Kesehatan | G133: Pendidikan Jasmani, Olah Raga & Kesehatan | H133: Pendidikan Jasmani, Olah Raga & Kesehatan | I133: Pendidikan Jasmani, Olah Raga & Kesehatan | J133: Pendidikan Jasmani, Olah Raga & Kesehatan | K133: Pendidikan Jasmani, Olah Raga & Kesehatan | L133: Pendidikan Jasmani, Olah Raga & Kesehatan | M133: Pendidikan Jasmani, Olah Raga & Kesehatan
D134: =D133+1 -> 131 | E134: - | F134: - | G134: - | H134: - | I134: - | J134: - | K134: - | L134: - | M134: -
D135: 132 | E135: - | F135: - | G135: - | H135: - | I135: - | J135: - | K135: - | L135: - | M135: -
D136: 133 | E136: - | F136: - | G136: - | H136: - | I136: - | J136: - | K136: - | L136: - | M136: -
D137: 134 | E137: - | F137: - | G137: - | H137: - | I137: - | J137: - | K137: - | L137: - | M137: -
D138: 135 | E138: - | F138: - | G138: - | H138: - | I138: - | J138: - | K138: - | L138: - | M138: -
D139: 136 | E139: - | F139: - | G139: - | H139: - | I139: - | J139: - | K139: - | L139: - | M139: -
D140: 137 | E140: - | F140: - | G140: - | H140: - | I140: - | J140: - | K140: - | L140: - | M140: -
D141: 138 | E141: - | F141: - | G141: - | H141: - | I141: - | J141: - | K141: - | L141: - | M141: -
D142: 139 | E142: - | F142: - | G142: - | H142: - | I142: - | J142: - | K142: - | L142: - | M142: -
D143: 140 | E143: Gambar Konstruksi Bangunan | F143: - | G143: - | H143: - | I143: Pemeliharaan Mesin Kendaraan Ringan | J143: Pemeliharaan Mesin Sepeda Motor | K143: Instalasi Penerangan Listrik | L143: - | M143: -
D144: 141 | E144: Gambar Interior dan Eksterior Bangunan Gedung | F144: - | G144: Teknik Pengelasan Las Busur Manual (SMAW) | H144: Teknik Pemesinan Bubut | I144: Pemeliharaan Sasis Kendaraan Ringan | J144: Pemeliharaan Sasis Sepeda Motor | K144: Instalasi Tenaga Listrik | L144: - | M144: -
D145: 142 | E145: Menggambar dengan Perangkat Lunak | F145: Sensor & Aktuator | G145: Teknik Pengelasan Gas Metal (MIG/MAG) | H145: Teknik Pemesinan Frais | I145: Pemeliharaan Kelistrikan Kendaraan Ringan | J145: Pemeliharaan Kelistrikan Sepeda Motor | K145: Instalasi Motor Listrik | L145: Sistem Operasi Jaringan | M145: Pemrograman Berorientasi Obyek
D146: 143 | E146: - | F146: Perekayasaan Sistem Kontrol | G146: Teknik Pengelasan Gas Tungsten (TIG/WIG) | H146: Teknik Pemesinan Gerinda | I146: - | J146: - | K146: - | L146: Administrasi Server | M146: Basis Data
D147: 144 | E147: - | F147: Perekayasaan Sistem Robotik | G147: - | H147: Teknik Pemesinan CNC | I147: Sistem Pemindah Tenaga | J147: - | K147: - | L147: Rancang Bangun Jaringan | M147: Pemrograman Web Dinamis
D148: 145 | E148: - | F148: Pembuatan dan Pemeliharaan Peralatan Sistem Kontrol | G148: - | H148: Menggambar dengan sistem CAD | I148: - | J148: - | K148: - | L148: Jaringan Nirkabel | M148: Pemrograman Grafik
D149: 146 | E149: - | F149: - | G149: - | H149: - | I149: - | J149: - | K149: - | L149: Keamanan Jaringan | M149: Pemrograman Mobile
D150: 147 | E150: - | F150: - | G150: - | H150: - | I150: - | J150: - | K150: - | L150: Troubleshooting Jaringan | M150: Administrasi Basis Data
D151: 148 | E151: - | F151: - | G151: - | H151: - | I151: - | J151: - | K151: - | L151: Kerja Proyek | M151: Kerja Proyek
D152: 149 | E152: - | F152: - | G152: - | H152: - | I152: - | J152: - | K152: - | L152: - | M152: -
D153: 150 | E153: - | F153: - | G153: - | H153: - | I153: - | J153: - | K153: - | L153: - | M153: -
D154: 151 | E154: Bahasa Jepang | F154: Bahasa Jepang | G154: Bahasa Jepang | H154: Bahasa Jepang | I154: Bahasa Jepang | J154: Bahasa Jepang | K154: Bahasa Jepang | L154: Bahasa Jepang | M154: Bahasa Jepang
C155: 6 | D155: 152 | E155: Pendidikan Agama dan Budi Pekerti | F155: Pendidikan Agama dan Budi Pekerti | G155: Pendidikan Agama dan Budi Pekerti | H155: Pendidikan Agama dan Budi Pekerti | I155: Pendidikan Agama dan Budi Pekerti | J155: Pendidikan Agama dan Budi Pekerti | K155: Pendidikan Agama dan Budi Pekerti | L155: Pendidikan Agama dan Budi Pekerti | M155: Pendidikan Agama dan Budi Pekerti
D156: 153 | E156: Pendidikan Pancasila dan Kewarganegaraan | F156: Pendidikan Pancasila dan Kewarganegaraan | G156: Pendidikan Pancasila dan Kewarganegaraan | H156: Pendidikan Pancasila dan Kewarganegaraan | I156: Pendidikan Pancasila dan Kewarganegaraan | J156: Pendidikan Pancasila dan Kewarganegaraan | K156: Pendidikan Pancasila dan Kewarganegaraan | L156: Pendidikan Pancasila dan Kewarganegaraan | M156: Pendidikan Pancasila dan Kewarganegaraan
D157: 154 | E157: Bahasa Indonesia | F157: Bahasa Indonesia | G157: Bahasa Indonesia | H157: Bahasa Indonesia | I157: Bahasa Indonesia | J157: Bahasa Indonesia | K157: Bahasa Indonesia | L157: Bahasa Indonesia | M157: Bahasa Indonesia
D158: 155 | E158: Matematika | F158: Matematika | G158: Matematika | H158: Matematika | I158: Matematika | J158: Matematika | K158: Matematika | L158: Matematika | M158: Matematika
D159: 156 | E159: Sejarah Indonesia | F159: Sejarah Indonesia | G159: Sejarah Indonesia | H159: Sejarah Indonesia | I159: Sejarah Indonesia | J159: Sejarah Indonesia | K159: Sejarah Indonesia | L159: Sejarah Indonesia | M159: Sejarah Indonesia
D160: 157 | E160: Bahasa Inggris | F160: Bahasa Inggris | G160: Bahasa Inggris | H160: Bahasa Inggris | I160: Bahasa Inggris | J160: Bahasa Inggris | K160: Bahasa Inggris | L160: Bahasa Inggris | M160: Bahasa Inggris
D161: 158 | E161: Seni Budaya | F161: Seni Budaya | G161: Seni Budaya | H161: Seni Budaya | I161: Seni Budaya | J161: Seni Budaya | K161: Seni Budaya | L161: Seni Budaya | M161: Seni Budaya
D162: 159 | E162: Prakarya dan Kewirausahaan | F162: Prakarya dan Kewirausahaan | G162: Prakarya dan Kewirausahaan | H162: Prakarya dan Kewirausahaan | I162: Prakarya dan Kewirausahaan | J162: Prakarya dan Kewirausahaan | K162: Prakarya dan Kewirausahaan | L162: Prakarya dan Kewirausahaan | M162: Prakarya dan Kewirausahaan
D163: 160 | E163: Pendidikan Jasmani, Olah Raga & Kesehatan | F163: Pendidikan Jasmani, Olah Raga & Kesehatan | G163: Pendidikan Jasmani, Olah Raga & Kesehatan | H163: Pendidikan Jasmani, Olah Raga & Kesehatan | I163: Pendidikan Jasmani, Olah Raga & Kesehatan | J163: Pendidikan Jasmani, Olah Raga & Kesehatan | K163: Pendidikan Jasmani, Olah Raga & Kesehatan | L163: Pendidikan Jasmani, Olah Raga & Kesehatan | M163: Pendidikan Jasmani, Olah Raga & Kesehatan
D164: 161 | E164: - | F164: - | G164: - | H164: - | I164: - | J164: - | K164: - | L164: - | M164: -
D165: 162 | E165: - | F165: - | G165: - | H165: - | I165: - | J165: - | K165: - | L165: - | M165: -
D166: 163 | E166: - | F166: - | G166: - | H166: - | I166: - | J166: - | K166: - | L166: - | M166: -
D167: 164 | E167: - | F167: - | G167: - | H167: - | I167: - | J167: - | K167: - | L167: - | M167: -
D168: 165 | E168: - | F168: - | G168: - | H168: - | I168: - | J168: - | K168: - | L168: - | M168: -
D169: 166 | E169: - | F169: - | G169: - | H169: - | I169: - | J169: - | K169: - | L169: - | M169: -
D170: 167 | E170: - | F170: - | G170: - | H170: - | I170: - | J170: - | K170: - | L170: - | M170: -
D171: 168 | E171: - | F171: - | G171: - | H171: - | I171: - | J171: - | K171: - | L171: - | M171: -
D172: 169 | E172: - | F172: - | G172: - | H172: - | I172: - | J172: - | K172: - | L172: - | M172: -
D173: 170 | E173: Gambar Konstruksi Bangunan | F173: - | G173: - | H173: - | I173: Pemeliharaan Mesin Kendaraan Ringan | J173: Pemeliharaan Mesin Sepeda Motor | K173: Instalasi Penerangan Listrik | L173: - | M173: -
D174: 171 | E174: Gambar Interior dan Eksterior Bangunan Gedung | F174: - | G174: Teknik Pengelasan Las Busur Manual (SMAW) | H174: Teknik Pemesinan Bubut | I174: Pemeliharaan Sasis Kendaraan Ringan | J174: Pemeliharaan Sasis Sepeda Motor | K174: Instalasi Tenaga Listrik | L174: - | M174: -
D175: 172 | E175: Menggambar dengan Perangkat Lunak | F175: Sensor & Aktuator | G175: Teknik Pengelasan Gas Metal (MIG/MAG) | H175: Teknik Pemesinan Frais | I175: Pemeliharaan Kelistrikan Kendaraan Ringan | J175: Pemeliharaan Kelistrikan Sepeda Motor | K175: Instalasi Motor Listrik | L175: Sistem Operasi Jaringan | M175: Pemrograman Berorientasi Obyek
D176: 173 | E176: - | F176: Perekayasaan Sistem Kontrol | G176: Teknik Pengelasan Gas Tungsten (TIG/WIG) | H176: Teknik Pemesinan Gerinda | I176: - | J176: - | K176: - | L176: Administrasi Server | M176: Basis Data
D177: 174 | E177: - | F177: Perekayasaan Sistem Robotik | G177: - | H177: Teknik Pemesinan CNC | I177: Sistem Pemindah Tenaga | J177: - | K177: - | L177: Rancang Bangun Jaringan | M177: Pemrograman Web Dinamis
D178: 175 | E178: - | F178: Pembuatan dan Pemeliharaan Peralatan Sistem Kontrol | G178: - | H178: Menggambar dengan sistem CAD | I178: - | J178: - | K178: - | L178: Jaringan Nirkabel | M178: Pemrograman Grafik
D179: 176 | E179: - | F179: - | G179: - | H179: - | I179: - | J179: - | K179: - | L179: Keamanan Jaringan | M179: Pemrograman Mobile
D180: 177 | E180: - | F180: - | G180: - | H180: - | I180: - | J180: - | K180: - | L180: Troubleshooting Jaringan | M180: Administrasi Basis Data
D181: 178 | E181: - | F181: - | G181: - | H181: - | I181: - | J181: - | K181: - | L181: Kerja Proyek | M181: Kerja Proyek
D182: 179 | E182: - | F182: - | G182: - | H182: - | I182: - | J182: - | K182: - | L182: - | M182: -
D183: 180 | E183: - | F183: - | G183: - | H183: - | I183: - | J183: - | K183: - | L183: - | M183: -
D184: 181 | E184: Bahasa Jepang | F184: Bahasa Jepang | G184: Bahasa Jepang | H184: Bahasa Jepang | I184: Bahasa Jepang | J184: Bahasa Jepang | K184: Bahasa Jepang | L184: Bahasa Jepang | M184: Bahasa Jepang

Sheet NILAIX
D1: TGB | E1: ="NILAI SEMESTER TERTINGGI : "&MAX(J8:TY874) -> NILAI SEMESTER TERTINGGI : 100 | I1: NAMA MAPEL JURUSAN | J1: =HLOOKUP($I$2,TABL_MAPEL,DB!B1,FALSE) -> Pendidikan Agama dan Budi Pekerti | K1: =HLOOKUP($I$2,TABL_MAPEL,DB!C1,FALSE) -> Pendidikan Agama dan Budi Pekerti | L1: =HLOOKUP($I$2,TABL_MAPEL,DB!D1,FALSE) -> Pendidikan Agama dan Budi Pekerti | M1: =HLOOKUP($I$2,TABL_MAPEL,DB!E1,FALSE) -> Pendidikan Pancasila dan Kewarganegaraan | N1: =HLOOKUP($I$2,TABL_MAPEL,DB!F1,FALSE) -> Pendidikan Pancasila dan Kewarganegaraan | O1: =HLOOKUP($I$2,TABL_MAPEL,DB!G1,FALSE) -> Pendidikan Pancasila dan Kewarganegaraan | P1: =HLOOKUP($I$2,TABL_MAPEL,DB!H1,FALSE) -> Bahasa Indonesia | Q1: =HLOOKUP($I$2,TABL_MAPEL,DB!I1,FALSE) -> Bahasa Indonesia | R1: =HLOOKUP($I$2,TABL_MAPEL,DB!J1,FALSE) -> Bahasa Indonesia | S1: =HLOOKUP($I$2,TABL_MAPEL,DB!K1,FALSE) -> Matematika | T1: =HLOOKUP($I$2,TABL_MAPEL,DB!L1,FALSE) -> Matematika | U1: =HLOOKUP($I$2,TABL_MAPEL,DB!M1,FALSE) -> Matematika | V1: =HLOOKUP($I$2,TABL_MAPEL,DB!N1,FALSE) -> Sejarah Indonesia | W1: =HLOOKUP($I$2,TABL_MAPEL,DB!O1,FALSE) -> Sejarah Indonesia | X1: =HLOOKUP($I$2,TABL_MAPEL,DB!P1,FALSE) -> Sejarah Indonesia | Y1: =HLOOKUP($I$2,TABL_MAPEL,DB!Q1,FALSE) -> Bahasa Inggris | Z1: =HLOOKUP($I$2,TABL_MAPEL,DB!R1,FALSE) -> Bahasa Inggris | AA1: =HLOOKUP($I$2,TABL_MAPEL,DB!S1,FALSE) -> Bahasa Inggris | AB1: =HLOOKUP($I$2,TABL_MAPEL,DB!T1,FALSE) -> Seni Budaya | AC1: =HLOOKUP($I$2,TABL_MAPEL,DB!U1,FALSE) -> Seni Budaya | AD1: =HLOOKUP($I$2,TABL_MAPEL,DB!V1,FALSE) -> Seni Budaya | AE1: =HLOOKUP($I$2,TABL_MAPEL,DB!W1,FALSE) -> Prakarya dan Kewirausahaan | AF1: =HLOOKUP($I$2,TABL_MAPEL,DB!X1,FALSE) -> Prakarya dan Kewirausahaan | AG1: =HLOOKUP($I$2,TABL_MAPEL,DB!Y1,FALSE) -> Prakarya dan Kewirausahaan | AH1: =HLOOKUP($I$2,TABL_MAPEL,DB!Z1,FALSE) -> Pendidikan Jasmani, Olah Raga & Kesehatan | AI1: =HLOOKUP($I$2,TABL_MAPEL,DB!AA1,FALSE) -> Pendidikan Jasmani, Olah Raga & Kesehatan | AJ1: =HLOOKUP($I$2,TABL_MAPEL,DB!AB1,FALSE) -> Pendidikan Jasmani, Olah Raga & Kesehatan | AK1: =HLOOKUP($I$2,TABL_MAPEL,DB!AC1,FALSE) -> Fisika | AL1: =HLOOKUP($I$2,TABL_MAPEL,DB!AD1,FALSE) -> Fisika | AM1: =HLOOKUP($I$2,TABL_MAPEL,DB!AE1,FALSE) -> Fisika | AN1: =HLOOKUP($I$2,TABL_MAPEL,DB!AF1,FALSE) -> Kimia | AO1: =HLOOKUP($I$2,TABL_MAPEL,DB!AG1,FALSE) -> Kimia | AP1: =HLOOKUP($I$2,TABL_MAPEL,DB!AH1,FALSE) -> Kimia | AQ1: =HLOOKUP($I$2,TABL_MAPEL,DB!AI1,FALSE) -> Gambar Teknik | AR1: =HLOOKUP($I$2,TABL_MAPEL,DB!AJ1,FALSE) -> Gambar Teknik | AS1: =HLOOKUP($I$2,TABL_MAPEL,DB!AK1,FALSE) -> Gambar Teknik | AT1: =HLOOKUP($I$2,TABL_MAPEL,DB!AL1,FALSE) -> Simulasi Digital | AU1: =HLOOKUP($I$2,TABL_MAPEL,DB!AM1,FALSE) -> Simulasi Digital | AV1: =HLOOKUP($I$2,TABL_MAPEL,DB!AN1,FALSE) -> Simulasi Digital | AW1: =HLOOKUP($I$2,TABL_MAPEL,DB!AO1,FALSE) -> Mekanika Teknik | AX1: =HLOOKUP($I$2,TABL_MAPEL,DB!AP1,FALSE) -> Mekanika Teknik | AY1: =HLOOKUP($I$2,TABL_MAPEL,DB!AQ1,FALSE) -> Mekanika Teknik | AZ1: =HLOOKUP($I$2,TABL_MAPEL,DB!AR1,FALSE) -> Ilmu Bangunan | BA1: =HLOOKUP($I$2,TABL_MAPEL,DB!AS1,FALSE) -> Ilmu Bangunan | BB1: =HLOOKUP($I$2,TABL_MAPEL,DB!AT1,FALSE) -> Ilmu Bangunan | BC1: =HLOOKUP($I$2,TABL_MAPEL,DB!AU1,FALSE) -> Ilmu Ukur Tanah | BD1: =HLOOKUP($I$2,TABL_MAPEL,DB!AV1,FALSE) -> Ilmu Ukur Tanah | BE1: =HLOOKUP($I$2,TABL_MAPEL,DB!AW1,FALSE) -> Ilmu Ukur Tanah | BF1: =HLOOKUP($I$2,TABL_MAPEL,DB!AX1,FALSE) -> Rencana Anggaran Biaya (RAB) | BG1: =HLOOKUP($I$2,TABL_MAPEL,DB!AY1,FALSE) -> Rencana Anggaran Biaya (RAB) | BH1: =HLOOKUP($I$2,TABL_MAPEL,DB!AZ1,FALSE) -> Rencana Anggaran Biaya (RAB) | BI1: =HLOOKUP($I$2,TABL_MAPEL,DB!BA1,FALSE) -> - | BJ1: =HLOOKUP($I$2,TABL_MAPEL,DB!BB1,FALSE) -> - | BK1: =HLOOKUP($I$2,TABL_MAPEL,DB!BC1,FALSE) -> - | BL1: =HLOOKUP($I$2,TABL_MAPEL,DB!BD1,FALSE) -> - | BM1: =HLOOKUP($I$2,TABL_MAPEL,DB!BE1,FALSE) -> - | BN1: =HLOOKUP($I$2,TABL_MAPEL,DB!BF1,FALSE) -> - | BO1: =HLOOKUP($I$2,TABL_MAPEL,DB!BG1,FALSE) -> - | BP1: =HLOOKUP($I$2,TABL_MAPEL,DB!BH1,FALSE) -> - | BQ1: =HLOOKUP($I$2,TABL_MAPEL,DB!BI1,FALSE) -> - | BR1: =HLOOKUP($I$2,TABL_MAPEL,DB!BJ1,FALSE) -> - | BS1: =HLOOKUP($I$2,TABL_MAPEL,DB!BK1,FALSE) -> - | BT1: =HLOOKUP($I$2,TABL_MAPEL,DB!BL1,FALSE) -> - | BU1: =HLOOKUP($I$2,TABL_MAPEL,DB!BM1,FALSE) -> - | BV1: =HLOOKUP($I$2,TABL_MAPEL,DB!BN1,FALSE) -> - | BW1: =HLOOKUP($I$2,TABL_MAPEL,DB!BO1,FALSE) -> - | BX1: =HLOOKUP($I$2,TABL_MAPEL,DB!BP1,FALSE) -> - | BY1: =HLOOKUP($I$2,TABL_MAPEL,DB!BQ1,FALSE) -> - | BZ1: =HLOOKUP($I$2,TABL_MAPEL,DB!BR1,FALSE) -> - | CA1: =HLOOKUP($I$2,TABL_MAPEL,DB!BS1,FALSE) -> - | CB1: =HLOOKUP($I$2,TABL_MAPEL,DB!BT1,FALSE) -> - | CC1: =HLOOKUP($I$2,TABL_MAPEL,DB!BU1,FALSE) -> - | CD1: =HLOOKUP($I$2,TABL_MAPEL,DB!BV1,FALSE) -> - | CE1: =HLOOKUP($I$2,TABL_MAPEL,DB!BW1,FALSE) -> - | CF1: =HLOOKUP($I$2,TABL_MAPEL,DB!BX1,FALSE) -> - | CG1: =HLOOKUP($I$2,TABL_MAPEL,DB!BY1,FALSE) -> - | CH1: =HLOOKUP($I$2,TABL_MAPEL,DB!BZ1,FALSE) -> - | CI1: =HLOOKUP($I$2,TABL_MAPEL,DB!CA1,FALSE) -> - | CJ1: =HLOOKUP($I$2,TABL_MAPEL,DB!CB1,FALSE) -> - | CK1: =HLOOKUP($I$2,TABL_MAPEL,DB!CC1,FALSE) -> - | CL1: =HLOOKUP($I$2,TABL_MAPEL,DB!CD1,FALSE) -> - | CM1: =HLOOKUP($I$2,TABL_MAPEL,DB!CE1,FALSE) -> Bahasa dan Sastra Sunda | CN1: =HLOOKUP($I$2,TABL_MAPEL,DB!CF1,FALSE) -> Bahasa dan Sastra Sunda | CO1: =HLOOKUP($I$2,TABL_MAPEL,DB!CG1,FALSE) -> Bahasa dan Sastra Sunda | CP1: =HLOOKUP($I$2,TABL_MAPEL,DB!CH1,FALSE) -> - | CQ1: =HLOOKUP($I$2,TABL_MAPEL,DB!CI1,FALSE) -> - | CR1: =HLOOKUP($I$2,TABL_MAPEL,DB!CJ1,FALSE) -> - | CS1: =HLOOKUP($I$2,TABL_MAPEL,DB!CK1,FALSE) -> - | CT1: =HLOOKUP($I$2,TABL_MAPEL,DB!CL1,FALSE) -> - | CU1: =HLOOKUP($I$2,TABL_MAPEL,DB!CM1,FALSE) -> - | CV1: =HLOOKUP($I$2,TABL_MAPEL,DB!CN1,FALSE) -> Pendidikan Agama dan Budi Pekerti | CW1: =HLOOKUP($I$2,TABL_MAPEL,DB!CO1,FALSE) -> Pendidikan Agama dan Budi Pekerti | CX1: =HLOOKUP($I$2,TABL_MAPEL,DB!CP1,FALSE) -> Pendidikan Agama dan Budi Pekerti | CY1: =HLOOKUP($I$2,TABL_MAPEL,DB!CQ1,FALSE) -> Pendidikan Pancasila dan Kewarganegaraan | CZ1: =HLOOKUP($I$2,TABL_MAPEL,DB!CR1,FALSE) -> Pendidikan Pancasila dan Kewarganegaraan | DA1: =HLOOKUP($I$2,TABL_MAPEL,DB!CS1,FALSE) -> Pendidikan Pancasila dan Kewarganegaraan | DB1: =HLOOKUP($I$2,TABL_MAPEL,DB!CT1,FALSE) -> Bahasa Indonesia | DC1: =HLOOKUP($I$2,TABL_MAPEL,DB!CU1,FALSE) -> Bahasa Indonesia | DD1: =HLOOKUP($I$2,TABL_MAPEL,DB!CV1,FALSE) -> Bahasa Indonesia | DE1: =HLOOKUP($I$2,TABL_MAPEL,DB!CW1,FALSE) -> Matematika | DF1: =HLOOKUP($I$2,TABL_MAPEL,DB!CX1,FALSE) -> Matematika | DG1: =HLOOKUP($I$2,TABL_MAPEL,DB!CY1,FALSE) -> Matematika | DH1: =HLOOKUP($I$2,TABL_MAPEL,DB!CZ1,FALSE) -> Sejarah Indonesia | DI1: =HLOOKUP($I$2,TABL_MAPEL,DB!DA1,FALSE) -> Sejarah Indonesia | DJ1: =HLOOKUP($I$2,TABL_MAPEL,DB!DB1,FALSE) -> Sejarah Indonesia | DK1: =HLOOKUP($I$2,TABL_MAPEL,DB!DC1,FALSE) -> Bahasa Inggris | DL1: =HLOOKUP($I$2,TABL_MAPEL,DB!DD1,FALSE) -> Bahasa Inggris | DM1: =HLOOKUP($I$2,TABL_MAPEL,DB!DE1,FALSE) -> Bahasa Inggris | DN1: =HLOOKUP($I$2,TABL_MAPEL,DB!DF1,FALSE) -> Seni Budaya | DO1: =HLOOKUP($I$2,TABL_MAPEL,DB!DG1,FALSE) -> Seni Budaya | DP1: =HLOOKUP($I$2,TABL_MAPEL,DB!DH1,FALSE) -> Seni Budaya | DQ1: =HLOOKUP($I$2,TABL_MAPEL,DB!DI1,FALSE) -> Prakarya dan Kewirausahaan | DR1: =HLOOKUP($I$2,TABL_MAPEL,DB!DJ1,FALSE) -> Prakarya dan Kewirausahaan | DS1: =HLOOKUP($I$2,TABL_MAPEL,DB!DK1,FALSE) -> Prakarya dan Kewirausahaan | DT1: =HLOOKUP($I$2,TABL_MAPEL,DB!DL1,FALSE) -> Pendidikan Jasmani, Olah Raga & Kesehatan | DU1: =HLOOKUP($I$2,TABL_MAPEL,DB!DM1,FALSE) -> Pendidikan Jasmani, Olah Raga & Kesehatan | DV1: =HLOOKUP($I$2,TABL_MAPEL,DB!DN1,FALSE) -> Pendidikan Jasmani, Olah Raga & Kesehatan | DW1: =HLOOKUP($I$2,TABL_MAPEL,DB!DO1,FALSE) -> Fisika | DX1: =HLOOKUP($I$2,TABL_MAPEL,DB!DP1,FALSE) -> Fisika | DY1: =HLOOKUP($I$2,TABL_MAPEL,DB!DQ1,FALSE) -> Fisika | DZ1: =HLOOKUP($I$2,TABL_MAPEL,DB!DR1,FALSE) -> Kimia | EA1: =HLOOKUP($I$2,TABL_MAPEL,DB!DS1,FALSE) -> Kimia | EB1: =HLOOKUP($I$2,TABL_MAPEL,DB!DT1,FALSE) -> Kimia | EC1: =HLOOKUP($I$2,TABL_MAPEL,DB!DU1,FALSE) -> Gambar Teknik | ED1: =HLOOKUP($I$2,TABL_MAPEL,DB!DV1,FALSE) -> Gambar Teknik | EE1: =HLOOKUP($I$2,TABL_MAPEL,DB!DW1,FALSE) -> Gambar Teknik | EF1: =HLOOKUP($I$2,TABL_MAPEL,DB!DX1,FALSE) -> Simulasi Digital | EG1: =HLOOKUP($I$2,TABL_MAPEL,DB!DY1,FALSE) -> Simulasi Digital | EH1: =HLOOKUP($I$2,TABL_MAPEL,DB!DZ1,FALSE) -> Simulasi Digital | EI1: =HLOOKUP($I$2,TABL_MAPEL,DB!EA1,FALSE) -> Mekanika Teknik | EJ1: =HLOOKUP($I$2,TABL_MAPEL,DB!EB1,FALSE) -> Mekanika Teknik | EK1: =HLOOKUP($I$2,TABL_MAPEL,DB!EC1,FALSE) -> Mekanika Teknik | EL1: =HLOOKUP($I$2,TABL_MAPEL,DB!ED1,FALSE) -> Ilmu Bangunan | EM1: =HLOOKUP($I$2,TABL_MAPEL,DB!EE1,FALSE) -> Ilmu Bangunan | EN1: =HLOOKUP($I$2,TABL_MAPEL,DB!EF1,FALSE) -> Ilmu Bangunan | EO1: =HLOOKUP($I$2,TABL_MAPEL,DB!EG1,FALSE) -> Ilmu Ukur Tanah | EP1: =HLOOKUP($I$2,TABL_MAPEL,DB!EH1,FALSE) -> Ilmu Ukur Tanah | EQ1: =HLOOKUP($I$2,TABL_MAPEL,DB!EI1,FALSE) -> Ilmu Ukur Tanah | ER1: =HLOOKUP($I$2,TABL_MAPEL,DB!EJ1,FALSE) -> Rencana Anggaran Biaya (RAB) | ES1: =HLOOKUP($I$2,TABL_MAPEL,DB!EK1,FALSE) -> Rencana Anggaran Biaya (RAB) | ET1: =HLOOKUP($I$2,TABL_MAPEL,DB!EL1,FALSE) -> Rencana Anggaran Biaya (RAB) | EU1: =HLOOKUP($I$2,TABL_MAPEL,DB!EM1,FALSE) -> - | EV1: =HLOOKUP($I$2,TABL_MAPEL,DB!EN1,FALSE) -> - | EW1: =HLOOKUP($I$2,TABL_MAPEL,DB!EO1,FALSE) -> - | EX1: =HLOOKUP($I$2,TABL_MAPEL,DB!EP1,FALSE) -> - | EY1: =HLOOKUP($I$2,TABL_MAPEL,DB!EQ1,FALSE) -> - | EZ1: =HLOOKUP($I$2,TABL_MAPEL,DB!ER1,FALSE) -> - | FA1: =HLOOKUP($I$2,TABL_MAPEL,DB!ES1,FALSE) -> - | FB1: =HLOOKUP($I$2,TABL_MAPEL,DB!ET1,FALSE) -> - | FC1: =HLOOKUP($I$2,TABL_MAPEL,DB!EU1,FALSE) -> - | FD1: =HLOOKUP($I$2,TABL_MAPEL,DB!EV1,FALSE) -> - | FE1: =HLOOKUP($I$2,TABL_MAPEL,DB!EW1,FALSE) -> - | FF1: =HLOOKUP($I$2,TABL_MAPEL,DB!EX1,FALSE) -> - | FG1: =HLOOKUP($I$2,TABL_MAPEL,DB!EY1,FALSE) -> - | FH1: =HLOOKUP($I$2,TABL_MAPEL,DB!EZ1,FALSE) -> - | FI1: =HLOOKUP($I$2,TABL_MAPEL,DB!FA1,FALSE) -> - | FJ1: =HLOOKUP($I$2,TABL_MAPEL,DB!FB1,FALSE) -> - | FK1: =HLOOKUP($I$2,TABL_MAPEL,DB!FC1,FALSE) -> - | FL1: =HLOOKUP($I$2,TABL_MAPEL,DB!FD1,FALSE) -> - | FM1: =HLOOKUP($I$2,TABL_MAPEL,DB!FE1,FALSE) -> - | FN1: =HLOOKUP($I$2,TABL_MAPEL,DB!FF1,FALSE) -> - | FO1: =HLOOKUP($I$2,TABL_MAPEL,DB!FG1,FALSE) -> - | FP1: =HLOOKUP($I$2,TABL_MAPEL,DB!FH1,FALSE) -> - | FQ1: =HLOOKUP($I$2,TABL_MAPEL,DB!FI1,FALSE) -> - | FR1: =HLOOKUP($I$2,TABL_MAPEL,DB!FJ1,FALSE) -> - | FS1: =HLOOKUP($I$2,TABL_MAPEL,DB!FK1,FALSE) -> - | FT1: =HLOOKUP($I$2,TABL_MAPEL,DB!FL1,FALSE) -> - | FU1: =HLOOKUP($I$2,TABL_MAPEL,DB!FM1,FALSE) -> - | FV1: =HLOOKUP($I$2,TABL_MAPEL,DB!FN1,FALSE) -> - | FW1: =HLOOKUP($I$2,TABL_MAPEL,DB!FO1,FALSE) -> - | FX1: =HLOOKUP($I$2,TABL_MAPEL,DB!FP1,FALSE) -> - | FY1: =HLOOKUP($I$2,TABL_MAPEL,DB!FQ1,FALSE) -> Bahasa dan Sastra Sunda | FZ1: =HLOOKUP($I$2,TABL_MAPEL,DB!FR1,FALSE) -> Bahasa dan Sastra Sunda | GA1: =HLOOKUP($I$2,TABL_MAPEL,DB!FS1,FALSE) -> Bahasa dan Sastra Sunda | GB1: =HLOOKUP($I$2,TABL_MAPEL,DB!FT1,FALSE) -> - | GC1: =HLOOKUP($I$2,TABL_MAPEL,DB!FU1,FALSE) -> - | GD1: =HLOOKUP($I$2,TABL_MAPEL,DB!FV1,FALSE) -> - | GE1: =HLOOKUP($I$2,TABL_MAPEL,DB!FW1,FALSE) -> - | GF1: =HLOOKUP($I$2,TABL_MAPEL,DB!FX1,FALSE) -> - | GG1: =HLOOKUP($I$2,TABL_MAPEL,DB!FY1,FALSE) -> - | GH1: =HLOOKUP($I$2,TABL_MAPEL,DB!FZ1,FALSE) -> Pendidikan Agama dan Budi Pekerti | GI1: =HLOOKUP($I$2,TABL_MAPEL,DB!GA1,FALSE) -> Pendidikan Agama dan Budi Pekerti | GJ1: =HLOOKUP($I$2,TABL_MAPEL,DB!GB1,FALSE) -> Pendidikan Agama dan Budi Pekerti | GK1: =HLOOKUP($I$2,TABL_MAPEL,DB!GC1,FALSE) -> Pendidikan Pancasila dan Kewarganegaraan | GL1: =HLOOKUP($I$2,TABL_MAPEL,DB!GD1,FALSE) -> Pendidikan Pancasila dan Kewarganegaraan | GM1: =HLOOKUP($I$2,TABL_MAPEL,DB!GE1,FALSE) -> Pendidikan Pancasila dan Kewarganegaraan | GN1: =HLOOKUP($I$2,TABL_MAPEL,DB!GF1,FALSE) -> Bahasa Indonesia | GO1: =HLOOKUP($I$2,TABL_MAPEL,DB!GG1,FALSE) -> Bahasa Indonesia | GP1: =HLOOKUP($I$2,TABL_MAPEL,DB!GH1,FALSE) -> Bahasa Indonesia | GQ1: =HLOOKUP($I$2,TABL_MAPEL,DB!GI1,FALSE) -> Matematika | GR1: =HLOOKUP($I$2,TABL_MAPEL,DB!GJ1,FALSE) -> Matematika | GS1: =HLOOKUP($I$2,TABL_MAPEL,DB!GK1,FALSE) -> Matematika | GT1: =HLOOKUP($I$2,TABL_MAPEL,DB!GL1,FALSE) -> Sejarah Indonesia | GU1: =HLOOKUP($I$2,TABL_MAPEL,DB!GM1,FALSE) -> Sejarah Indonesia | GV1: =HLOOKUP($I$2,TABL_MAPEL,DB!GN1,FALSE) -> Sejarah Indonesia | GW1: =HLOOKUP($I$2,TABL_MAPEL,DB!GO1,FALSE) -> Bahasa Inggris | GX1: =HLOOKUP($I$2,TABL_MAPEL,DB!GP1,FALSE) -> Bahasa Inggris | GY1: =HLOOKUP($I$2,TABL_MAPEL,DB!GQ1,FALSE) -> Bahasa Inggris | GZ1: =HLOOKUP($I$2,TABL_MAPEL,DB!GR1,FALSE) -> Seni Budaya | HA1: =HLOOKUP($I$2,TABL_MAPEL,DB!GS1,FALSE) -> Seni Budaya | HB1: =HLOOKUP($I$2,TABL_MAPEL,DB!GT1,FALSE) -> Seni Budaya | HC1: =HLOOKUP($I$2,TABL_MAPEL,DB!GU1,FALSE) -> Prakarya dan Kewirausahaan | HD1: =HLOOKUP($I$2,TABL_MAPEL,DB!GV1,FALSE) -> Prakarya dan Kewirausahaan | HE1: =HLOOKUP($I$2,TABL_MAPEL,DB!GW1,FALSE) -> Prakarya dan Kewirausahaan | HF1: =HLOOKUP($I$2,TABL_MAPEL,DB!GX1,FALSE) -> Pendidikan Jasmani, Olah Raga & Kesehatan | HG1: =HLOOKUP($I$2,TABL_MAPEL,DB!GY1,FALSE) -> Pendidikan Jasmani, Olah Raga & Kesehatan | HH1: =HLOOKUP($I$2,TABL_MAPEL,DB!GZ1,FALSE) -> Pendidikan Jasmani, Olah Raga & Kesehatan | HI1: =HLOOKUP($I$2,TABL_MAPEL,DB!HA1,FALSE) -> Fisika | HJ1: =HLOOKUP($I$2,TABL_MAPEL,DB!HB1,FALSE) -> Fisika | HK1: =HLOOKUP($I$2,TABL_MAPEL,DB!HC1,FALSE) -> Fisika | HL1: =HLOOKUP($I$2,TABL_MAPEL,DB!HD1,FALSE) -> Kimia | HM1: =HLOOKUP($I$2,TABL_MAPEL,DB!HE1,FALSE) -> Kimia | HN1: =HLOOKUP($I$2,TABL_MAPEL,DB!HF1,FALSE) -> Kimia | HO1: =HLOOKUP($I$2,TABL_MAPEL,DB!HG1,FALSE) -> Gambar Teknik | HP1: =HLOOKUP($I$2,TABL_MAPEL,DB!HH1,FALSE) -> Gambar Teknik | HQ1: =HLOOKUP($I$2,TABL_MAPEL,DB!HI1,FALSE) -> Gambar Teknik | HR1: =HLOOKUP($I$2,TABL_MAPEL,DB!HJ1,FALSE) -> Mekanika Teknik | HS1: =HLOOKUP($I$2,TABL_MAPEL,DB!HK1,FALSE) -> Mekanika Teknik | HT1: =HLOOKUP($I$2,TABL_MAPEL,DB!HL1,FALSE) -> Mekanika Teknik | HU1: =HLOOKUP($I$2,TABL_MAPEL,DB!HM1,FALSE) -> Simulasi Digital | HV1: =HLOOKUP($I$2,TABL_MAPEL,DB!HN1,FALSE) -> Simulasi Digital | HW1: =HLOOKUP($I$2,TABL_MAPEL,DB!HO1,FALSE) -> Simulasi Digital | HX1: =HLOOKUP($I$2,TABL_MAPEL,DB!HP1,FALSE) -> - | HY1: =HLOOKUP($I$2,TABL_MAPEL,DB!HQ1,FALSE) -> - | HZ1: =HLOOKUP($I$2,TABL_MAPEL,DB!HR1,FALSE) -> - | IA1: =HLOOKUP($I$2,TABL_MAPEL,DB!HS1,FALSE) -> - | IB1: =HLOOKUP($I$2,TABL_MAPEL,DB!HT1,FALSE) -> - | IC1: =HLOOKUP($I$2,TABL_MAPEL,DB!HU1,FALSE) -> - | ID1: =HLOOKUP($I$2,TABL_MAPEL,DB!HV1,FALSE) -> - | IE1: =HLOOKUP($I$2,TABL_MAPEL,DB!HW1,FALSE) -> - | IF1: =HLOOKUP($I$2,TABL_MAPEL,DB!HX1,FALSE) -> - | IG1: =HLOOKUP($I$2,TABL_MAPEL,DB!HY1,FALSE) -> - | IH1: =HLOOKUP($I$2,TABL_MAPEL,DB!HZ1,FALSE) -> - | II1: =HLOOKUP($I$2,TABL_MAPEL,DB!IA1,FALSE) -> - | IJ1: =HLOOKUP($I$2,TABL_MAPEL,DB!IB1,FALSE) -> Gambar Konstruksi Bangunan | IK1: =HLOOKUP($I$2,TABL_MAPEL,DB!IC1,FALSE) -> Gambar Konstruksi Bangunan | IL1: =HLOOKUP($I$2,TABL_MAPEL,DB!ID1,FALSE) -> Gambar Konstruksi Bangunan | IM1: =HLOOKUP($I$2,TABL_MAPEL,DB!IE1,FALSE) -> Gambar Interior dan Eksterior Bangunan Gedung | IN1: =HLOOKUP($I$2,TABL_MAPEL,DB!IF1,FALSE) -> Gambar Interior dan Eksterior Bangunan Gedung | IO1: =HLOOKUP($I$2,TABL_MAPEL,DB!IG1,FALSE) -> Gambar Interior dan Eksterior Bangunan Gedung | IP1: =HLOOKUP($I$2,TABL_MAPEL,DB!IH1,FALSE) -> Menggambar dengan Perangkat Lunak | IQ1: =HLOOKUP($I$2,TABL_MAPEL,DB!II1,FALSE) -> Menggambar dengan Perangkat Lunak | IR1: =HLOOKUP($I$2,TABL_MAPEL,DB!IJ1,FALSE) -> Menggambar dengan Perangkat Lunak | IS1: =HLOOKUP($I$2,TABL_MAPEL,DB!IK1,FALSE) -> - | IT1: =HLOOKUP($I$2,TABL_MAPEL,DB!IL1,FALSE) -> - | IU1: =HLOOKUP($I$2,TABL_MAPEL,DB!IM1,FALSE) -> - | IV1: =HLOOKUP($I$2,TABL_MAPEL,DB!IN1,FALSE) -> - | IW1: =HLOOKUP($I$2,TABL_MAPEL,DB!IO1,FALSE) -> - | IX1: =HLOOKUP($I$2,TABL_MAPEL,DB!IP1,FALSE) -> - | IY1: =HLOOKUP($I$2,TABL_MAPEL,DB!IQ1,FALSE) -> - | IZ1: =HLOOKUP($I$2,TABL_MAPEL,DB!IR1,FALSE) -> - | JA1: =HLOOKUP($I$2,TABL_MAPEL,DB!IS1,FALSE) -> - | JB1: =HLOOKUP($I$2,TABL_MAPEL,DB!IT1,FALSE) -> - | JC1: =HLOOKUP($I$2,TABL_MAPEL,DB!IU1,FALSE) -> - | JD1: =HLOOKUP($I$2,TABL_MAPEL,DB!IV1,FALSE) -> - | JE1: =HLOOKUP($I$2,TABL_MAPEL,DB!IW1,FALSE) -> - | JF1: =HLOOKUP($I$2,TABL_MAPEL,DB!IX1,FALSE) -> - | JG1: =HLOOKUP($I$2,TABL_MAPEL,DB!IY1,FALSE) -> - | JH1: =HLOOKUP($I$2,TABL_MAPEL,DB!IZ1,FALSE) -> - | JI1: =HLOOKUP($I$2,TABL_MAPEL,DB!JA1,FALSE) -> - | JJ1: =HLOOKUP($I$2,TABL_MAPEL,DB!JB1,FALSE) -> - | JK1: =HLOOKUP($I$2,TABL_MAPEL,DB!JC1,FALSE) -> - | JL1: =HLOOKUP($I$2,TABL_MAPEL,DB!JD1,FALSE) -> - | JM1: =HLOOKUP($I$2,TABL_MAPEL,DB!JE1,FALSE) -> - | JN1: =HLOOKUP($I$2,TABL_MAPEL,DB!JF1,FALSE) -> Pendidikan Lingkungan Hidup | JO1: =HLOOKUP($I$2,TABL_MAPEL,DB!JG1,FALSE) -> Pendidikan Lingkungan Hidup | JP1: =HLOOKUP($I$2,TABL_MAPEL,DB!JH1,FALSE) -> Pendidikan Lingkungan Hidup | JQ1: =HLOOKUP($I$2,TABL_MAPEL,DB!JI1,FALSE) -> - | JR1: =HLOOKUP($I$2,TABL_MAPEL,DB!JJ1,FALSE) -> - | JS1: =HLOOKUP($I$2,TABL_MAPEL,DB!JK1,FALSE) -> - | JT1: =HLOOKUP($I$2,TABL_MAPEL,DB!JL1,FALSE) -> Pendidikan Agama dan Budi Pekerti | JU1: =HLOOKUP($I$2,TABL_MAPEL,DB!JM1,FALSE) -> Pendidikan Agama dan Budi Pekerti | JV1: =HLOOKUP($I$2,TABL_MAPEL,DB!JN1,FALSE) -> Pendidikan Agama dan Budi Pekerti | JW1: =HLOOKUP($I$2,TABL_MAPEL,DB!JO1,FALSE) -> Pendidikan Pancasila dan Kewarganegaraan | JX1: =HLOOKUP($I$2,TABL_MAPEL,DB!JP1,FALSE) -> Pendidikan Pancasila dan Kewarganegaraan | JY1: =HLOOKUP($I$2,TABL_MAPEL,DB!JQ1,FALSE) -> Pendidikan Pancasila dan Kewarganegaraan | JZ1: =HLOOKUP($I$2,TABL_MAPEL,DB!JR1,FALSE) -> Bahasa Indonesia | KA1: =HLOOKUP($I$2,TABL_MAPEL,DB!JS1,FALSE) -> Bahasa Indonesia | KB1: =HLOOKUP($I$2,TABL_MAPEL,DB!JT1,FALSE) -> Bahasa Indonesia | KC1: =HLOOKUP($I$2,TABL_MAPEL,DB!JU1,FALSE) -> Matematika | KD1: =HLOOKUP($I$2,TABL_MAPEL,DB!JV1,FALSE) -> Matematika | KE1: =HLOOKUP($I$2,TABL_MAPEL,DB!JW1,FALSE) -> Matematika | KF1: =HLOOKUP($I$2,TABL_MAPEL,DB!JX1,FALSE) -> Sejarah Indonesia | KG1: =HLOOKUP($I$2,TABL_MAPEL,DB!JY1,FALSE) -> Sejarah Indonesia | KH1: =HLOOKUP($I$2,TABL_MAPEL,DB!JZ1,FALSE) -> Sejarah Indonesia | KI1: =HLOOKUP($I$2,TABL_MAPEL,DB!KA1,FALSE) -> Bahasa Inggris | KJ1: =HLOOKUP($I$2,TABL_MAPEL,DB!KB1,FALSE) -> Bahasa Inggris | KK1: =HLOOKUP($I$2,TABL_MAPEL,DB!KC1,FALSE) -> Bahasa Inggris | KL1: =HLOOKUP($I$2,TABL_MAPEL,DB!KD1,FALSE) -> Seni Budaya | KM1: =HLOOKUP($I$2,TABL_MAPEL,DB!KE1,FALSE) -> Seni Budaya | KN1: =HLOOKUP($I$2,TABL_MAPEL,DB!KF1,FALSE) -> Seni Budaya | KO1: =HLOOKUP($I$2,TABL_MAPEL,DB!KG1,FALSE) -> Prakarya dan Kewirausahaan | KP1: =HLOOKUP($I$2,TABL_MAPEL,DB!KH1,FALSE) -> Prakarya dan Kewirausahaan | KQ1: =HLOOKUP($I$2,TABL_MAPEL,DB!KI1,FALSE) -> Prakarya dan Kewirausahaan | KR1: =HLOOKUP($I$2,TABL_MAPEL,DB!KJ1,FALSE) -> Pendidikan Jasmani, Olah Raga & Kesehatan | KS1: =HLOOKUP($I$2,TABL_MAPEL,DB!KK1,FALSE) -> Pendidikan Jasmani, Olah Raga & Kesehatan | KT1: =HLOOKUP($I$2,TABL_MAPEL,DB!KL1,FALSE) -> Pendidikan Jasmani, Olah Raga & Kesehatan | KU1: =HLOOKUP($I$2,TABL_MAPEL,DB!KM1,FALSE) -> Fisika | KV1: =HLOOKUP($I$2,TABL_MAPEL,DB!KN1,FALSE) -> Fisika | KW1: =HLOOKUP($I$2,TABL_MAPEL,DB!KO1,FALSE) -> Fisika | KX1: =HLOOKUP($I$2,TABL_MAPEL,DB!KP1,FALSE) -> Kimia | KY1: =HLOOKUP($I$2,TABL_MAPEL,DB!KQ1,FALSE) -> Kimia | KZ1: =HLOOKUP($I$2,TABL_MAPEL,DB!KR1,FALSE) -> Kimia | LA1: =HLOOKUP($I$2,TABL_MAPEL,DB!KS1,FALSE) -> Gambar Teknik | LB1: =HLOOKUP($I$2,TABL_MAPEL,DB!KT1,FALSE) -> Gambar Teknik | LC1: =HLOOKUP($I$2,TABL_MAPEL,DB!KU1,FALSE) -> Gambar Teknik | LD1: =HLOOKUP($I$2,TABL_MAPEL,DB!KV1,FALSE) -> Mekanika Teknik | LE1: =HLOOKUP($I$2,TABL_MAPEL,DB!KW1,FALSE) -> Mekanika Teknik | LF1: =HLOOKUP($I$2,TABL_MAPEL,DB!KX1,FALSE) -> Mekanika Teknik | LG1: =HLOOKUP($I$2,TABL_MAPEL,DB!KY1,FALSE) -> Simulasi Digital | LH1: =HLOOKUP($I$2,TABL_MAPEL,DB!KZ1,FALSE) -> Simulasi Digital | LI1: =HLOOKUP($I$2,TABL_MAPEL,DB!LA1,FALSE) -> Simulasi Digital | LJ1: =HLOOKUP($I$2,TABL_MAPEL,DB!LB1,FALSE) -> - | LK1: =HLOOKUP($I$2,TABL_MAPEL,DB!LC1,FALSE) -> - | LL1: =HLOOKUP($I$2,TABL_MAPEL,DB!LD1,FALSE) -> - | LM1: =HLOOKUP($I$2,TABL_MAPEL,DB!LE1,FALSE) -> - | LN1: =HLOOKUP($I$2,TABL_MAPEL,DB!LF1,FALSE) -> - | LO1: =HLOOKUP($I$2,TABL_MAPEL,DB!LG1,FALSE) -> - | LP1: =HLOOKUP($I$2,TABL_MAPEL,DB!LH1,FALSE) -> - | LQ1: =HLOOKUP($I$2,TABL_MAPEL,DB!LI1,FALSE) -> - | LR1: =HLOOKUP($I$2,TABL_MAPEL,DB!LJ1,FALSE) -> - | LS1: =HLOOKUP($I$2,TABL_MAPEL,DB!LK1,FALSE) -> - | LT1: =HLOOKUP($I$2,TABL_MAPEL,DB!LL1,FALSE) -> - | LU1: =HLOOKUP($I$2,TABL_MAPEL,DB!LM1,FALSE) -> - | LV1: =HLOOKUP($I$2,TABL_MAPEL,DB!LN1,FALSE) -> Gambar Konstruksi Bangunan | LW1: =HLOOKUP($I$2,TABL_MAPEL,DB!LO1,FALSE) -> Gambar Konstruksi Bangunan | LX1: =HLOOKUP($I$2,TABL_MAPEL,DB!LP1,FALSE) -> Gambar Konstruksi Bangunan | LY1: =HLOOKUP($I$2,TABL_MAPEL,DB!LQ1,FALSE) -> Gambar Interior dan Eksterior Bangunan Gedung | LZ1: =HLOOKUP($I$2,TABL_MAPEL,DB!LR1,FALSE) -> Gambar Interior dan Eksterior Bangunan Gedung | MA1: =HLOOKUP($I$2,TABL_MAPEL,DB!LS1,FALSE) -> Gambar Interior dan Eksterior Bangunan Gedung | MB1: =HLOOKUP($I$2,TABL_MAPEL,DB!LT1,FALSE) -> Menggambar dengan Perangkat Lunak | MC1: =HLOOKUP($I$2,TABL_MAPEL,DB!LU1,FALSE) -> Menggambar dengan Perangkat Lunak | MD1: =HLOOKUP($I$2,TABL_MAPEL,DB!LV1,FALSE) -> Menggambar dengan Perangkat Lunak | ME1: =HLOOKUP($I$2,TABL_MAPEL,DB!LW1,FALSE) -> - | MF1: =HLOOKUP($I$2,TABL_MAPEL,DB!LX1,FALSE) -> - | MG1: =HLOOKUP($I$2,TABL_MAPEL,DB!LY1,FALSE) -> - | MH1: =HLOOKUP($I$2,TABL_MAPEL,DB!LZ1,FALSE) -> - | MI1: =HLOOKUP($I$2,TABL_MAPEL,DB!MA1,FALSE) -> - | MJ1: =HLOOKUP($I$2,TABL_MAPEL,DB!MB1,FALSE) -> - | MK1: =HLOOKUP($I$2,TABL_MAPEL,DB!MC1,FALSE) -> - | ML1: =HLOOKUP($I$2,TABL_MAPEL,DB!MD1,FALSE) -> - | MM1: =HLOOKUP($I$2,TABL_MAPEL,DB!ME1,FALSE) -> - | MN1: =HLOOKUP($I$2,TABL_MAPEL,DB!MF1,FALSE) -> - | MO1: =HLOOKUP($I$2,TABL_MAPEL,DB!MG1,FALSE) -> - | MP1: =HLOOKUP($I$2,TABL_MAPEL,DB!MH1,FALSE) -> - | MQ1: =HLOOKUP($I$2,TABL_MAPEL,DB!MI1,FALSE) -> - | MR1: =HLOOKUP($I$2,TABL_MAPEL,DB!MJ1,FALSE) -> - | MS1: =HLOOKUP($I$2,TABL_MAPEL,DB!MK1,FALSE) -> - | MT1: =HLOOKUP($I$2,TABL_MAPEL,DB!ML1,FALSE) -> - | MU1: =HLOOKUP($I$2,TABL_MAPEL,DB!MM1,FALSE) -> - | MV1: =HLOOKUP($I$2,TABL_MAPEL,DB!MN1,FALSE) -> - | MW1: =HLOOKUP($I$2,TABL_MAPEL,DB!MO1,FALSE) -> - | MX1: =HLOOKUP($I$2,TABL_MAPEL,DB!MP1,FALSE) -> - | MY1: =HLOOKUP($I$2,TABL_MAPEL,DB!MQ1,FALSE) -> - | MZ1: =HLOOKUP($I$2,TABL_MAPEL,DB!MR1,FALSE) -> Pendidikan Lingkungan Hidup | NA1: =HLOOKUP($I$2,TABL_MAPEL,DB!MS1,FALSE) -> Pendidikan Lingkungan Hidup | NB1: =HLOOKUP($I$2,TABL_MAPEL,DB!MT1,FALSE) -> Pendidikan Lingkungan Hidup | NC1: =HLOOKUP($I$2,TABL_MAPEL,DB!MU1,FALSE) -> - | ND1: =HLOOKUP($I$2,TABL_MAPEL,DB!MV1,FALSE) -> - | NE1: =HLOOKUP($I$2,TABL_MAPEL,DB!MW1,FALSE) -> - | NF1: =HLOOKUP($I$2,TABL_MAPEL,DB!MX1,FALSE) -> Pendidikan Agama dan Budi Pekerti | NG1: =HLOOKUP($I$2,TABL_MAPEL,DB!MY1,FALSE) -> Pendidikan Agama dan Budi Pekerti | NH1: =HLOOKUP($I$2,TABL_MAPEL,DB!MZ1,FALSE) -> Pendidikan Agama dan Budi Pekerti | NI1: =HLOOKUP($I$2,TABL_MAPEL,DB!NA1,FALSE) -> Pendidikan Pancasila dan Kewarganegaraan | NJ1: =HLOOKUP($I$2,TABL_MAPEL,DB!NB1,FALSE) -> Pendidikan Pancasila dan Kewarganegaraan | NK1: =HLOOKUP($I$2,TABL_MAPEL,DB!NC1,FALSE) -> Pendidikan Pancasila dan Kewarganegaraan | NL1: =HLOOKUP($I$2,TABL_MAPEL,DB!ND1,FALSE) -> Bahasa Indonesia | NM1: =HLOOKUP($I$2,TABL_MAPEL,DB!NE1,FALSE) -> Bahasa Indonesia | NN1: =HLOOKUP($I$2,TABL_MAPEL,DB!NF1,FALSE) -> Bahasa Indonesia | NO1: =HLOOKUP($I$2,TABL_MAPEL,DB!NG1,FALSE) -> Matematika | NP1: =HLOOKUP($I$2,TABL_MAPEL,DB!NH1,FALSE) -> Matematika | NQ1: =HLOOKUP($I$2,TABL_MAPEL,DB!NI1,FALSE) -> Matematika | NR1: =HLOOKUP($I$2,TABL_MAPEL,DB!NJ1,FALSE) -> Sejarah Indonesia | NS1: =HLOOKUP($I$2,TABL_MAPEL,DB!NK1,FALSE) -> Sejarah Indonesia | NT1: =HLOOKUP($I$2,TABL_MAPEL,DB!NL1,FALSE) -> Sejarah Indonesia | NU1: =HLOOKUP($I$2,TABL_MAPEL,DB!NM1,FALSE) -> Bahasa Inggris | NV1: =HLOOKUP($I$2,TABL_MAPEL,DB!NN1,FALSE) -> Bahasa Inggris | NW1: =HLOOKUP($I$2,TABL_MAPEL,DB!NO1,FALSE) -> Bahasa Inggris | NX1: =HLOOKUP($I$2,TABL_MAPEL,DB!NP1,FALSE) -> Seni Budaya | NY1: =HLOOKUP($I$2,TABL_MAPEL,DB!NQ1,FALSE) -> Seni Budaya | NZ1: =HLOOKUP($I$2,TABL_MAPEL,DB!NR1,FALSE) -> Seni Budaya | OA1: =HLOOKUP($I$2,TABL_MAPEL,DB!NS1,FALSE) -> Prakarya dan Kewirausahaan | OB1: =HLOOKUP($I$2,TABL_MAPEL,DB!NT1,FALSE) -> Prakarya dan Kewirausahaan | OC1: =HLOOKUP($I$2,TABL_MAPEL,DB!NU1,FALSE) -> Prakarya dan Kewirausahaan | OD1: =HLOOKUP($I$2,TABL_MAPEL,DB!NV1,FALSE) -> Pendidikan Jasmani, Olah Raga & Kesehatan | OE1: =HLOOKUP($I$2,TABL_MAPEL,DB!NW1,FALSE) -> Pendidikan Jasmani, Olah Raga & Kesehatan | OF1: =HLOOKUP($I$2,TABL_MAPEL,DB!NX1,FALSE) -> Pendidikan Jasmani, Olah Raga & Kesehatan | OG1: =HLOOKUP($I$2,TABL_MAPEL,DB!NY1,FALSE) -> - | OH1: =HLOOKUP($I$2,TABL_MAPEL,DB!NZ1,FALSE) -> - | OI1: =HLOOKUP($I$2,TABL_MAPEL,DB!OA1,FALSE) -> - | OJ1: =HLOOKUP($I$2,TABL_MAPEL,DB!OB1,FALSE) -> - | OK1: =HLOOKUP($I$2,TABL_MAPEL,DB!OC1,FALSE) -> - | OL1: =HLOOKUP($I$2,TABL_MAPEL,DB!OD1,FALSE) -> - | OM1: =HLOOKUP($I$2,TABL_MAPEL,DB!OE1,FALSE) -> - | ON1: =HLOOKUP($I$2,TABL_MAPEL,DB!OF1,FALSE) -> - | OO1: =HLOOKUP($I$2,TABL_MAPEL,DB!OG1,FALSE) -> - | OP1: =HLOOKUP($I$2,TABL_MAPEL,DB!OH1,FALSE) -> - | OQ1: =HLOOKUP($I$2,TABL_MAPEL,DB!OI1,FALSE) -> - | OR1: =HLOOKUP($I$2,TABL_MAPEL,DB!OJ1,FALSE) -> - | OS1: =HLOOKUP($I$2,TABL_MAPEL,DB!OK1,FALSE) -> - | OT1: =HLOOKUP($I$2,TABL_MAPEL,DB!OL1,FALSE) -> - | OU1: =HLOOKUP($I$2,TABL_MAPEL,DB!OM1,FALSE) -> - | OV1: =HLOOKUP($I$2,TABL_MAPEL,DB!ON1,FALSE) -> - | OW1: =HLOOKUP($I$2,TABL_MAPEL,DB!OO1,FALSE) -> - | OX1: =HLOOKUP($I$2,TABL_MAPEL,DB!OP1,FALSE) -> - | OY1: =HLOOKUP($I$2,TABL_MAPEL,DB!OQ1,FALSE) -> - | OZ1: =HLOOKUP($I$2,TABL_MAPEL,DB!OR1,FALSE) -> - | PA1: =HLOOKUP($I$2,TABL_MAPEL,DB!OS1,FALSE) -> - | PB1: =HLOOKUP($I$2,TABL_MAPEL,DB!OT1,FALSE) -> - | PC1: =HLOOKUP($I$2,TABL_MAPEL,DB!OU1,FALSE) -> - | PD1: =HLOOKUP($I$2,TABL_MAPEL,DB!OV1,FALSE) -> - | PE1: =HLOOKUP($I$2,TABL_MAPEL,DB!OW1,FALSE) -> - | PF1: =HLOOKUP($I$2,TABL_MAPEL,DB!OX1,FALSE) -> - | PG1: =HLOOKUP($I$2,TABL_MAPEL,DB!OY1,FALSE) -> - | PH1: =HLOOKUP($I$2,TABL_MAPEL,DB!OZ1,FALSE) -> Gambar Konstruksi Bangunan | PI1: =HLOOKUP($I$2,TABL_MAPEL,DB!PA1,FALSE) -> Gambar Konstruksi Bangunan | PJ1: =HLOOKUP($I$2,TABL_MAPEL,DB!PB1,FALSE) -> Gambar Konstruksi Bangunan | PK1: =HLOOKUP($I$2,TABL_MAPEL,DB!PC1,FALSE) -> Gambar Interior dan Eksterior Bangunan Gedung | PL1: =HLOOKUP($I$2,TABL_MAPEL,DB!PD1,FALSE) -> Gambar Interior dan Eksterior Bangunan Gedung | PM1: =HLOOKUP($I$2,TABL_MAPEL,DB!PE1,FALSE) -> Gambar Interior dan Eksterior Bangunan Gedung | PN1: =HLOOKUP($I$2,TABL_MAPEL,DB!PF1,FALSE) -> Menggambar dengan Perangkat Lunak | PO1: =HLOOKUP($I$2,TABL_MAPEL,DB!PG1,FALSE) -> Menggambar dengan Perangkat Lunak | PP1: =HLOOKUP($I$2,TABL_MAPEL,DB!PH1,FALSE) -> Menggambar dengan Perangkat Lunak | PQ1: =HLOOKUP($I$2,TABL_MAPEL,DB!PI1,FALSE) -> - | PR1: =HLOOKUP($I$2,TABL_MAPEL,DB!PJ1,FALSE) -> - | PS1: =HLOOKUP($I$2,TABL_MAPEL,DB!PK1,FALSE) -> - | PT1: =HLOOKUP($I$2,TABL_MAPEL,DB!PL1,FALSE) -> - | PU1: =HLOOKUP($I$2,TABL_MAPEL,DB!PM1,FALSE) -> - | PV1: =HLOOKUP($I$2,TABL_MAPEL,DB!PN1,FALSE) -> - | PW1: =HLOOKUP($I$2,TABL_MAPEL,DB!PO1,FALSE) -> - | PX1: =HLOOKUP($I$2,TABL_MAPEL,DB!PP1,FALSE) -> - | PY1: =HLOOKUP($I$2,TABL_MAPEL,DB!PQ1,FALSE) -> - | PZ1: =HLOOKUP($I$2,TABL_MAPEL,DB!PR1,FALSE) -> - | QA1: =HLOOKUP($I$2,TABL_MAPEL,DB!PS1,FALSE) -> - | QB1: =HLOOKUP($I$2,TABL_MAPEL,DB!PT1,FALSE) -> - | QC1: =HLOOKUP($I$2,TABL_MAPEL,DB!PU1,FALSE) -> - | QD1: =HLOOKUP($I$2,TABL_MAPEL,DB!PV1,FALSE) -> - | QE1: =HLOOKUP($I$2,TABL_MAPEL,DB!PW1,FALSE) -> - | QF1: =HLOOKUP($I$2,TABL_MAPEL,DB!PX1,FALSE) -> - | QG1: =HLOOKUP($I$2,TABL_MAPEL,DB!PY1,FALSE) -> - | QH1: =HLOOKUP($I$2,TABL_MAPEL,DB!PZ1,FALSE) -> - | QI1: =HLOOKUP($I$2,TABL_MAPEL,DB!QA1,FALSE) -> - | QJ1: =HLOOKUP($I$2,TABL_MAPEL,DB!QB1,FALSE) -> - | QK1: =HLOOKUP($I$2,TABL_MAPEL,DB!QC1,FALSE) -> - | QL1: =HLOOKUP($I$2,TABL_MAPEL,DB!QD1,FALSE) -> - | QM1: =HLOOKUP($I$2,TABL_MAPEL,DB!QE1,FALSE) -> - | QN1: =HLOOKUP($I$2,TABL_MAPEL,DB!QF1,FALSE) -> - | QO1: =HLOOKUP($I$2,TABL_MAPEL,DB!QG1,FALSE) -> Bahasa Jepang | QP1: =HLOOKUP($I$2,TABL_MAPEL,DB!QH1,FALSE) -> Bahasa Jepang | QQ1: =HLOOKUP($I$2,TABL_MAPEL,DB!QI1,FALSE) -> Bahasa Jepang | QR1: =HLOOKUP($I$2,TABL_MAPEL,DB!QJ1,FALSE) -> Pendidikan Agama dan Budi Pekerti | QS1: =HLOOKUP($I$2,TABL_MAPEL,DB!QK1,FALSE) -> Pendidikan Agama dan Budi Pekerti | QT1: =HLOOKUP($I$2,TABL_MAPEL,DB!QL1,FALSE) -> Pendidikan Agama dan Budi Pekerti | QU1: =HLOOKUP($I$2,TABL_MAPEL,DB!QM1,FALSE) -> Pendidikan Pancasila dan Kewarganegaraan | QV1: =HLOOKUP($I$2,TABL_MAPEL,DB!QN1,FALSE) -> Pendidikan Pancasila dan Kewarganegaraan | QW1: =HLOOKUP($I$2,TABL_MAPEL,DB!QO1,FALSE) -> Pendidikan Pancasila dan Kewarganegaraan | QX1: =HLOOKUP($I$2,TABL_MAPEL,DB!QP1,FALSE) -> Bahasa Indonesia | QY1: =HLOOKUP($I$2,TABL_MAPEL,DB!QQ1,FALSE) -> Bahasa Indonesia | QZ1: =HLOOKUP($I$2,TABL_MAPEL,DB!QR1,FALSE) -> Bahasa Indonesia | RA1: =HLOOKUP($I$2,TABL_MAPEL,DB!QS1,FALSE) -> Matematika | RB1: =HLOOKUP($I$2,TABL_MAPEL,DB!QT1,FALSE) -> Matematika | RC1: =HLOOKUP($I$2,TABL_MAPEL,DB!QU1,FALSE) -> Matematika | RD1: =HLOOKUP($I$2,TABL_MAPEL,DB!QV1,FALSE) -> Sejarah Indonesia | RE1: =HLOOKUP($I$2,TABL_MAPEL,DB!QW1,FALSE) -> Sejarah Indonesia | RF1: =HLOOKUP($I$2,TABL_MAPEL,DB!QX1,FALSE) -> Sejarah Indonesia | RG1: =HLOOKUP($I$2,TABL_MAPEL,DB!QY1,FALSE) -> Bahasa Inggris | RH1: =HLOOKUP($I$2,TABL_MAPEL,DB!QZ1,FALSE) -> Bahasa Inggris | RI1: =HLOOKUP($I$2,TABL_MAPEL,DB!RA1,FALSE) -> Bahasa Inggris | RJ1: =HLOOKUP($I$2,TABL_MAPEL,DB!RB1,FALSE) -> Seni Budaya | RK1: =HLOOKUP($I$2,TABL_MAPEL,DB!RC1,FALSE) -> Seni Budaya | RL1: =HLOOKUP($I$2,TABL_MAPEL,DB!RD1,FALSE) -> Seni Budaya | RM1: =HLOOKUP($I$2,TABL_MAPEL,DB!RE1,FALSE) -> Prakarya dan Kewirausahaan | RN1: =HLOOKUP($I$2,TABL_MAPEL,DB!RF1,FALSE) -> Prakarya dan Kewirausahaan | RO1: =HLOOKUP($I$2,TABL_MAPEL,DB!RG1,FALSE) -> Prakarya dan Kewirausahaan | RP1: =HLOOKUP($I$2,TABL_MAPEL,DB!RH1,FALSE) -> Pendidikan Jasmani, Olah Raga & Kesehatan | RQ1: =HLOOKUP($I$2,TABL_MAPEL,DB!RI1,FALSE) -> Pendidikan Jasmani, Olah Raga & Kesehatan | RR1: =HLOOKUP($I$2,TABL_MAPEL,DB!RJ1,FALSE) -> Pendidikan Jasmani, Olah Raga & Kesehatan | RS1: =HLOOKUP($I$2,TABL_MAPEL,DB!RK1,FALSE) -> - | RT1: =HLOOKUP($I$2,TABL_MAPEL,DB!RL1,FALSE) -> - | RU1: =HLOOKUP($I$2,TABL_MAPEL,DB!RM1,FALSE) -> - | RV1: =HLOOKUP($I$2,TABL_MAPEL,DB!RN1,FALSE) -> - | RW1: =HLOOKUP($I$2,TABL_MAPEL,DB!RO1,FALSE) -> - | RX1: =HLOOKUP($I$2,TABL_MAPEL,DB!RP1,FALSE) -> - | RY1: =HLOOKUP($I$2,TABL_MAPEL,DB!RQ1,FALSE) -> - | RZ1: =HLOOKUP($I$2,TABL_MAPEL,DB!RR1,FALSE) -> - | SA1: =HLOOKUP($I$2,TABL_MAPEL,DB!RS1,FALSE) -> - | SB1: =HLOOKUP($I$2,TABL_MAPEL,DB!RT1,FALSE) -> - | SC1: =HLOOKUP($I$2,TABL_MAPEL,DB!RU1,FALSE) -> - | SD1: =HLOOKUP($I$2,TABL_MAPEL,DB!RV1,FALSE) -> - | SE1: =HLOOKUP($I$2,TABL_MAPEL,DB!RW1,FALSE) -> - | SF1: =HLOOKUP($I$2,TABL_MAPEL,DB!RX1,FALSE) -> - | SG1: =HLOOKUP($I$2,TABL_MAPEL,DB!RY1,FALSE) -> - | SH1: =HLOOKUP($I$2,TABL_MAPEL,DB!RZ1,FALSE) -> - | SI1: =HLOOKUP($I$2,TABL_MAPEL,DB!SA1,FALSE) -> - | SJ1: =HLOOKUP($I$2,TABL_MAPEL,DB!SB1,FALSE) -> - | SK1: =HLOOKUP($I$2,TABL_MAPEL,DB!SC1,FALSE) -> - | SL1: =HLOOKUP($I$2,TABL_MAPEL,DB!SD1,FALSE) -> - | SM1: =HLOOKUP($I$2,TABL_MAPEL,DB!SE1,FALSE) -> - | SN1: =HLOOKUP($I$2,TABL_MAPEL,DB!SF1,FALSE) -> - | SO1: =HLOOKUP($I$2,TABL_MAPEL,DB!SG1,FALSE) -> - | SP1: =HLOOKUP($I$2,TABL_MAPEL,DB!SH1,FALSE) -> - | SQ1: =HLOOKUP($I$2,TABL_MAPEL,DB!SI1,FALSE) -> - | SR1: =HLOOKUP($I$2,TABL_MAPEL,DB!SJ1,FALSE) -> - | SS1: =HLOOKUP($I$2,TABL_MAPEL,DB!SK1,FALSE) -> - | ST1: =HLOOKUP($I$2,TABL_MAPEL,DB!SL1,FALSE) -> Gambar Konstruksi Bangunan | SU1: =HLOOKUP($I$2,TABL_MAPEL,DB!SM1,FALSE) -> Gambar Konstruksi Bangunan | SV1: =HLOOKUP($I$2,TABL_MAPEL,DB!SN1,FALSE) -> Gambar Konstruksi Bangunan | SW1: =HLOOKUP($I$2,TABL_MAPEL,DB!SO1,FALSE) -> Gambar Interior dan Eksterior Bangunan Gedung | SX1: =HLOOKUP($I$2,TABL_MAPEL,DB!SP1,FALSE) -> Gambar Interior dan Eksterior Bangunan Gedung | SY1: =HLOOKUP($I$2,TABL_MAPEL,DB!SQ1,FALSE) -> Gambar Interior dan Eksterior Bangunan Gedung | SZ1: =HLOOKUP($I$2,TABL_MAPEL,DB!SR1,FALSE) -> Menggambar dengan Perangkat Lunak | TA1: =HLOOKUP($I$2,TABL_MAPEL,DB!SS1,FALSE) -> Menggambar dengan Perangkat Lunak | TB1: =HLOOKUP($I$2,TABL_MAPEL,DB!ST1,FALSE) -> Menggambar dengan Perangkat Lunak | TC1: =HLOOKUP($I$2,TABL_MAPEL,DB!SU1,FALSE) -> - | TD1: =HLOOKUP($I$2,TABL_MAPEL,DB!SV1,FALSE) -> - | TE1: =HLOOKUP($I$2,TABL_MAPEL,DB!SW1,FALSE) -> - | TF1: =HLOOKUP($I$2,TABL_MAPEL,DB!SX1,FALSE) -> - | TG1: =HLOOKUP($I$2,TABL_MAPEL,DB!SY1,FALSE) -> - | TH1: =HLOOKUP($I$2,TABL_MAPEL,DB!SZ1,FALSE) -> - | TI1: =HLOOKUP($I$2,TABL_MAPEL,DB!TA1,FALSE) -> - | TJ1: =HLOOKUP($I$2,TABL_MAPEL,DB!TB1,FALSE) -> - | TK1: =HLOOKUP($I$2,TABL_MAPEL,DB!TC1,FALSE) -> - | TL1: =HLOOKUP($I$2,TABL_MAPEL,DB!TD1,FALSE) -> - | TM1: =HLOOKUP($I$2,TABL_MAPEL,DB!TE1,FALSE) -> - | TN1: =HLOOKUP($I$2,TABL_MAPEL,DB!TF1,FALSE) -> - | TO1: =HLOOKUP($I$2,TABL_MAPEL,DB!TG1,FALSE) -> - | TP1: =HLOOKUP($I$2,TABL_MAPEL,DB!TH1,FALSE) -> - | TQ1: =HLOOKUP($I$2,TABL_MAPEL,DB!TI1,FALSE) -> - | TR1: =HLOOKUP($I$2,TABL_MAPEL,DB!TJ1,FALSE) -> - | TS1: =HLOOKUP($I$2,TABL_MAPEL,DB!TK1,FALSE) -> - | TT1: =HLOOKUP($I$2,TABL_MAPEL,DB!TL1,FALSE) -> - | TU1: =HLOOKUP($I$2,TABL_MAPEL,DB!TM1,FALSE) -> - | TV1: =HLOOKUP($I$2,TABL_MAPEL,DB!TN1,FALSE) -> - | TW1: =HLOOKUP($I$2,TABL_MAPEL,DB!TO1,FALSE) -> - | TX1: =HLOOKUP($I$2,TABL_MAPEL,DB!TP1,FALSE) -> - | TY1: =HLOOKUP($I$2,TABL_MAPEL,DB!TQ1,FALSE) -> - | TZ1: =HLOOKUP($I$2,TABL_MAPEL,DB!TR1,FALSE) -> - | UA1: =HLOOKUP($I$2,TABL_MAPEL,DB!TS1,FALSE) -> Bahasa Jepang | UB1: =HLOOKUP($I$2,TABL_MAPEL,DB!TT1,FALSE) -> Bahasa Jepang | UC1: =HLOOKUP($I$2,TABL_MAPEL,DB!TU1,FALSE) -> Bahasa Jepang | UE1: BP/BK Semester 1 | UF1: BP/BK Semester 1 | UG1: BP/BK Semester 1 | UH1: BP/BK Semester 2 | UI1: BP/BK Semester 2 | UJ1: BP/BK Semester 2 | UK1: Pend. Agama USPraktek | UL1: Pend. Agama USTeori | UM1: Pend. Agama Usrata-rata | UN1: PPKN USTeori | UO1: Bahasa Indonesia USPraktek | UP1: Bahasa Indonesia USTeori | UQ1: Bahasa Indonesia Usrata-rata | UR1: Matematika USTeori | US1: Sejarah Indonesia USTeori | UT1: Bahasa Inggris USTeori | UU1: Seni Budaya USPraktek | UV1: Prakarya & Kewirausahaan USTeori | UW1: PJOK USPraktek | UX1: Kompetensi Keahlian USTeori | UY1: Bahasa Sunda USTeori | UZ1: PLH USPraktek | VA1: Bahasa Jepang USTeori | VB1: UKK/PSKK | VC1: Bahasa Indonesia UN | VD1: Matematika UN | VE1: Bahasa Inggris UN | VF1: Teori Kejuruan UN | VG1: No Peserta UN | VH1: Seri Ijazah | VI1: Nama Tempat PKL | VJ1: Lokasi Tempat PKL | VK1: Lama PKL (Bulan) | VL1: Ket. Nilai PKL | VM1: Nama Tempat PKL | VN1: Lokasi Tempat PKL | VO1: Lama PKL (Bulan) | VP1: Ket. Nilai PKL | VR1: rata Pend. Agama | VS1: rata Rata PPKn | VT1: rata Rata Bahasa Indonesia | VU1: rata Matematika | VV1: rata Sejarah Indonesia | VW1: rata Bahasa Inggris | VX1: rata Seni Budaya | VY1: rata Prakarya & Kwu | VZ1: rata PJOK | WA1: rata Fisika | WB1: rata Kimia/Progdas | WC1: rata Gbr Teknik/Siskom | WD1: rata Simulasi Digital | WE1: rata Dasar Program Keahlian | WF1: rata Paket Keahlian | WG1: rata Bahasa dan Sastra Sunda | WH1: rata Bahasa dan Sastra Sunda | WI1: rata Bahasa Jepang | WK1: Jumlah Nilai Pengetahuan SMT1 | WL1: Jumlah Mapel SMT1 | WM1: Rata-rata Nilai Pengetahuan Smt 1 | WN1: Ranking Kelas Smt 1 | WO1: Jumlah Nilai Pengetahuan SMT2 | WP1: Jumlah Mapel SMT2 | WQ1: Rata-rata Nilai Pengetahuan SMT2 | WR1: Ranking Kelas SMT2 | WS1: Jumlah Nilai Pengetahuan SMT3 | WT1: Jumlah Mapel SMT3 | WU1: Rata-rata Nilai Pengetahuan SMT3 | WV1: Ranking Kelas SMT3 | WW1: Jumlah Nilai Pengetahuan SMT4 | WX1: Jumlah Mapel SMT4 | WY1: Rata-rata Nilai Pengetahuan SMT4 | WZ1: Ranking Kelas SMT4 | XA1: Jumlah Nilai Pengetahuan SMT5 | XB1: Jumlah Mapel SMT5 | XC1: Rata-rata Nilai Pengetahuan SMT5 | XD1: Ranking Kelas SMT5 | XE1: Jumlah Nilai Pengetahuan SMT6 | XF1: Jumlah Mapel SMT6 | XG1: Rata-rata Nilai Pengetahuan SMT6 | XH1: Ranking Kelas SMT6
E2: ="NILAI SEMESTER TERENDAH : "&MIN(J8:TY874) -> NILAI SEMESTER TERENDAH : 0 | I2: =D1 -> TGB | J2: SEMESTER 1 | CV2: SEMESTER 2 | GH2: SEMESTER 3 | JT2: SEMESTER 4 | NF2: SEMESTER 5 | QR2: SEMESTER 6 | UD2: TERTINGGI | UK2: =MAX(UL8:UL874) -> 0 | UL2: 0 | UM2: 0 | UN2: 0 | UO2: 0 | UP2: 0 | UQ2: 0 | UR2: 0 | US2: 0 | UT2: 0 | UU2: 0 | UV2: 0 | UW2: 0 | UX2: 0 | UY2: 0 | UZ2: 0 | VA2: 0 | VB2: 0 | VC2: 0 | VD2: 0 | VE2: 0 | VF2: 0
E3: 671 | I3: KEL. MAPEL | J3: A | M3: A | P3: A | S3: A | V3: A | Y3: A | AB3: B | AE3: B | AH3: B | AK3: C1 | AN3: C1 | AQ3: C1 | AW3: C2 | AZ3: C2 | BC3: C2 | BF3: C2 | BI3: C2 | BL3: C2 | BO3: C3 | BR3: C3 | BU3: C3 | BX3: C3 | CA3: C3 | CD3: C3 | CG3: C3 | CJ3: C3 | CM3: C3 | CP3: MULOK | CS3: MULOK | CX3: A | DA3: A | DD3: A | DG3: A | DJ3: A | DM3: A | DP3: B | DS3: B | DV3: B | DY3: C1 | EB3: C1 | EE3: C1 | EK3: C2 | EN3: C2 | EQ3: C2 | ET3: C2 | EW3: C2 | EZ3: C2 | FC3: C3 | FF3: C3 | FI3: C3 | FL3: C3 | FO3: C3 | FR3: C3 | FU3: C3 | FX3: C3 | GA3: C3 | GD3: MULOK | GG3: MULOK | GI3: MULOK | GL3: A | GO3: A | GR3: A | GU3: A | GX3: A | HA3: A | HD3: B | HG3: B | HJ3: B | HM3: C1 | HP3: C1 | HS3: C1 | HV3: C2 | HY3: C2 | IB3: C2 | IE3: C2 | IH3: C2 | IK3: C2 | IN3: C3 | IQ3: C3 | IT3: C3 | IW3: C3 | IZ3: C3 | JC3: C3 | JF3: C3 | JI3: C3 | JL3: C3 | JO3: MULOK | JR3: MULOK | JT3: MULOK | JW3: A | JZ3: A | KC3: A | KF3: A | KI3: A | KL3: A | KO3: B | KR3: B | KU3: B | KX3: C1 | LA3: C1 | LD3: C1 | LG3: C2 | LJ3: C2 | LM3: C2 | LP3: C2 | LS3: C2 | LV3: C2 | LY3: C3 | MB3: C3 | ME3: C3 | MH3: C3 | MK3: C3 | MN3: C3 | MQ3: C3 | MT3: C3 | MW3: C3 | MZ3: MULOK | NC3: MULOK | NH3: A | NK3: A | NN3: A | NQ3: A | NT3: A | NW3: A | NZ3: B | OC3: B | OF3: B | OI3: C1 | OL3: C1 | OO3: C1 | OR3: C2 | OU3: C2 | OX3: C2 | PA3: C2 | PD3: C2 | PG3: C2 | PJ3: C3 | PM3: C3 | PP3: C3 | PS3: C3 | PV3: C3 | PY3: C3 | QB3: C3 | QE3: C3 | QH3: C3 | QK3: MULOK | QN3: MULOK | QQ3: MULOK | QS3: A | QV3: A | QY3: A | RB3: A | RE3: A | RH3: A | RK3: B | RN3: B | RQ3: B | RT3: C1 | RW3: C1 | RZ3: C1 | SC3: C2 | SF3: C2 | SI3: C2 | SL3: C2 | SO3: C2 | SR3: C2 | SU3: C3 | SX3: C3 | TA3: C3 | TD3: C3 | TG3: C3 | TJ3: C3 | TM3: C3 | TP3: C3 | TS3: C3 | TV3: MULOK
I4: KB | J4: 75 | K4: 75 | L4: B | M4: 75 | N4: 75 | O4: B | P4: 75 | Q4: 75 | R4: B | S4: 75 | T4: 75 | U4: B | V4: 75 | W4: 75 | X4: B | Y4: 75 | Z4: 75 | AA4: B | AB4: 75 | AC4: 75 | AD4: B | AE4: 75 | AF4: 75 | AG4: B | AH4: 75 | AI4: 75 | AJ4: B | AK4: 75 | AL4: 75 | AM4: B | AN4: 75 | AO4: 75 | AP4: B | AQ4: 75 | AR4: 75 | AS4: B | AW4: 75 | AX4: 75 | AY4: B | AZ4: 75 | BA4: 75 | BB4: B | BC4: 75 | BD4: 75 | BE4: B | BF4: 75 | BG4: 75 | BH4: B | BI4: 75 | BJ4: 75 | BK4: B | BL4: 75 | BM4: 75 | BN4: B | BO4: 75 | BP4: 75 | BQ4: B | BR4: 75 | BS4: 75 | BT4: B | BU4: 75 | BV4: 75 | BW4: B | BX4: 75 | BY4: 75 | BZ4: B | CA4: 75 | CB4: 75 | CC4: B | CD4: 75 | CE4: 75 | CF4: B | CG4: 75 | CH4: 75 | CI4: B | CJ4: 75 | CK4: 75 | CL4: B | CM4: 75 | CN4: 75 | CO4: B | CP4: 75 | CQ4: 75 | CR4: B | CS4: 75 | CT4: 75 | CU4: B | CV4: 75 | CX4: 75 | CY4: 75 | CZ4: B | DA4: 75 | DB4: 75 | DC4: B | DD4: 75 | DE4: 75 | DF4: B | DG4: 75 | DH4: 75 | DI4: B | DJ4: 75 | DK4: 75 | DL4: B | DM4: 75 | DN4: 75 | DO4: B | DP4: 75 | DQ4: 75 | DR4: B | DS4: 75 | DT4: 75 | DU4: B | DV4: 75 | DW4: 75 | DX4: B | DY4: 75 | DZ4: 75 | EA4: B | EB4: 75 | EC4: 75 | ED4: B | EE4: 75 | EF4: 75 | EG4: B | EK4: 75 | EL4: 75 | EM4: B | EN4: 75 | EO4: 75 | EP4: B | EQ4: 75 | ER4: 75 | ES4: B | ET4: 75 | EU4: 75 | EV4: B | EW4: 75 | EX4: 75 | EY4: B | EZ4: 75 | FA4: 75 | FB4: B | FC4: 75 | FD4: 75 | FE4: B | FF4: 75 | FG4: 75 | FH4: B | FI4: 75 | FJ4: 75 | FK4: B | FL4: 75 | FM4: 75 | FN4: B | FO4: 75 | FP4: 75 | FQ4: B | FR4: 75 | FS4: 75 | FT4: B | FU4: 75 | FV4: 75 | FW4: B | FX4: 75 | FY4: 75 | FZ4: B | GA4: 75 | GB4: 75 | GC4: B | GD4: 75 | GE4: 75 | GF4: B | GG4: 75 | GH4: B | GI4: 75 | GJ4: 75 | GL4: 75 | GM4: 75 | GN4: B | GO4: 75 | GP4: 75 | GQ4: B | GR4: 75 | GS4: 75 | GT4: B | GU4: 75 | GV4: 75 | GW4: B | GX4: 75 | GY4: 75 | GZ4: B | HA4: 75 | HB4: 75 | HC4: B | HD4: 75 | HE4: 75 | HF4: B | HG4: 75 | HH4: 75 | HI4: B | HJ4: 75 | HK4: 75 | HL4: B | HM4: 75 | HN4: 75 | HO4: B | HP4: 75 | HQ4: 75 | HR4: B | HS4: 75 | HT4: 75 | HU4: B | HV4: 75 | HW4: 75 | HX4: B | HY4: 75 | HZ4: 75 | IA4: B | IB4: 75 | IC4: 75 | ID4: B | IE4: 75 | IF4: 75 | IG4: B | IH4: 75 | II4: 75 | IJ4: B | IK4: 75 | IL4: 75 | IM4: B | IN4: 75 | IO4: 75 | IP4: B | IQ4: 75 | IR4: 75 | IS4: B | IT4: 75 | IU4: 75 | IV4: B | IW4: 75 | IX4: 75 | IY4: B | IZ4: 75 | JA4: 75 | JB4: B | JC4: 75 | JD4: 75 | JE4: B | JF4: 75 | JG4: 75 | JH4: B | JI4: 75 | JJ4: 75 | JK4: B | JL4: 75 | JM4: 75 | JN4: B | JO4: 75 | JP4: 75 | JQ4: B | JR4: 75 | JS4: 75 | JT4: 75 | JU4: 75 | JW4: 75 | JX4: 75 | JY4: B | JZ4: 75 | KA4: 75 | KB4: B | KC4: 75 | KD4: 75 | KE4: B | KF4: 75 | KG4: 75 | KH4: B | KI4: 75 | KJ4: 75 | KK4: B | KL4: 75 | KM4: 75 | KN4: B | KO4: 75 | KP4: 75 | KQ4: B | KR4: 75 | KS4: 75 | KT4: B | KU4: 75 | KV4: 75 | KW4: B | KX4: 75 | KY4: 75 | KZ4: B | LA4: 75 | LB4: 75 | LC4: B | LD4: 75 | LE4: 75 | LF4: B | LG4: 75 | LH4: 75 | LI4: B | LJ4: 75 | LK4: 75 | LL4: B | LM4: 75 | LN4: 75 | LO4: B | LP4: 75 | LQ4: 75 | LR4: B | LS4: 75 | LT4: 75 | LU4: B | LV4: 75 | LW4: 75 | LX4: B | LY4: 75 | LZ4: 75 | MA4: B | MB4: 75 | MC4: 75 | MD4: B | ME4: 75 | MF4: 75 | MG4: B | MH4: 75 | MI4: 75 | MJ4: B | MK4: 75 | ML4: 75 | MM4: B | MN4: 75 | MO4: 75 | MP4: B | MQ4: 75 | MR4: 75 | MS4: B | MT4: 75 | MU4: 75 | MV4: B | MW4: 75 | MX4: 75 | MY4: B | MZ4: 75 | NA4: 75 | NB4: B | NC4: 75 | ND4: 75 | NE4: B | NF4: 75 | NH4: 75 | NI4: 75 | NJ4: B | NK4: 75 | NL4: 75 | NM4: B | NN4: 75 | NO4: 75 | NP4: B | NQ4: 75 | NR4: 75 | NS4: B | NT4: 75 | NU4: 75 | NV4: B | NW4: 75 | NX4: 75 | NY4: B | NZ4: 75 | OA4: 75 | OB4: B | OC4: 75 | OD4: 75 | OE4: B | OF4: 75 | OG4: 75 | OH4: B | OI4: 75 | OJ4: 75 | OK4: B | OL4: 75 | OM4: 75 | ON4: B | OO4: 75 | OP4: 75 | OQ4: B | OR4: 75 | OS4: 75 | OT4: B | OU4: 75 | OV4: 75 | OW4: B | OX4: 75 | OY4: 75 | OZ4: B | PA4: 75 | PB4: 75 | PC4: B | PD4: 75 | PE4: 75 | PF4: B | PG4: 75 | PH4: 75 | PI4: B | PJ4: 75 | PK4: 75 | PL4: B | PM4: 75 | PN4: 75 | PO4: B | PP4: 75 | PQ4: 75 | PR4: B | PS4: 75 | PT4: 75 | PU4: B | PV4: 75 | PW4: 75 | PX4: B | PY4: 75 | PZ4: 75 | QA4: B | QB4: 75 | QC4: 75 | QD4: B | QE4: 75 | QF4: 75 | QG4: B | QH4: 75 | QI4: 75 | QJ4: B | QK4: 75 | QL4: 75 | QM4: B | QN4: 75 | QO4: 75 | QP4: B | QQ4: 75 | QS4: 75 | QT4: 75 | QU4: B | QV4: 75 | QW4: 75 | QX4: B | QY4: 75 | QZ4: 75 | RA4: B | RB4: 75 | RC4: 75 | RD4: B | RE4: 75 | RF4: 75 | RG4: B | RH4: 75 | RI4: 75 | RJ4: B | RK4: 75 | RL4: 75 | RM4: B | RN4: 75 | RO4: 75 | RP4: B | RQ4: 75 | RR4: 75 | RS4: B | RT4: 75 | RU4: 75 | RV4: B | RW4: 75 | RX4: 75 | RY4: B | RZ4: 75 | SA4: 75 | SB4: B | SC4: 75 | SD4: 75 | SE4: B | SF4: 75 | SG4: 75 | SH4: B | SI4: 75 | SJ4: 75 | SK4: B | SL4: 75 | SM4: 75 | SN4: B | SO4: 75 | SP4: 75 | SQ4: B | SR4: 75 | SS4: 75 | ST4: B | SU4: 75 | SV4: 75 | SW4: B | SX4: 75 | SY4: 75 | SZ4: B | TA4: 75 | TB4: 75 | TC4: B | TD4: 75 | TE4: 75 | TF4: B | TG4: 75 | TH4: 75 | TI4: B | TJ4: 75 | TK4: 75 | TL4: B | TM4: 75 | TN4: 75 | TO4: B | TP4: 75 | TQ4: 75 | TR4: B | TS4: 75 | TT4: 75 | TU4: B | TV4: 75 | TW4: 75 | TX4: B
A5: NO. URUT | B5: URUTAN RAPOR | C5: URUTAN BIOUN | D5: KELAS | E5: NAMA PESERTA DIDIK | F5: L/P | G5: TEMPAT, TGL LAHIR | H5: NISN | I5: NIS | J5: P1 | K5: K1 | L5: S1 | M5: P1 | N5: K1 | O5: S1 | P5: P1 | Q5: K1 | R5: S1 | S5: P1 | T5: K1 | U5: S1 | V5: P1 | W5: K1 | X5: S1 | Y5: P1 | Z5: K1 | AA5: S1 | AB5: P1 | AC5: K1 | AD5: S1 | AE5: P1 | AF5: K1 | AG5: S1 | AH5: P1 | AI5: K1 | AJ5: S1 | AK5: P1 | AL5: K1 | AM5: S1 | AN5: P1 | AO5: K1 | AP5: S1 | AQ5: P1 | AR5: K1 | AS5: S1 | AT5: P1 | AU5: K1 | AV5: S1 | AW5: P1 | AX5: K1 | AY5: S1 | AZ5: P1 | BA5: K1 | BB5: S1 | BC5: P1 | BD5: K1 | BE5: S1 | BF5: P1 | BG5: K1 | BH5: S1 | BI5: P1 | BJ5: K1 | BK5: S1 | BL5: P1 | BM5: K1 | BN5: S1 | BO5: P1 | BP5: K1 | BQ5: S1 | BR5: P1 | BS5: K1 | BT5: S1 | BU5: P1 | BV5: K1 | BW5: S1 | BX5: P1 | BY5: K1 | BZ5: S1 | CA5: P1 | CB5: K1 | CC5: S1 | CD5: P1 | CE5: K1 | CF5: S1 | CG5: P1 | CH5: K1 | CI5: S1 | CJ5: P1 | CK5: K1 | CL5: S1 | CM5: P1 | CN5: K1 | CO5: S1 | CP5: P1 | CQ5: K1 | CR5: S1 | CS5: P1 | CT5: K1 | CU5: S1 | CV5: P2 | CW5: K2 | CX5: S2 | CY5: P2 | CZ5: K2 | DA5: S2 | DB5: P2 | DC5: K2 | DD5: S2 | DE5: P2 | DF5: K2 | DG5: S2 | DH5: P2 | DI5: K2 | DJ5: S2 | DK5: P2 | DL5: K2 | DM5: S2 | DN5: P2 | DO5: K2 | DP5: S2 | DQ5: P2 | DR5: K2 | DS5: S2 | DT5: P2 | DU5: K2 | DV5: S2 | DW5: P2 | DX5: K2 | DY5: S2 | DZ5: P2 | EA5: K2 | EB5: S2 | EC5: P2 | ED5: K2 | EE5: S2 | EF5: P2 | EG5: K2 | EH5: S2 | EI5: P2 | EJ5: K2 | EK5: S2 | EL5: P2 | EM5: K2 | EN5: S2 | EO5: P2 | EP5: K2 | EQ5: S2 | ER5: P2 | ES5: K2 | ET5: S2 | EU5: P2 | EV5: K2 | EW5: S2 | EX5: P2 | EY5: K2 | EZ5: S2 | FA5: P2 | FB5: K2 | FC5: S2 | FD5: P2 | FE5: K2 | FF5: S2 | FG5: P2 | FH5: K2 | FI5: S2 | FJ5: P2 | FK5: K2 | FL5: S2 | FM5: P2 | FN5: K2 | FO5: S2 | FP5: P2 | FQ5: K2 | FR5: S2 | FS5: P2 | FT5: K2 | FU5: S2 | FV5: P2 | FW5: K2 | FX5: S2 | FY5: P2 | FZ5: K2 | GA5: S2 | GB5: P2 | GC5: K2 | GD5: S2 | GE5: P2 | GF5: K2 | GG5: S2 | GH5: P3 | GI5: K3 | GJ5: S3 | GK5: P3 | GL5: K3 | GM5: S3 | GN5: P3 | GO5: K3 | GP5: S3 | GQ5: P3 | GR5: K3 | GS5: S3 | GT5: P3 | GU5: K3 | GV5: S3 | GW5: P3 | GX5: K3 | GY5: S3 | GZ5: P3 | HA5: K3 | HB5: S3 | HC5: P3 | HD5: K3 | HE5: S3 | HF5: P3 | HG5: K3 | HH5: S3 | HI5: P3 | HJ5: K3 | HK5: S3 | HL5: P3 | HM5: K3 | HN5: S3 | HO5: P3 | HP5: K3 | HQ5: S3 | HR5: P3 | HS5: K3 | HT5: S3 | HU5: P3 | HV5: K3 | HW5: S3 | HX5: P3 | HY5: K3 | HZ5: S3 | IA5: P3 | IB5: K3 | IC5: S3 | ID5: P3 | IE5: K3 | IF5: S3 | IG5: P3 | IH5: K3 | II5: S3 | IJ5: P3 | IK5: K3 | IL5: S3 | IM5: P3 | IN5: K3 | IO5: S3 | IP5: P3 | IQ5: K3 | IR5: S3 | IS5: P3 | IT5: K3 | IU5: S3 | IV5: P3 | IW5: K3 | IX5: S3 | IY5: P3 | IZ5: K3 | JA5: S3 | JB5: P3 | JC5: K3 | JD5: S3 | JE5: P3 | JF5: K3 | JG5: S3 | JH5: P3 | JI5: K3 | JJ5: S3 | JK5: P3 | JL5: K3 | JM5: S3 | JN5: P3 | JO5: K3 | JP5: S3 | JQ5: P3 | JR5: K3 | JS5: S3 | JT5: P4 | JU5: K4 | JV5: S4 | JW5: P4 | JX5: K4 | JY5: S4 | JZ5: P4 | KA5: K4 | KB5: S4 | KC5: P4 | KD5: K4 | KE5: S4 | KF5: P4 | KG5: K4 | KH5: S4 | KI5: P4 | KJ5: K4 | KK5: S4 | KL5: P4 | KM5: K4 | KN5: S4 | KO5: P4 | KP5: K4 | KQ5: S4 | KR5: P4 | KS5: K4 | KT5: S4 | KU5: P4 | KV5: K4 | KW5: S4 | KX5: P4 | KY5: K4 | KZ5: S4 | LA5: P4 | LB5: K4 | LC5: S4 | LD5: P4 | LE5: K4 | LF5: S4 | LG5: P4 | LH5: K4 | LI5: S4 | LJ5: P4 | LK5: K4 | LL5: S4 | LM5: P4 | LN5: K4 | LO5: S4 | LP5: P4 | LQ5: K4 | LR5: S4 | LS5: P4 | LT5: K4 | LU5: S4 | LV5: P4 | LW5: K4 | LX5: S4 | LY5: P4 | LZ5: K4 | MA5: S4 | MB5: P4 | MC5: K4 | MD5: S4 | ME5: P4 | MF5: K4 | MG5: S4 | MH5: P4 | MI5: K4 | MJ5: S4 | MK5: P4 | ML5: K4 | MM5: S4 | MN5: P4 | MO5: K4 | MP5: S4 | MQ5: P4 | MR5: K4 | MS5: S4 | MT5: P4 | MU5: K4 | MV5: S4 | MW5: P4 | MX5: K4 | MY5: S4 | MZ5: P4 | NA5: K4 | NB5: S4 | NC5: P4 | ND5: K4 | NE5: S4 | NF5: P5 | NG5: K5 | NH5: S5 | NI5: P5 | NJ5: K5 | NK5: S5 | NL5: P5 | NM5: K5 | NN5: S5 | NO5: P5 | NP5: K5 | NQ5: S5 | NR5: P5 | NS5: K5 | NT5: S5 | NU5: P5 | NV5: K5 | NW5: S5 | NX5: P5 | NY5: K5 | NZ5: S5 | OA5: P5 | OB5: K5 | OC5: S5 | OD5: P5 | OE5: K5 | OF5: S5 | OG5: P5 | OH5: K5 | OI5: S5 | OJ5: P5 | OK5: K5 | OL5: S5 | OM5: P5 | ON5: K5 | OO5: S5 | OP5: P5 | OQ5: K5 | OR5: S5 | OS5: P5 | OT5: K5 | OU5: S5 | OV5: P5 | OW5: K5 | OX5: S5 | OY5: P5 | OZ5: K5 | PA5: S5 | PB5: P5 | PC5: K5 | PD5: S5 | PE5: P5 | PF5: K5 | PG5: S5 | PH5: P5 | PI5: K5 | PJ5: S5 | PK5: P5 | PL5: K5 | PM5: S5 | PN5: P5 | PO5: K5 | PP5: S5 | PQ5: P5 | PR5: K5 | PS5: S5 | PT5: P5 | PU5: K5 | PV5: S5 | PW5: P5 | PX5: K5 | PY5: S5 | PZ5: P5 | QA5: K5 | QB5: S5 | QC5: P5 | QD5: K5 | QE5: S5 | QF5: P5 | QG5: K5 | QH5: S5 | QI5: P5 | QJ5: K5 | QK5: S5 | QL5: P5 | QM5: K5 | QN5: S5 | QO5: P5 | QP5: K5 | QQ5: S5 | QR5: P6 | QS5: K6 | QT5: S6 | QU5: P6 | QV5: K6 | QW5: S6 | QX5: P6 | QY5: K6 | QZ5: S6 | RA5: P6 | RB5: K6 | RC5: S6 | RD5: P6 | RE5: K6 | RF5: S6 | RG5: P6 | RH5: K6 | RI5: S6 | RJ5: P6 | RK5: K6 | RL5: S6 | RM5: P6 | RN5: K6 | RO5: S6 | RP5: P6 | RQ5: K6 | RR5: S6 | RS5: P6 | RT5: K6 | RU5: S6 | RV5: P6 | RW5: K6 | RX5: S6 | RY5: P6 | RZ5: K6 | SA5: S6 | SB5: P6 | SC5: K6 | SD5: S6 | SE5: P6 | SF5: K6 | SG5: S6 | SH5: P6 | SI5: K6 | SJ5: S6 | SK5: P6 | SL5: K6 | SM5: S6 | SN5: P6 | SO5: K6 | SP5: S6 | SQ5: P6 | SR5: K6 | SS5: S6 | ST5: P6 | SU5: K6 | SV5: S6 | SW5: P6 | SX5: K6 | SY5: S6 | SZ5: P6 | TA5: K6 | TB5: S6 | TC5: P6 | TD5: K6 | TE5: S6 | TF5: P6 | TG5: K6 | TH5: S6 | TI5: P6 | TJ5: K6 | TK5: S6 | TL5: P6 | TM5: K6 | TN5: S6 | TO5: P6 | TP5: K6 | TQ5: S6 | TR5: P6 | TS5: K6 | TT5: S6 | TU5: P6 | TV5: K6 | TW5: S6 | TX5: P6 | TY5: K6 | TZ5: S6 | UA5: P6 | UB5: K6 | UC5: S6 | UD5: TERENDAH | UK5: =MIN(UL8:UL874) -> 0 | UL5: 0 | UM5: 0 | UN5: 0 | UO5: 0 | UP5: 0 | UQ5: 0 | UR5: 0 | US5: 0 | UT5: 0 | UU5: 0 | UV5: 0 | UW5: 0 | UX5: 0 | UY5: 0 | UZ5: 0 | VA5: 0 | VB5: 0 | VC5: 0 | VD5: 0 | VE5: 0 | VF5: 0
J6: A1 | K6: A2 | L6: A3 | M6: A4 | N6: A5 | O6: A6 | P6: A7 | Q6: A8 | R6: A9 | S6: A10 | T6: A11 | U6: A12 | V6: A13 | W6: A14 | X6: A15 | Y6: A16 | Z6: A17 | AA6: A18 | AB6: B1 | AC6: B2 | AD6: B3 | AE6: B4 | AF6: B5 | AG6: B6 | AH6: B7 | AI6: B8 | AJ6: B9 | AK6: C1 | AL6: C2 | AM6: C3 | AN6: C4 | AO6: C5 | AP6: C6 | AQ6: C7 | AR6: C8 | AS6: C9 | AT6: C10 | AU6: C11 | AV6: C12 | AW6: C22 | AX6: C23 | AY6: C24 | AZ6: C22 | BA6: C23 | BB6: C24 | BC6: C22 | BD6: C23 | BE6: C24 | BF6: C22 | BG6: C23 | BH6: C24 | BI6: C22 | BJ6: C23 | BK6: C24 | BL6: C33 | BM6: C34 | BN6: C35 | BO6: C33 | BP6: C34 | BQ6: C35 | BR6: C33 | BS6: C34 | BT6: C35 | BU6: C33 | BV6: C34 | BW6: C35 | BX6: C33 | BY6: C34 | BZ6: C35 | CA6: C33 | CB6: C34 | CC6: C35 | CD6: C33 | CE6: C34 | CF6: C35 | CG6: C33 | CH6: C34 | CI6: C35 | CJ6: C33 | CK6: C34 | CL6: C35 | CM6: M1 | CN6: M2 | CO6: M3 | CP6: M4 | CQ6: M5 | CR6: M6 | CS6: M7 | CT6: M8 | CU6: M9 | CV6: A1 | CW6: A2 | CX6: A3 | CY6: A4 | CZ6: A5 | DA6: A6 | DB6: A7 | DC6: A8 | DD6: A9 | DE6: A10 | DF6: A11 | DG6: A12 | DH6: A13 | DI6: A14 | DJ6: A15 | DK6: A16 | DL6: A17 | DM6: A18 | DN6: B1 | DO6: B2 | DP6: B3 | DQ6: B4 | DR6: B5 | DS6: B6 | DT6: B7 | DU6: B8 | DV6: B9 | DW6: C1 | DX6: C2 | DY6: C3 | DZ6: C4 | EA6: C5 | EB6: C6 | EC6: C7 | ED6: C8 | EE6: C9 | EF6: C10 | EG6: C11 | EH6: C12 | EI6: C22 | EJ6: C23 | EK6: C24 | EL6: C22 | EM6: C23 | EN6: C24 | EO6: C22 | EP6: C23 | EQ6: C24 | ER6: C22 | ES6: C23 | ET6: C24 | EU6: C22 | EV6: C23 | EW6: C24 | EX6: C33 | EY6: C34 | EZ6: C35 | FA6: C33 | FB6: C34 | FC6: C35 | FD6: C33 | FE6: C34 | FF6: C35 | FG6: C33 | FH6: C34 | FI6: C35 | FJ6: C33 | FK6: C34 | FL6: C35 | FM6: C33 | FN6: C34 | FO6: C35 | FP6: C33 | FQ6: C34 | FR6: C35 | FS6: C33 | FT6: C34 | FU6: C35 | FV6: C33 | FW6: C34 | FX6: C35 | FY6: M1 | FZ6: M2 | GA6: M3 | GB6: M4 | GC6: M5 | GD6: M6 | GE6: M7 | GF6: M8 | GG6: M9 | GH6: A1 | GI6: A2 | GJ6: A3 | GK6: A4 | GL6: A5 | GM6: A6 | GN6: A7 | GO6: A8 | GP6: A9 | GQ6: A10 | GR6: A11 | GS6: A12 | GT6: A13 | GU6: A14 | GV6: A15 | GW6: A16 | GX6: A17 | GY6: A18 | GZ6: B1 | HA6: B2 | HB6: B3 | HC6: B4 | HD6: B5 | HE6: B6 | HF6: B7 | HG6: B8 | HH6: B9 | HI6: C1 | HJ6: C2 | HK6: C3 | HL6: C4 | HM6: C5 | HN6: C6 | HO6: C7 | HP6: C8 | HQ6: C9 | HR6: C10 | HS6: C11 | HT6: C12 | HU6: C22 | HV6: C23 | HW6: C24 | HX6: C22 | HY6: C23 | HZ6: C24 | IA6: C22 | IB6: C23 | IC6: C24 | ID6: C22 | IE6: C23 | IF6: C24 | IG6: C22 | IH6: C23 | II6: C24 | IJ6: C33 | IK6: C34 | IL6: C35 | IM6: C33 | IN6: C34 | IO6: C35 | IP6: C33 | IQ6: C34 | IR6: C35 | IS6: C33 | IT6: C34 | IU6: C35 | IV6: C33 | IW6: C34 | IX6: C35 | IY6: C33 | IZ6: C34 | JA6: C35 | JB6: C33 | JC6: C34 | JD6: C35 | JE6: C33 | JF6: C34 | JG6: C35 | JH6: C33 | JI6: C34 | JJ6: C35 | JK6: M1 | JL6: M2 | JM6: M3 | JN6: M4 | JO6: M5 | JP6: M6 | JQ6: M7 | JR6: M8 | JS6: M9 | JT6: A1 | JU6: A2 | JV6: A3 | JW6: A4 | JX6: A5 | JY6: A6 | JZ6: A7 | KA6: A8 | KB6: A9 | KC6: A10 | KD6: A11 | KE6: A12 | KF6: A13 | KG6: A14 | KH6: A15 | KI6: A16 | KJ6: A17 | KK6: A18 | KL6: B1 | KM6: B2 | KN6: B3 | KO6: B4 | KP6: B5 | KQ6: B6 | KR6: B7 | KS6: B8 | KT6: B9 | KU6: C1 | KV6: C2 | KW6: C3 | KX6: C4 | KY6: C5 | KZ6: C6 | LA6: C7 | LB6: C8 | LC6: C9 | LD6: C10 | LE6: C11 | LF6: C12 | LG6: C22 | LH6: C23 | LI6: C24 | LJ6: C22 | LK6: C23 | LL6: C24 | LM6: C22 | LN6: C23 | LO6: C24 | LP6: C22 | LQ6: C23 | LR6: C24 | LS6: C22 | LT6: C23 | LU6: C24 | LV6: C33 | LW6: C34 | LX6: C35 | LY6: C33 | LZ6: C34 | MA6: C35 | MB6: C33 | MC6: C34 | MD6: C35 | ME6: C33 | MF6: C34 | MG6: C35 | MH6: C33 | MI6: C34 | MJ6: C35 | MK6: C33 | ML6: C34 | MM6: C35 | MN6: C33 | MO6: C34 | MP6: C35 | MQ6: C33 | MR6: C34 | MS6: C35 | MT6: C33 | MU6: C34 | MV6: C35 | MW6: M1 | MX6: M2 | MY6: M3 | MZ6: M4 | NA6: M5 | NB6: M6 | NC6: M7 | ND6: M8 | NE6: M9 | NF6: A1 | NG6: A2 | NH6: A3 | NI6: A4 | NJ6: A5 | NK6: A6 | NL6: A7 | NM6: A8 | NN6: A9 | NO6: A10 | NP6: A11 | NQ6: A12 | NR6: A13 | NS6: A14 | NT6: A15 | NU6: A16 | NV6: A17 | NW6: A18 | NX6: B1 | NY6: B2 | NZ6: B3 | OA6: B4 | OB6: B5 | OC6: B6 | OD6: B7 | OE6: B8 | OF6: B9 | OG6: C1 | OH6: C2 | OI6: C3 | OJ6: C4 | OK6: C5 | OL6: C6 | OM6: C7 | ON6: C8 | OO6: C9 | OP6: C10 | OQ6: C11 | OR6: C12 | OS6: C22 | OT6: C23 | OU6: C24 | OV6: C22 | OW6: C23 | OX6: C24 | OY6: C22 | OZ6: C23 | PA6: C24 | PB6: C22 | PC6: C23 | PD6: C24 | PE6: C22 | PF6: C23 | PG6: C24 | PH6: C33 | PI6: C34 | PJ6: C35 | PK6: C33 | PL6: C34 | PM6: C35 | PN6: C33 | PO6: C34 | PP6: C35 | PQ6: C33 | PR6: C34 | PS6: C35 | PT6: C33 | PU6: C34 | PV6: C35 | PW6: C33 | PX6: C34 | PY6: C35 | PZ6: C33 | QA6: C34 | QB6: C35 | QC6: C33 | QD6: C34 | QE6: C35 | QF6: C33 | QG6: C34 | QH6: C35 | QI6: M1 | QJ6: M2 | QK6: M3 | QL6: M4 | QM6: M5 | QN6: M6 | QO6: M7 | QP6: M8 | QQ6: M9 | QR6: A1 | QS6: A2 | QT6: A3 | QU6: A4 | QV6: A5 | QW6: A6 | QX6: A7 | QY6: A8 | QZ6: A9 | RA6: A10 | RB6: A11 | RC6: A12 | RD6: A13 | RE6: A14 | RF6: A15 | RG6: A16 | RH6: A17 | RI6: A18 | RJ6: B1 | RK6: B2 | RL6: B3 | RM6: B4 | RN6: B5 | RO6: B6 | RP6: B7 | RQ6: B8 | RR6: B9 | RS6: C1 | RT6: C2 | RU6: C3 | RV6: C4 | RW6: C5 | RX6: C6 | RY6: C7 | RZ6: C8 | SA6: C9 | SB6: C10 | SC6: C11 | SD6: C12 | SE6: C22 | SF6: C23 | SG6: C24 | SH6: C22 | SI6: C23 | SJ6: C24 | SK6: C22 | SL6: C23 | SM6: C24 | SN6: C22 | SO6: C23 | SP6: C24 | SQ6: C22 | SR6: C23 | SS6: C24 | ST6: C33 | SU6: C34 | SV6: C35 | SW6: C33 | SX6: C34 | SY6: C35 | SZ6: C33 | TA6: C34 | TB6: C35 | TC6: C33 | TD6: C34 | TE6: C35 | TF6: C33 | TG6: C34 | TH6: C35 | TI6: C33 | TJ6: C34 | TK6: C35 | TL6: C33 | TM6: C34 | TN6: C35 | TO6: C33 | TP6: C34 | TQ6: C35 | TR6: C33 | TS6: C34 | TT6: C35 | TU6: M1 | TV6: M2 | TW6: M3 | TX6: M4 | TY6: M5 | TZ6: M6 | UA6: M7 | UB6: M8 | UC6: M9 | VR6: A1 | VS6: A4 | VT6: A7 | VU6: A10 | VV6: A13 | VW6: A16 | VX6: B1 | VY6: B4 | VZ6: B7 | WA6: C1 | WB6: C4 | WC6: C7 | WD6: C10 | WE6: C22 | WF6: C33 | WG6: M1 | WH6: M4 | WI6: M7
A7: 1 | B7: =A7+1 -> 2 | C7: 3 | D7: =C7+1 -> 4 | E7: =D7+1 -> 5 | F7: =E7+1 -> 6 | G7: =F7+1 -> 7 | H7: =G7+1 -> 8 | I7: =H7+1 -> 9 | J7: =I7+1 -> 10 | K7: =J7+1 -> 11 | L7: =K7+1 -> 12 | M7: =L7+1 -> 13 | N7: =M7+1 -> 14 | O7: =N7+1 -> 15 | P7: =O7+1 -> 16 | Q7: =P7+1 -> 17 | R7: =Q7+1 -> 18 | S7: =R7+1 -> 19 | T7: =S7+1 -> 20 | U7: =T7+1 -> 21 | V7: =U7+1 -> 22 | W7: =V7+1 -> 23 | X7: =W7+1 -> 24 | Y7: =X7+1 -> 25 | Z7: =Y7+1 -> 26 | AA7: =Z7+1 -> 27 | AB7: =AA7+1 -> 28 | AC7: =AB7+1 -> 29 | AD7: =AC7+1 -> 30 | AE7: =AD7+1 -> 31 | AF7: =AE7+1 -> 32 | AG7: =AF7+1 -> 33 | AH7: =AG7+1 -> 34 | AI7: =AH7+1 -> 35 | AJ7: =AI7+1 -> 36 | AK7: =AJ7+1 -> 37 | AL7: =AK7+1 -> 38 | AM7: =AL7+1 -> 39 | AN7: =AM7+1 -> 40 | AO7: =AN7+1 -> 41 | AP7: =AO7+1 -> 42 | AQ7: =AP7+1 -> 43 | AR7: =AQ7+1 -> 44 | AS7: =AR7+1 -> 45 | AT7: =AS7+1 -> 46 | AU7: =AT7+1 -> 47 | AV7: =AU7+1 -> 48 | AW7: =AV7+1 -> 49 | AX7: =AW7+1 -> 50 | AY7: =AX7+1 -> 51 | AZ7: =AY7+1 -> 52 | BA7: =AZ7+1 -> 53 | BB7: =BA7+1 -> 54 | BC7: =BB7+1 -> 55 | BD7: =BC7+1 -> 56 | BE7: =BD7+1 -> 57 | BF7: =BE7+1 -> 58 | BG7: =BF7+1 -> 59 | BH7: =BG7+1 -> 60 | BI7: =BH7+1 -> 61 | BJ7: =BI7+1 -> 62 | BK7: =BJ7+1 -> 63 | BL7: =BK7+1 -> 64 | BM7: =BL7+1 -> 65 | BN7: =BM7+1 -> 66 | BO7: =BN7+1 -> 67 | BP7: =BO7+1 -> 68 | BQ7: =BP7+1 -> 69 | BR7: =BQ7+1 -> 70 | BS7: =BR7+1 -> 71 | BT7: =BS7+1 -> 72 | BU7: =BT7+1 -> 73 | BV7: =BU7+1 -> 74 | BW7: =BV7+1 -> 75 | BX7: =BW7+1 -> 76 | BY7: =BX7+1 -> 77 | BZ7: =BY7+1 -> 78 | CA7: =BZ7+1 -> 79 | CB7: =CA7+1 -> 80 | CC7: =CB7+1 -> 81 | CD7: =CC7+1 -> 82 | CE7: =CD7+1 -> 83 | CF7: =CE7+1 -> 84 | CG7: =CF7+1 -> 85 | CH7: =CG7+1 -> 86 | CI7: =CH7+1 -> 87 | CJ7: =CI7+1 -> 88 | CK7: =CJ7+1 -> 89 | CL7: =CK7+1 -> 90 | CM7: =CL7+1 -> 91 | CN7: =CM7+1 -> 92 | CO7: =CN7+1 -> 93 | CP7: =CO7+1 -> 94 | CQ7: =CP7+1 -> 95 | CR7: =CQ7+1 -> 96 | CS7: =CR7+1 -> 97 | CT7: =CS7+1 -> 98 | CU7: =CT7+1 -> 99 | CV7: =CU7+1 -> 100 | CW7: =CV7+1 -> 101 | CX7: =CW7+1 -> 102 | CY7: =CX7+1 -> 103 | CZ7: =CY7+1 -> 104 | DA7: =CZ7+1 -> 105 | DB7: =DA7+1 -> 106 | DC7: =DB7+1 -> 107 | DD7: =DC7+1 -> 108 | DE7: =DD7+1 -> 109 | DF7: =DE7+1 -> 110 | DG7: =DF7+1 -> 111 | DH7: =DG7+1 -> 112 | DI7: =DH7+1 -> 113 | DJ7: =DI7+1 -> 114 | DK7: =DJ7+1 -> 115 | DL7: =DK7+1 -> 116 | DM7: =DL7+1 -> 117 | DN7: =DM7+1 -> 118 | DO7: =DN7+1 -> 119 | DP7: =DO7+1 -> 120 | DQ7: =DP7+1 -> 121 | DR7: =DQ7+1 -> 122 | DS7: =DR7+1 -> 123 | DT7: =DS7+1 -> 124 | DU7: =DT7+1 -> 125 | DV7: =DU7+1 -> 126 | DW7: =DV7+1 -> 127 | DX7: =DW7+1 -> 128 | DY7: =DX7+1 -> 129 | DZ7: =DY7+1 -> 130 | EA7: =DZ7+1 -> 131 | EB7: =EA7+1 -> 132 | EC7: =EB7+1 -> 133 | ED7: =EC7+1 -> 134 | EE7: =ED7+1 -> 135 | EF7: =EE7+1 -> 136 | EG7: =EF7+1 -> 137 | EH7: =EG7+1 -> 138 | EI7: =EH7+1 -> 139 | EJ7: =EI7+1 -> 140 | EK7: =EJ7+1 -> 141 | EL7: =EK7+1 -> 142 | EM7: =EL7+1 -> 143 | EN7: =EM7+1 -> 144 | EO7: =EN7+1 -> 145 | EP7: =EO7+1 -> 146 | EQ7: =EP7+1 -> 147 | ER7: =EQ7+1 -> 148 | ES7: =ER7+1 -> 149 | ET7: =ES7+1 -> 150 | EU7: =ET7+1 -> 151 | EV7: =EU7+1 -> 152 | EW7: =EV7+1 -> 153 | EX7: =EW7+1 -> 154 | EY7: =EX7+1 -> 155 | EZ7: =EY7+1 -> 156 | FA7: =EZ7+1 -> 157 | FB7: =FA7+1 -> 158 | FC7: =FB7+1 -> 159 | FD7: =FC7+1 -> 160 | FE7: =FD7+1 -> 161 | FF7: =FE7+1 -> 162 | FG7: =FF7+1 -> 163 | FH7: =FG7+1 -> 164 | FI7: =FH7+1 -> 165 | FJ7: =FI7+1 -> 166 | FK7: =FJ7+1 -> 167 | FL7: =FK7+1 -> 168 | FM7: =FL7+1 -> 169 | FN7: =FM7+1 -> 170 | FO7: =FN7+1 -> 171 | FP7: =FO7+1 -> 172 | FQ7: =FP7+1 -> 173 | FR7: =FQ7+1 -> 174 | FS7: =FR7+1 -> 175 | FT7: =FS7+1 -> 176 | FU7: =FT7+1 -> 177 | FV7: =FU7+1 -> 178 | FW7: =FV7+1 -> 179 | FX7: =FW7+1 -> 180 | FY7: =FX7+1 -> 181 | FZ7: =FY7+1 -> 182 | GA7: =FZ7+1 -> 183 | GB7: =GA7+1 -> 184 | GC7: =GB7+1 -> 185 | GD7: =GC7+1 -> 186 | GE7: =GD7+1 -> 187 | GF7: =GE7+1 -> 188 | GG7: =GF7+1 -> 189 | GH7: =GG7+1 -> 190 | GI7: =GH7+1 -> 191 | GJ7: =GI7+1 -> 192 | GK7: =GJ7+1 -> 193 | GL7: =GK7+1 -> 194 | GM7: =GL7+1 -> 195 | GN7: =GM7+1 -> 196 | GO7: =GN7+1 -> 197 | GP7: =GO7+1 -> 198 | GQ7: =GP7+1 -> 199 | GR7: =GQ7+1 -> 200 | GS7: =GR7+1 -> 201 | GT7: =GS7+1 -> 202 | GU7: =GT7+1 -> 203 | GV7: =GU7+1 -> 204 | GW7: =GV7+1 -> 205 | GX7: =GW7+1 -> 206 | GY7: =GX7+1 -> 207 | GZ7: =GY7+1 -> 208 | HA7: =GZ7+1 -> 209 | HB7: =HA7+1 -> 210 | HC7: =HB7+1 -> 211 | HD7: =HC7+1 -> 212 | HE7: =HD7+1 -> 213 | HF7: =HE7+1 -> 214 | HG7: =HF7+1 -> 215 | HH7: =HG7+1 -> 216 | HI7: =HH7+1 -> 217 | HJ7: =HI7+1 -> 218 | HK7: =HJ7+1 -> 219 | HL7: =HK7+1 -> 220 | HM7: =HL7+1 -> 221 | HN7: =HM7+1 -> 222 | HO7: =HN7+1 -> 223 | HP7: =HO7+1 -> 224 | HQ7: =HP7+1 -> 225 | HR7: =HQ7+1 -> 226 | HS7: =HR7+1 -> 227 | HT7: =HS7+1 -> 228 | HU7: =HT7+1 -> 229 | HV7: =HU7+1 -> 230 | HW7: =HV7+1 -> 231 | HX7: =HW7+1 -> 232 | HY7: =HX7+1 -> 233 | HZ7: =HY7+1 -> 234 | IA7: =HZ7+1 -> 235 | IB7: =IA7+1 -> 236 | IC7: =IB7+1 -> 237 | ID7: =IC7+1 -> 238 | IE7: =ID7+1 -> 239 | IF7: =IE7+1 -> 240 | IG7: =IF7+1 -> 241 | IH7: =IG7+1 -> 242 | II7: =IH7+1 -> 243 | IJ7: =II7+1 -> 244 | IK7: =IJ7+1 -> 245 | IL7: =IK7+1 -> 246 | IM7: =IL7+1 -> 247 | IN7: =IM7+1 -> 248 | IO7: =IN7+1 -> 249 | IP7: =IO7+1 -> 250 | IQ7: =IP7+1 -> 251 | IR7: =IQ7+1 -> 252 | IS7: =IR7+1 -> 253 | IT7: =IS7+1 -> 254 | IU7: =IT7+1 -> 255 | IV7: =IU7+1 -> 256 | IW7: =IV7+1 -> 257 | IX7: =IW7+1 -> 258 | IY7: =IX7+1 -> 259 | IZ7: =IY7+1 -> 260 | JA7: =IZ7+1 -> 261 | JB7: =JA7+1 -> 262 | JC7: =JB7+1 -> 263 | JD7: =JC7+1 -> 264 | JE7: =JD7+1 -> 265 | JF7: =JE7+1 -> 266 | JG7: =JF7+1 -> 267 | JH7: =JG7+1 -> 268 | JI7: =JH7+1 -> 269 | JJ7: =JI7+1 -> 270 | JK7: =JJ7+1 -> 271 | JL7: =JK7+1 -> 272 | JM7: =JL7+1 -> 273 | JN7: =JM7+1 -> 274 | JO7: =JN7+1 -> 275 | JP7: =JO7+1 -> 276 | JQ7: =JP7+1 -> 277 | JR7: =JQ7+1 -> 278 | JS7: =JR7+1 -> 279 | JT7: =JS7+1 -> 280 | JU7: =JT7+1 -> 281 | JV7: =JU7+1 -> 282 | JW7: =JV7+1 -> 283 | JX7: =JW7+1 -> 284 | JY7: =JX7+1 -> 285 | JZ7: =JY7+1 -> 286 | KA7: =JZ7+1 -> 287 | KB7: =KA7+1 -> 288 | KC7: =KB7+1 -> 289 | KD7: =KC7+1 -> 290 | KE7: =KD7+1 -> 291 | KF7: =KE7+1 -> 292 | KG7: =KF7+1 -> 293 | KH7: =KG7+1 -> 294 | KI7: =KH7+1 -> 295 | KJ7: =KI7+1 -> 296 | KK7: =KJ7+1 -> 297 | KL7: =KK7+1 -> 298 | KM7: =KL7+1 -> 299 | KN7: =KM7+1 -> 300 | KO7: =KN7+1 -> 301 | KP7: =KO7+1 -> 302 | KQ7: =KP7+1 -> 303 | KR7: =KQ7+1 -> 304 | KS7: =KR7+1 -> 305 | KT7: =KS7+1 -> 306 | KU7: =KT7+1 -> 307 | KV7: =KU7+1 -> 308 | KW7: =KV7+1 -> 309 | KX7: =KW7+1 -> 310 | KY7: =KX7+1 -> 311 | KZ7: =KY7+1 -> 312 | LA7: =KZ7+1 -> 313 | LB7: =LA7+1 -> 314 | LC7: =LB7+1 -> 315 | LD7: =LC7+1 -> 316 | LE7: =LD7+1 -> 317 | LF7: =LE7+1 -> 318 | LG7: =LF7+1 -> 319 | LH7: =LG7+1 -> 320 | LI7: =LH7+1 -> 321 | LJ7: =LI7+1 -> 322 | LK7: =LJ7+1 -> 323 | LL7: =LK7+1 -> 324 | LM7: =LL7+1 -> 325 | LN7: =LM7+1 -> 326 | LO7: =LN7+1 -> 327 | LP7: =LO7+1 -> 328 | LQ7: =LP7+1 -> 329 | LR7: =LQ7+1 -> 330 | LS7: =LR7+1 -> 331 | LT7: =LS7+1 -> 332 | LU7: =LT7+1 -> 333 | LV7: =LU7+1 -> 334 | LW7: =LV7+1 -> 335 | LX7: =LW7+1 -> 336 | LY7: =LX7+1 -> 337 | LZ7: =LY7+1 -> 338 | MA7: =LZ7+1 -> 339 | MB7: =MA7+1 -> 340 | MC7: =MB7+1 -> 341 | MD7: =MC7+1 -> 342 | ME7: =MD7+1 -> 343 | MF7: =ME7+1 -> 344 | MG7: =MF7+1 -> 345 | MH7: =MG7+1 -> 346 | MI7: =MH7+1 -> 347 | MJ7: =MI7+1 -> 348 | MK7: =MJ7+1 -> 349 | ML7: =MK7+1 -> 350 | MM7: =ML7+1 -> 351 | MN7: =MM7+1 -> 352 | MO7: =MN7+1 -> 353 | MP7: =MO7+1 -> 354 | MQ7: =MP7+1 -> 355 | MR7: =MQ7+1 -> 356 | MS7: =MR7+1 -> 357 | MT7: =MS7+1 -> 358 | MU7: =MT7+1 -> 359 | MV7: =MU7+1 -> 360 | MW7: =MV7+1 -> 361 | MX7: =MW7+1 -> 362 | MY7: =MX7+1 -> 363 | MZ7: =MY7+1 -> 364 | NA7: =MZ7+1 -> 365 | NB7: =NA7+1 -> 366 | NC7: =NB7+1 -> 367 | ND7: =NC7+1 -> 368 | NE7: =ND7+1 -> 369 | NF7: =NE7+1 -> 370 | NG7: =NF7+1 -> 371 | NH7: =NG7+1 -> 372 | NI7: =NH7+1 -> 373 | NJ7: =NI7+1 -> 374 | NK7: =NJ7+1 -> 375 | NL7: =NK7+1 -> 376 | NM7: =NL7+1 -> 377 | NN7: =NM7+1 -> 378 | NO7: =NN7+1 -> 379 | NP7: =NO7+1 -> 380 | NQ7: =NP7+1 -> 381 | NR7: =NQ7+1 -> 382 | NS7: =NR7+1 -> 383 | NT7: =NS7+1 -> 384 | NU7: =NT7+1 -> 385 | NV7: =NU7+1 -> 386 | NW7: =NV7+1 -> 387 | NX7: =NW7+1 -> 388 | NY7: =NX7+1 -> 389 | NZ7: =NY7+1 -> 390 | OA7: =NZ7+1 -> 391 | OB7: =OA7+1 -> 392 | OC7: =OB7+1 -> 393 | OD7: =OC7+1 -> 394 | OE7: =OD7+1 -> 395 | OF7: =OE7+1 -> 396 | OG7: =OF7+1 -> 397 | OH7: =OG7+1 -> 398 | OI7: =OH7+1 -> 399 | OJ7: =OI7+1 -> 400 | OK7: =OJ7+1 -> 401 | OL7: =OK7+1 -> 402 | OM7: =OL7+1 -> 403 | ON7: =OM7+1 -> 404 | OO7: =ON7+1 -> 405 | OP7: =OO7+1 -> 406 | OQ7: =OP7+1 -> 407 | OR7: =OQ7+1 -> 408 | OS7: =OR7+1 -> 409 | OT7: =OS7+1 -> 410 | OU7: =OT7+1 -> 411 | OV7: =OU7+1 -> 412 | OW7: =OV7+1 -> 413 | OX7: =OW7+1 -> 414 | OY7: =OX7+1 -> 415 | OZ7: =OY7+1 -> 416 | PA7: =OZ7+1 -> 417 | PB7: =PA7+1 -> 418 | PC7: =PB7+1 -> 419 | PD7: =PC7+1 -> 420 | PE7: =PD7+1 -> 421 | PF7: =PE7+1 -> 422 | PG7: =PF7+1 -> 423 | PH7: =PG7+1 -> 424 | PI7: =PH7+1 -> 425 | PJ7: =PI7+1 -> 426 | PK7: =PJ7+1 -> 427 | PL7: =PK7+1 -> 428 | PM7: =PL7+1 -> 429 | PN7: =PM7+1 -> 430 | PO7: =PN7+1 -> 431 | PP7: =PO7+1 -> 432 | PQ7: =PP7+1 -> 433 | PR7: =PQ7+1 -> 434 | PS7: =PR7+1 -> 435 | PT7: =PS7+1 -> 436 | PU7: =PT7+1 -> 437 | PV7: =PU7+1 -> 438 | PW7: =PV7+1 -> 439 | PX7: =PW7+1 -> 440 | PY7: =PX7+1 -> 441 | PZ7: =PY7+1 -> 442 | QA7: =PZ7+1 -> 443 | QB7: =QA7+1 -> 444 | QC7: =QB7+1 -> 445 | QD7: =QC7+1 -> 446 | QE7: =QD7+1 -> 447 | QF7: =QE7+1 -> 448 | QG7: =QF7+1 -> 449 | QH7: =QG7+1 -> 450 | QI7: =QH7+1 -> 451 | QJ7: =QI7+1 -> 452 | QK7: =QJ7+1 -> 453 | QL7: =QK7+1 -> 454 | QM7: =QL7+1 -> 455 | QN7: =QM7+1 -> 456 | QO7: =QN7+1 -> 457 | QP7: =QO7+1 -> 458 | QQ7: =QP7+1 -> 459 | QR7: =QQ7+1 -> 460 | QS7: =QR7+1 -> 461 | QT7: =QS7+1 -> 462 | QU7: =QT7+1 -> 463 | QV7: =QU7+1 -> 464 | QW7: =QV7+1 -> 465 | QX7: =QW7+1 -> 466 | QY7: =QX7+1 -> 467 | QZ7: =QY7+1 -> 468 | RA7: =QZ7+1 -> 469 | RB7: =RA7+1 -> 470 | RC7: =RB7+1 -> 471 | RD7: =RC7+1 -> 472 | RE7: =RD7+1 -> 473 | RF7: =RE7+1 -> 474 | RG7: =RF7+1 -> 475 | RH7: =RG7+1 -> 476 | RI7: =RH7+1 -> 477 | RJ7: =RI7+1 -> 478 | RK7: =RJ7+1 -> 479 | RL7: =RK7+1 -> 480 | RM7: =RL7+1 -> 481 | RN7: =RM7+1 -> 482 | RO7: =RN7+1 -> 483 | RP7: =RO7+1 -> 484 | RQ7: =RP7+1 -> 485 | RR7: =RQ7+1 -> 486 | RS7: =RR7+1 -> 487 | RT7: =RS7+1 -> 488 | RU7: =RT7+1 -> 489 | RV7: =RU7+1 -> 490 | RW7: =RV7+1 -> 491 | RX7: =RW7+1 -> 492 | RY7: =RX7+1 -> 493 | RZ7: =RY7+1 -> 494 | SA7: =RZ7+1 -> 495 | SB7: =SA7+1 -> 496 | SC7: =SB7+1 -> 497 | SD7: =SC7+1 -> 498 | SE7: =SD7+1 -> 499 | SF7: =SE7+1 -> 500 | SG7: =SF7+1 -> 501 | SH7: =SG7+1 -> 502 | SI7: =SH7+1 -> 503 | SJ7: =SI7+1 -> 504 | SK7: =SJ7+1 -> 505 | SL7: =SK7+1 -> 506 | SM7: =SL7+1 -> 507 | SN7: =SM7+1 -> 508 | SO7: =SN7+1 -> 509 | SP7: =SO7+1 -> 510 | SQ7: =SP7+1 -> 511 | SR7: =SQ7+1 -> 512 | SS7: =SR7+1 -> 513 | ST7: =SS7+1 -> 514 | SU7: =ST7+1 -> 515 | SV7: =SU7+1 -> 516 | SW7: =SV7+1 -> 517 | SX7: =SW7+1 -> 518 | SY7: =SX7+1 -> 519 | SZ7: =SY7+1 -> 520 | TA7: =SZ7+1 -> 521 | TB7: =TA7+1 -> 522 | TC7: =TB7+1 -> 523 | TD7: =TC7+1 -> 524 | TE7: =TD7+1 -> 525 | TF7: =TE7+1 -> 526 | TG7: =TF7+1 -> 527 | TH7: =TG7+1 -> 528 | TI7: =TH7+1 -> 529 | TJ7: =TI7+1 -> 530 | TK7: =TJ7+1 -> 531 | TL7: =TK7+1 -> 532 | TM7: =TL7+1 -> 533 | TN7: =TM7+1 -> 534 | TO7: =TN7+1 -> 535 | TP7: =TO7+1 -> 536 | TQ7: =TP7+1 -> 537 | TR7: =TQ7+1 -> 538 | TS7: =TR7+1 -> 539 | TT7: =TS7+1 -> 540 | TU7: =TT7+1 -> 541 | TV7: =TU7+1 -> 542 | TW7: =TV7+1 -> 543 | TX7: =TW7+1 -> 544 | TY7: =TX7+1 -> 545 | TZ7: =TY7+1 -> 546 | UA7: =TZ7+1 -> 547 | UB7: =UA7+1 -> 548 | UC7: =UB7+1 -> 549 | UD7: =UC7+1 -> 550 | UE7: =UD7+1 -> 551 | UF7: =UE7+1 -> 552 | UG7: =UF7+1 -> 553 | UH7: =UG7+1 -> 554 | UI7: =UH7+1 -> 555 | UJ7: =UI7+1 -> 556 | UK7: =UJ7+1 -> 557 | UL7: =UK7+1 -> 558 | UM7: =UL7+1 -> 559 | UN7: =UM7+1 -> 560 | UO7: =UN7+1 -> 561 | UP7: =UO7+1 -> 562 | UQ7: =UP7+1 -> 563 | UR7: =UQ7+1 -> 564 | US7: =UR7+1 -> 565 | UT7: =US7+1 -> 566 | UU7: =UT7+1 -> 567 | UV7: =UU7+1 -> 568 | UW7: =UV7+1 -> 569 | UX7: =UW7+1 -> 570 | UY7: =UX7+1 -> 571 | UZ7: =UY7+1 -> 572 | VA7: =UZ7+1 -> 573 | VB7: =VA7+1 -> 574 | VC7: =VB7+1 -> 575 | VD7: =VC7+1 -> 576 | VE7: =VD7+1 -> 577 | VF7: =VE7+1 -> 578 | VG7: =VF7+1 -> 579 | VH7: =VG7+1 -> 580 | VI7: =VH7+1 -> 581 | VJ7: =VI7+1 -> 582 | VK7: =VJ7+1 -> 583 | VL7: =VK7+1 -> 584 | VM7: =VL7+1 -> 585 | VN7: =VM7+1 -> 586 | VO7: =VN7+1 -> 587 | VP7: =VO7+1 -> 588 | VQ7: =VP7+1 -> 589 | VR7: =VQ7+1 -> 590 | VS7: =VR7+1 -> 591 | VT7: =VS7+1 -> 592 | VU7: =VT7+1 -> 593 | VV7: =VU7+1 -> 594 | VW7: =VV7+1 -> 595 | VX7: =VW7+1 -> 596 | VY7: =VX7+1 -> 597 | VZ7: =VY7+1 -> 598 | WA7: =VZ7+1 -> 599 | WB7: =WA7+1 -> 600 | WC7: =WB7+1 -> 601 | WD7: =WC7+1 -> 602 | WE7: =WD7+1 -> 603 | WF7: =WE7+1 -> 604 | WG7: =WF7+1 -> 605 | WH7: =WG7+1 -> 606 | WI7: =WH7+1 -> 607 | WJ7: =WI7+1 -> 608 | WK7: =WJ7+1 -> 609 | WL7: =WK7+1 -> 610 | WM7: =WL7+1 -> 611 | WN7: =WM7+1 -> 612 | WO7: =WN7+1 -> 613 | WP7: =WO7+1 -> 614 | WQ7: =WP7+1 -> 615 | WR7: =WQ7+1 -> 616 | WS7: =WR7+1 -> 617 | WT7: =WS7+1 -> 618 | WU7: =WT7+1 -> 619 | WV7: =WU7+1 -> 620 | WW7: =WV7+1 -> 621 | WX7: =WW7+1 -> 622 | WY7: =WX7+1 -> 623 | WZ7: =WY7+1 -> 624 | XA7: =WZ7+1 -> 625 | XB7: =XA7+1 -> 626 | XC7: =XB7+1 -> 627 | XD7: =XC7+1 -> 628 | XE7: =XD7+1 -> 629 | XF7: =XE7+1 -> 630 | XG7: =XF7+1 -> 631 | XH7: =XG7+1 -> 632
A8: 1 | B8: RAP001 | D8: X TGB 1 | E8: AHMAD SAIFUL FAKHRIZAL | I8: 15160001 | J8: 85 | K8: 80 | L8: B | M8: 85 | N8: 80 | O8: B | P8: 81 | Q8: 79 | R8: B | S8: 86 | T8: 85 | U8: A | V8: 81.78333333 | W8: 75.25 | X8: B | Y8: 79 | Z8: 79 | AA8: B | AB8: 85.4025 | AC8: 85.14285714 | AD8: B | AE8: 81.66666667 | AF8: 86.66666667 | AG8: B | AH8: 92.3 | AI8: 88.875 | AJ8: A | AK8: 77.752 | AL8: 75.25 | AM8: B | AN8: 76.825 | AO8: 75.625 | AP8: B | AQ8: 90.11666667 | AR8: 87.71428571 | AS8: B | AT8: 78 | AU8: 78 | AV8: B | AW8: 80.05 | AX8: 79.75 | AY8: B | AZ8: 78 | BA8: 78 | BB8: B | BC8: 85.3 | BD8: 83.2 | BE8: B | BF8: 85 | BG8: 89 | BH8: B | BI8: - | BJ8: - | BK8: - | BL8: - | BM8: - | BN8: - | BO8: - | BP8: - | BQ8: - | BR8: - | BS8: - | BT8: - | BU8: - | BV8: - | BW8: - | BX8: - | BY8: - | BZ8: - | CA8: - | CB8: - | CC8: - | CD8: - | CE8: - | CF8: - | CG8: - | CH8: - | CI8: - | CJ8: - | CK8: - | CL8: - | CM8: 87.86666667 | CN8: 88.5 | CO8: A | CP8: - | CQ8: - | CR8: - | CS8: - | CT8: - | CU8: - | CV8: 85 | CW8: 80 | CX8: B | CY8: 85 | CZ8: 80 | DA8: B | DB8: 81 | DC8: 79 | DD8: B | DE8: 86 | DF8: 85 | DG8: A | DH8: 81.78333333 | DI8: 75.25 | DJ8: B | DK8: 79 | DL8: 79 | DM8: B | DN8: 85.4025 | DO8: 85.14285714 | DP8: B | DQ8: 81.66666667 | DR8: 86.66666667 | DS8: B | DT8: 92.3 | DU8: 88.875 | DV8: A | DW8: 77.752 | DX8: 75.25 | DY8: B | DZ8: 76.825 | EA8: 75.625 | EB8: B | EC8: 90.11666667 | ED8: 87.71428571 | EE8: B | EF8: 78 | EG8: 78 | EH8: B | EI8: 80.05 | EJ8: 79.75 | EK8: B | EL8: 78 | EM8: 78 | EN8: B | EO8: 85.3 | EP8: 83.2 | EQ8: B | ER8: 85 | ES8: 89 | ET8: B | EU8: - | EV8: - | EW8: - | EX8: - | EY8: - | EZ8: - | FA8: - | FB8: - | FC8: - | FD8: - | FE8: - | FF8: - | FG8: - | FH8: - | FI8: - | FJ8: - | FK8: - | FL8: - | FM8: - | FN8: - | FO8: - | FP8: - | FQ8: - | FR8: - | FS8: - | FT8: - | FU8: - | FV8: - | FW8: - | FX8: - | FY8: 87.86666667 | FZ8: 88.5 | GA8: A | GB8: - | GC8: - | GD8: - | GE8: - | GF8: - | GG8: - | VR8: =ROUND(AVERAGEIF($J$6:$TX$6,$VR$6,J8:TY8),2) -> 85 | VS8: =ROUND(AVERAGEIF($J$6:$TX$6,$VS$6,J8:TY8),2) -> 85 | VT8: =ROUND(AVERAGEIF($J$6:$TX$6,$VT$6,J8:TY8),2) -> 81 | VU8: =ROUND(AVERAGEIF($J$6:$TX$6,$VU$6,J8:TY8),2) -> 86 | VV8: =ROUND(AVERAGEIF($J$6:$TX$6,$VV$6,J8:TY8),2) -> 81.78 | VW8: =ROUND(AVERAGEIF($J$6:$TX$6,$VW$6,J8:TY8),2) -> 79 | VX8: =ROUND(AVERAGEIF($J$6:$TX$6,$VX$6,J8:TY8),2) -> 85.4 | VY8: =ROUND(AVERAGEIF($J$6:$TX$6,$VY$6,J8:TY8),2) -> 81.67 | VZ8: =ROUND(AVERAGEIF($J$6:$TX$6,$VZ$6,J8:TY8),2) -> 92.3 | WA8: =ROUND(AVERAGEIF($J$6:$TX$6,$WA$6,J8:TY8),2) -> 77.75 | WB8: =ROUND(AVERAGEIF($J$6:$TX$6,$WB$6,J8:TY8),2) -> 76.83 | WC8: =ROUND(AVERAGEIF($J$6:$TX$6,$WC$6,J8:TY8),2) -> 90.12 | WD8: =ROUND(AVERAGEIF($J$6:$TX$6,$WD$6,J8:TY8),2) -> 78 | WE8: =ROUND(AVERAGEIF($J$6:$TX$6,$WE$6,J8:TY8),2) -> 82.09 | WF8: =ROUND(AVERAGEIF($J$6:$TX$6,$WF$6,J8:TY8),2) ->  | WG8: =ROUND(AVERAGEIF($J$6:$TX$6,$WG$6,J8:TY8),2) -> 87.87 | WH8: =ROUND(AVERAGEIF($J$6:$TX$6,$WH$6,J8:TY8),2) ->  | WI8: =ROUND(AVERAGEIF($J$6:$TX$6,$WI$6,J8:TY8),2) ->  | WK8: =SUMIF($J$5:$CU$5,"P1",J8:CU8) -> 1496.062833 | WL8: =COUNT(J8:CU8)-COUNTIF(J8:CU8,"-")/3 -> 24 | WM8: =AVERAGEIF($J$5:$CU$5,"P1",J8:CU8) -> 83.11460185 | WN8: =RANK(WM8,$WM$8:$WM$44) -> 5 | WO8: =SUMIF($CV$5:$GG$5,"P2",CV8:GG8) -> 1496.062833 | WP8: =COUNT(CV8:GG8)-COUNTIF(CV8:GG8,"-")/3 -> 24 | WQ8: =AVERAGEIF($CV$5:$GG$5,"P2",CV8:GG8) -> 83.11460185 | WR8: =RANK(WQ8,$WQ$8:$WQ$44) -> 5
A9: 2 | B9: RAP002 | D9: X TGB 1 | E9: ANAS NASRULLOH | I9: 15160002 | J9: 80 | K9: 80 | L9: B | M9: 80 | N9: 80 | O9: B | P9: 78 | Q9: 77 | R9: B | S9: 83 | T9: 85 | U9: A | V9: 77.93333333 | W9: 76 | X9: B | Y9: 78 | Z9: 78 | AA9: B | AB9: 80.6125 | AC9: 81.42857143 | AD9: B | AE9: 81.66666667 | AF9: 86.66666667 | AG9: B | AH9: 91.35 | AI9: 89.5 | AJ9: A | AK9: 76.79333333 | AL9: 75.125 | AM9: B | AN9: 75.05 | AO9: 77.1 | AP9: B | AQ9: 78.56666667 | AR9: 78.14285714 | AS9: B | AT9: 78 | AU9: 78 | AV9: B | AW9: 79.23333333 | AX9: 79.75 | AY9: B | AZ9: 78 | BA9: 78 | BB9: B | BC9: 85.125 | BD9: 83 | BE9: B | BF9: 83 | BG9: 82 | BH9: B | BI9: - | BJ9: - | BK9: - | BL9: - | BM9: - | BN9: - | BO9: - | BP9: - | BQ9: - | BR9: - | BS9: - | BT9: - | BU9: - | BV9: - | BW9: - | BX9: - | BY9: - | BZ9: - | CA9: - | CB9: - | CC9: - | CD9: - | CE9: - | CF9: - | CG9: - | CH9: - | CI9: - | CJ9: - | CK9: - | CL9: - | CM9: 80.75 | CN9: 77 | CO9: B | CP9: - | CQ9: - | CR9: - | CS9: - | CT9: - | CU9: - | CV9: 80 | CW9: 80 | CX9: B | CY9: 80 | CZ9: 80 | DA9: B | DB9: 78 | DC9: 77 | DD9: B | DE9: 83 | DF9: 85 | DG9: A | DH9: 77.93333333 | DI9: 76 | DJ9: B | DK9: 78 | DL9: 78 | DM9: B | DN9: 80.6125 | DO9: 81.42857143 | DP9: B | DQ9: 81.66666667 | DR9: 86.66666667 | DS9: B | DT9: 91.35 | DU9: 89.5 | DV9: A | DW9: 76.79333333 | DX9: 75.125 | DY9: B | DZ9: 75.05 | EA9: 77.1 | EB9: B | EC9: 78.56666667 | ED9: 78.14285714 | EE9: B | EF9: 78 | EG9: 78 | EH9: B | EI9: 79.23333333 | EJ9: 79.75 | EK9: B | EL9: 78 | EM9: 78 | EN9: B | EO9: 85.125 | EP9: 83 | EQ9: B | ER9: 83 | ES9: 82 | ET9: B | EU9: - | EV9: - | EW9: - | EX9: - | EY9: - | EZ9: - | FA9: - | FB9: - | FC9: - | FD9: - | FE9: - | FF9: - | FG9: - | FH9: - | FI9: - | FJ9: - | FK9: - | FL9: - | FM9: - | FN9: - | FO9: - | FP9: - | FQ9: - | FR9: - | FS9: - | FT9: - | FU9: - | FV9: - | FW9: - | FX9: - | FY9: 80.75 | FZ9: 77 | GA9: B | GB9: - | GC9: - | GD9: - | GE9: - | GF9: - | GG9: - | VR9: 80 | VS9: 80 | VT9: 78 | VU9: 83 | VV9: 77.93 | VW9: 78 | VX9: 80.61 | VY9: 81.67 | VZ9: 91.35 | WA9: 76.79 | WB9: 75.05 | WC9: 78.57 | WD9: 78 | WE9: 81.34 | WG9: 80.75 | WK9: =SUMIF($J$5:$CU$5,"P1",J9:CU9) -> 1445.080833 | WL9: =COUNT(J9:CU9)-COUNTIF(J9:CU9,"-")/3 -> 24 | WM9: =AVERAGEIF($J$5:$CU$5,"P1",J9:CU9) -> 80.28226852 | WN9: =RANK(WM9,$WM$8:$WM$44) -> 26 | WO9: =SUMIF($CV$5:$GG$5,"P2",CV9:GG9) -> 1445.080833 | WP9: =COUNT(CV9:GG9)-COUNTIF(CV9:GG9,"-")/3 -> 24 | WQ9: =AVERAGEIF($CV$5:$GG$5,"P2",CV9:GG9) -> 80.28226852 | WR9: =RANK(WQ9,$WQ$8:$WQ$44) -> 26
A10: 3 | B10: RAP003 | D10: X TGB 1 | E10: ANDI | I10: 15160003 | J10: 85 | K10: 80 | L10: B | M10: 85 | N10: 80 | O10: B | P10: 75 | Q10: 77 | R10: B | S10: 80 | T10: 80 | U10: B | V10: 75.91666667 | W10: 75 | X10: B | Y10: 79 | Z10: 79 | AA10: B | AB10: 75.8125 | AC10: 77.14285714 | AD10: B | AE10: 81.66666667 | AF10: 85 | AG10: B | AH10: 90.65 | AI10: 88.25 | AJ10: A | AK10: 76.09133333 | AL10: 75.375 | AM10: B | AN10: 75.025 | AO10: 83.375 | AP10: B | AQ10: 78.56666667 | AR10: 78.14285714 | AS10: B | AT10: 76 | AU10: 76 | AV10: B | AW10: 78.93333333 | AX10: 79.75 | AY10: B | AZ10: 76 | BA10: 76 | BB10: B | BC10: 80.225 | BD10: 79.4 | BE10: B | BF10: 65 | BG10: 65 | BH10: B | BI10: - | BJ10: - | BK10: - | BL10: - | BM10: - | BN10: - | BO10: - | BP10: - | BQ10: - | BR10: - | BS10: - | BT10: - | BU10: - | BV10: - | BW10: - | BX10: - | BY10: - | BZ10: - | CA10: - | CB10: - | CC10: - | CD10: - | CE10: - | CF10: - | CG10: - | CH10: - | CI10: - | CJ10: - | CK10: - | CL10: - | CM10: 83.76666667 | CN10: 82.5 | CO10: B | CP10: - | CQ10: - | CR10: - | CS10: - | CT10: - | CU10: - | CV10: 85 | CW10: 80 | CX10: B | CY10: 85 | CZ10: 80 | DA10: B | DB10: 75 | DC10: 77 | DD10: B | DE10: 80 | DF10: 80 | DG10: B | DH10: 75.91666667 | DI10: 75 | DJ10: B | DK10: 79 | DL10: 79 | DM10: B | DN10: 75.8125 | DO10: 77.14285714 | DP10: B | DQ10: 81.66666667 | DR10: 85 | DS10: B | DT10: 90.65 | DU10: 88.25 | DV10: A | DW10: 76.09133333 | DX10: 75.375 | DY10: B | DZ10: 75.025 | EA10: 83.375 | EB10: B | EC10: 78.56666667 | ED10: 78.14285714 | EE10: B | EF10: 76 | EG10: 76 | EH10: B | EI10: 78.93333333 | EJ10: 79.75 | EK10: B | EL10: 76 | EM10: 76 | EN10: B | EO10: 80.225 | EP10: 79.4 | EQ10: B | ER10: 65 | ES10: 65 | ET10: B | EU10: - | EV10: - | EW10: - | EX10: - | EY10: - | EZ10: - | FA10: - | FB10: - | FC10: - | FD10: - | FE10: - | FF10: - | FG10: - | FH10: - | FI10: - | FJ10: - | FK10: - | FL10: - | FM10: - | FN10: - | FO10: - | FP10: - | FQ10: - | FR10: - | FS10: - | FT10: - | FU10: - | FV10: - | FW10: - | FX10: - | FY10: 83.76666667 | FZ10: 82.5 | GA10: B | GB10: - | GC10: - | GD10: - | GE10: - | GF10: - | GG10: - | VR10: 85 | VS10: 85 | VT10: 75 | VU10: 80 | VV10: 75.92 | VW10: 79 | VX10: 75.81 | VY10: 81.67 | VZ10: 90.65 | WA10: 76.09 | WB10: 75.03 | WC10: 78.57 | WD10: 76 | WE10: 75.04 | WG10: 83.77 | WK10: 1417.653833 | WL10: 24 | WM10: 78.7585463 | WN10: 35 | WO10: 1417.653833 | WP10: 24 | WQ10: 78.7585463 | WR10: 35
A11: 4 | B11: RAP004 | D11: X TGB 1 | E11: ARI HASTUTI ANDINI PITALOKA | I11: 15160004 | J11: 85 | K11: 80 | L11: B | M11: 85 | N11: 80 | O11: B | P11: 79 | Q11: 77 | R11: B | S11: 83 | T11: 85 | U11: B | V11: 80.75 | W11: 76.25 | X11: B | Y11: 78 | Z11: 78 | AA11: B | AB11: 78.47 | AC11: 78.28571429 | AD11: B | AE11: 81.66666667 | AF11: 86.66666667 | AG11: B | AH11: 89.05 | AI11: 87 | AJ11: A | AK11: 75.92333333 | AL11: 75.25 | AM11: B | AN11: 75.025 | AO11: 79.475 | AP11: B | AQ11: 78.1 | AR11: 78.14285714 | AS11: B | AT11: 76 | AU11: 76 | AV11: B | AW11: 79.93333333 | AX11: 78.5 | AY11: B | AZ11: 76 | BA11: 76 | BB11: B | BC11: 83.9 | BD11: 81.6 | BE11: B | BF11: 77 | BG11: 81 | BH11: B | BI11: - | BJ11: - | BK11: - | BL11: - | BM11: - | BN11: - | BO11: - | BP11: - | BQ11: - | BR11: - | BS11: - | BT11: - | BU11: - | BV11: - | BW11: - | BX11: - | BY11: - | BZ11: - | CA11: - | CB11: - | CC11: - | CD11: - | CE11: - | CF11: - | CG11: - | CH11: - | CI11: - | CJ11: - | CK11: - | CL11: - | CM11: 82.55 | CN11: 72.5 | CO11: B | CP11: - | CQ11: - | CR11: - | CS11: - | CT11: - | CU11: - | CV11: 85 | CW11: 80 | CX11: B | CY11: 85 | CZ11: 80 | DA11: B | DB11: 79 | DC11: 77 | DD11: B | DE11: 83 | DF11: 85 | DG11: B | DH11: 80.75 | DI11: 76.25 | DJ11: B | DK11: 78 | DL11: 78 | DM11: B | DN11: 78.47 | DO11: 78.28571429 | DP11: B | DQ11: 81.66666667 | DR11: 86.66666667 | DS11: B | DT11: 89.05 | DU11: 87 | DV11: A | DW11: 75.92333333 | DX11: 75.25 | DY11: B | DZ11: 75.025 | EA11: 79.475 | EB11: B | EC11: 78.1 | ED11: 78.14285714 | EE11: B | EF11: 76 | EG11: 76 | EH11: B | EI11: 79.93333333 | EJ11: 78.5 | EK11: B | EL11: 76 | EM11: 76 | EN11: B | EO11: 83.9 | EP11: 81.6 | EQ11: B | ER11: 77 | ES11: 81 | ET11: B | EU11: - | EV11: - | EW11: - | EX11: - | EY11: - | EZ11: - | FA11: - | FB11: - | FC11: - | FD11: - | FE11: - | FF11: - | FG11: - | FH11: - | FI11: - | FJ11: - | FK11: - | FL11: - | FM11: - | FN11: - | FO11: - | FP11: - | FQ11: - | FR11: - | FS11: - | FT11: - | FU11: - | FV11: - | FW11: - | FX11: - | FY11: 82.55 | FZ11: 72.5 | GA11: B | GB11: - | GC11: - | GD11: - | GE11: - | GF11: - | GG11: - | VR11: 85 | VS11: 85 | VT11: 79 | VU11: 83 | VV11: 80.75 | VW11: 78 | VX11: 78.47 | VY11: 81.67 | VZ11: 89.05 | WA11: 75.92 | WB11: 75.03 | WC11: 78.1 | WD11: 76 | WE11: 79.21 | WG11: 82.55 | WK11: 1444.368333 | WL11: 24 | WM11: 80.24268519 | WN11: 27 | WO11: 1444.368333 | WP11: 24 | WQ11: 80.24268519 | WR11: 27
A12: 5 | B12: RAP005 | D12: X TGB 1 | E12: AZHARI ARDIANSYAH NURSOLEH | I12: 15160005 | J12: 85 | K12: 81.125 | L12: B | M12: 85 | N12: 81.125 | O12: B | P12: 77 | Q12: 77 | R12: B | S12: 80 | T12: 83 | U12: B | V12: 80.61666667 | W12: 76.875 | X12: B | Y12: 75 | Z12: 75 | AA12: B | AB12: 75.6525 | AC12: 79.42857143 | AD12: B | AE12: 81.66666667 | AF12: 86.66666667 | AG12: B | AH12: 88.95 | AI12: 89.75 | AJ12: A | AK12: 74.41733333 | AL12: 75.25 | AM12: B | AN12: 74.65 | AO12: 81.8 | AP12: B | AQ12: 79.61666667 | AR12: 78 | AS12: B | AT12: 78 | AU12: 78 | AV12: B | AW12: 78.88333333 | AX12: 79.75 | AY12: B | AZ12: 78 | BA12: 78 | BB12: B | BC12: 83.55 | BD12: 82.2 | BE12: B | BF12: 77 | BG12: 77 | BH12: B | BI12: - | BJ12: - | BK12: - | BL12: - | BM12: - | BN12: - | BO12: - | BP12: - | BQ12: - | BR12: - | BS12: - | BT12: - | BU12: - | BV12: - | BW12: - | BX12: - | BY12: - | BZ12: - | CA12: - | CB12: - | CC12: - | CD12: - | CE12: - | CF12: - | CG12: - | CH12: - | CI12: - | CJ12: - | CK12: - | CL12: - | CM12: 75.15 | CN12: 82.5 | CO12: B | CP12: - | CQ12: - | CR12: - | CS12: - | CT12: - | CU12: - | CV12: 85 | CW12: 81.125 | CX12: B | CY12: 85 | CZ12: 81.125 | DA12: B | DB12: 77 | DC12: 77 | DD12: B | DE12: 80 | DF12: 83 | DG12: B | DH12: 80.61666667 | DI12: 76.875 | DJ12: B | DK12: 75 | DL12: 75 | DM12: B | DN12: 75.6525 | DO12: 79.42857143 | DP12: B | DQ12: 81.66666667 | DR12: 86.66666667 | DS12: B | DT12: 88.95 | DU12: 89.75 | DV12: A | DW12: 74.41733333 | DX12: 75.25 | DY12: B | DZ12: 74.65 | EA12: 81.8 | EB12: B | EC12: 79.61666667 | ED12: 78 | EE12: B | EF12: 78 | EG12: 78 | EH12: B | EI12: 78.88333333 | EJ12: 79.75 | EK12: B | EL12: 78 | EM12: 78 | EN12: B | EO12: 83.55 | EP12: 82.2 | EQ12: B | ER12: 77 | ES12: 77 | ET12: B | EU12: - | EV12: - | EW12: - | EX12: - | EY12: - | EZ12: - | FA12: - | FB12: - | FC12: - | FD12: - | FE12: - | FF12: - | FG12: - | FH12: - | FI12: - | FJ12: - | FK12: - | FL12: - | FM12: - | FN12: - | FO12: - | FP12: - | FQ12: - | FR12: - | FS12: - | FT12: - | FU12: - | FV12: - | FW12: - | FX12: - | FY12: 75.15 | FZ12: 82.5 | GA12: B | GB12: - | GC12: - | GD12: - | GE12: - | GF12: - | GG12: - | VR12: 85 | VS12: 85 | VT12: 77 | VU12: 80 | VV12: 80.62 | VW12: 75 | VX12: 75.65 | VY12: 81.67 | VZ12: 88.95 | WA12: 74.42 | WB12: 74.65 | WC12: 79.62 | WD12: 78 | WE12: 79.36 | WG12: 75.15 | WK12: 1428.153167 | WL12: 24 | WM12: 79.34184259 | WN12: 31 | WO12: 1428.153167 | WP12: 24 | WQ12: 79.34184259 | WR12: 31
A13: 6 | B13: RAP006 | D13: X TGB 1 | E13: AZZAH NURAZIZAH | I13: 15160006 | J13: 84.83333333 | K13: 85 | L13: B | M13: 84.83333333 | N13: 85 | O13: B | P13: 80 | Q13: 77 | R13: B | S13: 83 | T13: 85 | U13: B | V13: 83.76666667 | W13: 77.25 | X13: B | Y13: 78 | Z13: 78 | AA13: B | AB13: 77.1575 | AC13: 78.28571429 | AD13: B | AE13: 77.5 | AF13: 83.33333333 | AG13: B | AH13: 87.6 | AI13: 85.75 | AJ13: A | AK13: 73.97933333 | AL13: 75 | AM13: B | AN13: 75.275 | AO13: 82.425 | AP13: B | AQ13: 78.1 | AR13: 78 | AS13: B | AT13: 78 | AU13: 78 | AV13: B | AW13: 78.18333333 | AX13: 79.75 | AY13: B | AZ13: 78 | BA13: 78 | BB13: B | BC13: 86.175 | BD13: 84.2 | BE13: B | BF13: 81 | BG13: 85 | BH13: B | BI13: - | BJ13: - | BK13: - | BL13: - | BM13: - | BN13: - | BO13: - | BP13: - | BQ13: - | BR13: - | BS13: - | BT13: - | BU13: - | BV13: - | BW13: - | BX13: - | BY13: - | BZ13: - | CA13: - | CB13: - | CC13: - | CD13: - | CE13: - | CF13: - | CG13: - | CH13: - | CI13: - | CJ13: - | CK13: - | CL13: - | CM13: 89.3 | CN13: 87.75 | CO13: A | CP13: - | CQ13: - | CR13: - | CS13: - | CT13: - | CU13: - | CV13: 84.83333333 | CW13: 85 | CX13: B | CY13: 84.83333333 | CZ13: 85 | DA13: B | DB13: 80 | DC13: 77 | DD13: B | DE13: 83 | DF13: 85 | DG13: B | DH13: 83.76666667 | DI13: 77.25 | DJ13: B | DK13: 78 | DL13: 78 | DM13: B | DN13: 77.1575 | DO13: 78.28571429 | DP13: B | DQ13: 77.5 | DR13: 83.33333333 | DS13: B | DT13: 87.6 | DU13: 85.75 | DV13: A | DW13: 73.97933333 | DX13: 75 | DY13: B | DZ13: 75.275 | EA13: 82.425 | EB13: B | EC13: 78.1 | ED13: 78 | EE13: B | EF13: 78 | EG13: 78 | EH13: B | EI13: 78.18333333 | EJ13: 79.75 | EK13: B | EL13: 78 | EM13: 78 | EN13: B | EO13: 86.175 | EP13: 84.2 | EQ13: B | ER13: 81 | ES13: 85 | ET13: B | EU13: - | EV13: - | EW13: - | EX13: - | EY13: - | EZ13: - | FA13: - | FB13: - | FC13: - | FD13: - | FE13: - | FF13: - | FG13: - | FH13: - | FI13: - | FJ13: - | FK13: - | FL13: - | FM13: - | FN13: - | FO13: - | FP13: - | FQ13: - | FR13: - | FS13: - | FT13: - | FU13: - | FV13: - | FW13: - | FX13: - | FY13: 89.3 | FZ13: 87.75 | GA13: A | GB13: - | GC13: - | GD13: - | GE13: - | GF13: - | GG13: - | VR13: 84.83 | VS13: 84.83 | VT13: 80 | VU13: 83 | VV13: 83.77 | VW13: 78 | VX13: 77.16 | VY13: 77.5 | VZ13: 87.6 | WA13: 73.98 | WB13: 75.28 | WC13: 78.1 | WD13: 78 | WE13: 80.84 | WG13: 89.3 | WK13: 1454.7035 | WL13: 24 | WM13: 80.81686111 | WN13: 21 | WO13: 1454.7035 | WP13: 24 | WQ13: 80.81686111 | WR13: 21
A14: 7 | B14: RAP007 | D14: X TGB 1 | E14: BANGKIT HARTAWAN | I14: 15160007 | J14: 86 | K14: 85 | L14: B | M14: 86 | N14: 85 | O14: B | P14: 84 | Q14: 81 | R14: A | S14: 87 | T14: 86 | U14: A | V14: 82.81666667 | W14: 78.875 | X14: B | Y14: 78 | Z14: 78 | AA14: B | AB14: 77.39 | AC14: 78 | AD14: B | AE14: 81.66666667 | AF14: 86.66666667 | AG14: B | AH14: 90.7 | AI14: 89.625 | AJ14: A | AK14: 74.91066667 | AL14: 75.375 | AM14: B | AN14: 74.675 | AO14: 77.775 | AP14: B | AQ14: 84.51666667 | AR14: 83.28571429 | AS14: B | AT14: 78 | AU14: 78 | AV14: B | AW14: 85.1 | AX14: 82 | AY14: A | AZ14: 78 | BA14: 78 | BB14: B | BC14: 85.3 | BD14: 83.2 | BE14: B | BF14: 87 | BG14: 89 | BH14: B | BI14: - | BJ14: - | BK14: - | BL14: - | BM14: - | BN14: - | BO14: - | BP14: - | BQ14: - | BR14: - | BS14: - | BT14: - | BU14: - | BV14: - | BW14: - | BX14: - | BY14: - | BZ14: - | CA14: - | CB14: - | CC14: - | CD14: - | CE14: - | CF14: - | CG14: - | CH14: - | CI14: - | CJ14: - | CK14: - | CL14: - | CM14: 85.4 | CN14: 84 | CO14: B | CP14: - | CQ14: - | CR14: - | CS14: - | CT14: - | CU14: - | CV14: 86 | CW14: 85 | CX14: B | CY14: 86 | CZ14: 85 | DA14: B | DB14: 84 | DC14: 81 | DD14: A | DE14: 87 | DF14: 86 | DG14: A | DH14: 82.81666667 | DI14: 78.875 | DJ14: B | DK14: 78 | DL14: 78 | DM14: B | DN14: 77.39 | DO14: 78 | DP14: B | DQ14: 81.66666667 | DR14: 86.66666667 | DS14: B | DT14: 90.7 | DU14: 89.625 | DV14: A | DW14: 74.91066667 | DX14: 75.375 | DY14: B | DZ14: 74.675 | EA14: 77.775 | EB14: B | EC14: 84.51666667 | ED14: 83.28571429 | EE14: B | EF14: 78 | EG14: 78 | EH14: B | EI14: 85.1 | EJ14: 82 | EK14: A | EL14: 78 | EM14: 78 | EN14: B | EO14: 85.3 | EP14: 83.2 | EQ14: B | ER14: 87 | ES14: 89 | ET14: B | EU14: - | EV14: - | EW14: - | EX14: - | EY14: - | EZ14: - | FA14: - | FB14: - | FC14: - | FD14: - | FE14: - | FF14: - | FG14: - | FH14: - | FI14: - | FJ14: - | FK14: - | FL14: - | FM14: - | FN14: - | FO14: - | FP14: - | FQ14: - | FR14: - | FS14: - | FT14: - | FU14: - | FV14: - | FW14: - | FX14: - | FY14: 85.4 | FZ14: 84 | GA14: B | GB14: - | GC14: - | GD14: - | GE14: - | GF14: - | GG14: - | VR14: 86 | VS14: 86 | VT14: 84 | VU14: 87 | VV14: 82.82 | VW14: 78 | VX14: 77.39 | VY14: 81.67 | VZ14: 90.7 | WA14: 74.91 | WB14: 74.68 | WC14: 84.52 | WD14: 78 | WE14: 83.85 | WG14: 85.4 | WK14: 1486.475667 | WL14: 24 | WM14: 82.58198148 | WN14: 10 | WO14: 1486.475667 | WP14: 24 | WQ14: 82.58198148 | WR14: 10
A15: 8 | B15: RAP008 | D15: X TGB 1 | E15: BAYU SANTOSO | I15: 15160008 | J15: 79.68333333 | K15: 80 | L15: B | M15: 79.68333333 | N15: 80 | O15: B | P15: 79 | Q15: 77 | R15: B | S15: 83 | T15: 85 | U15: B | V15: 76.9 | W15: 76.375 | X15: B | Y15: 79 | Z15: 79 | AA15: B | AB15: 78.075 | AC15: 84.28571429 | AD15: B | AE15: 77.5 | AF15: 83.33333333 | AG15: B | AH15: 91.85 | AI15: 90.75 | AJ15: A | AK15: 66.43 | AL15: 75.125 | AM15: B | AN15: 75.125 | AO15: 78.525 | AP15: B | AQ15: 78.21666667 | AR15: 78.57142857 | AS15: B | AT15: 78 | AU15: 78 | AV15: B | AW15: 78.41666667 | AX15: 78.125 | AY15: B | AZ15: 78 | BA15: 78 | BB15: B | BC15: 84.775 | BD15: 82.6 | BE15: B | BF15: 77 | BG15: 77 | BH15: B | BI15: - | BJ15: - | BK15: - | BL15: - | BM15: - | BN15: - | BO15: - | BP15: - | BQ15: - | BR15: - | BS15: - | BT15: - | BU15: - | BV15: - | BW15: - | BX15: - | BY15: - | BZ15: - | CA15: - | CB15: - | CC15: - | CD15: - | CE15: - | CF15: - | CG15: - | CH15: - | CI15: - | CJ15: - | CK15: - | CL15: - | CM15: 82.55 | CN15: 84 | CO15: B | CP15: - | CQ15: - | CR15: - | CS15: - | CT15: - | CU15: - | CV15: 79.68333333 | CW15: 80 | CX15: B | CY15: 79.68333333 | CZ15: 80 | DA15: B | DB15: 79 | DC15: 77 | DD15: B | DE15: 83 | DF15: 85 | DG15: B | DH15: 76.9 | DI15: 76.375 | DJ15: B | DK15: 79 | DL15: 79 | DM15: B | DN15: 78.075 | DO15: 84.28571429 | DP15: B | DQ15: 77.5 | DR15: 83.33333333 | DS15: B | DT15: 91.85 | DU15: 90.75 | DV15: A | DW15: 66.43 | DX15: 75.125 | DY15: B | DZ15: 75.125 | EA15: 78.525 | EB15: B | EC15: 78.21666667 | ED15: 78.57142857 | EE15: B | EF15: 78 | EG15: 78 | EH15: B | EI15: 78.41666667 | EJ15: 78.125 | EK15: B | EL15: 78 | EM15: 78 | EN15: B | EO15: 84.775 | EP15: 82.6 | EQ15: B | ER15: 77 | ES15: 77 | ET15: B | EU15: - | EV15: - | EW15: - | EX15: - | EY15: - | EZ15: - | FA15: - | FB15: - | FC15: - | FD15: - | FE15: - | FF15: - | FG15: - | FH15: - | FI15: - | FJ15: - | FK15: - | FL15: - | FM15: - | FN15: - | FO15: - | FP15: - | FQ15: - | FR15: - | FS15: - | FT15: - | FU15: - | FV15: - | FW15: - | FX15: - | FY15: 82.55 | FZ15: 84 | GA15: B | GB15: - | GC15: - | GD15: - | GE15: - | GF15: - | GG15: - | VR15: 79.68 | VS15: 79.68 | VT15: 79 | VU15: 83 | VV15: 76.9 | VW15: 79 | VX15: 78.08 | VY15: 77.5 | VZ15: 91.85 | WA15: 66.43 | WB15: 75.13 | WC15: 78.22 | WD15: 78 | WE15: 79.55 | WG15: 82.55 | WK15: 1423.205 | WL15: 24 | WM15: 79.06694444 | WN15: 33 | WO15: 1423.205 | WP15: 24 | WQ15: 79.06694444 | WR15: 33
A16: 9 | B16: RAP009 | D16: X TGB 1 | E16: DEWI MUSTIKA SARI | I16: 15160009 | J16: 85.83333333 | K16: 85 | L16: B | M16: 85.83333333 | N16: 85 | O16: B | P16: 77 | Q16: 77 | R16: B | S16: 83 | T16: 85 | U16: B | V16: 83.76666667 | W16: 75.875 | X16: B | Y16: 75 | Z16: 75 | AA16: B | AB16: 76.3875 | AC16: 77.14285714 | AD16: B | AE16: 81.66666667 | AF16: 83.33333333 | AG16: B | AH16: 91 | AI16: 91.125 | AJ16: A | AK16: 74.56733333 | AL16: 75.5 | AM16: B | AN16: 74.5 | AO16: 77.4 | AP16: B | AQ16: 78.1 | AR16: 78.42857143 | AS16: B | AT16: 78 | AU16: 78 | AV16: B | AW16: 78.83333333 | AX16: 79.75 | AY16: B | AZ16: 78 | BA16: 78 | BB16: B | BC16: 83.2 | BD16: 80.8 | BE16: B | BF16: 84 | BG16: 88 | BH16: B | BI16: - | BJ16: - | BK16: - | BL16: - | BM16: - | BN16: - | BO16: - | BP16: - | BQ16: - | BR16: - | BS16: - | BT16: - | BU16: - | BV16: - | BW16: - | BX16: - | BY16: - | BZ16: - | CA16: - | CB16: - | CC16: - | CD16: - | CE16: - | CF16: - | CG16: - | CH16: - | CI16: - | CJ16: - | CK16: - | CL16: - | CM16: 87.36666667 | CN16: 93 | CO16: A | CP16: - | CQ16: - | CR16: - | CS16: - | CT16: - | CU16: - | CV16: 85.83333333 | CW16: 85 | CX16: B | CY16: 85.83333333 | CZ16: 85 | DA16: B | DB16: 77 | DC16: 77 | DD16: B | DE16: 83 | DF16: 85 | DG16: B | DH16: 83.76666667 | DI16: 75.875 | DJ16: B | DK16: 75 | DL16: 75 | DM16: B | DN16: 76.3875 | DO16: 77.14285714 | DP16: B | DQ16: 81.66666667 | DR16: 83.33333333 | DS16: B | DT16: 91 | DU16: 91.125 | DV16: A | DW16: 74.56733333 | DX16: 75.5 | DY16: B | DZ16: 74.5 | EA16: 77.4 | EB16: B | EC16: 78.1 | ED16: 78.42857143 | EE16: B | EF16: 78 | EG16: 78 | EH16: B | EI16: 78.83333333 | EJ16: 79.75 | EK16: B | EL16: 78 | EM16: 78 | EN16: B | EO16: 83.2 | EP16: 80.8 | EQ16: B | ER16: 84 | ES16: 88 | ET16: B | EU16: - | EV16: - | EW16: - | EX16: - | EY16: - | EZ16: - | FA16: - | FB16: - | FC16: - | FD16: - | FE16: - | FF16: - | FG16: - | FH16: - | FI16: - | FJ16: - | FK16: - | FL16: - | FM16: - | FN16: - | FO16: - | FP16: - | FQ16: - | FR16: - | FS16: - | FT16: - | FU16: - | FV16: - | FW16: - | FX16: - | FY16: 87.36666667 | FZ16: 93 | GA16: A | GB16: - | GC16: - | GD16: - | GE16: - | GF16: - | GG16: - | VR16: 85.83 | VS16: 85.83 | VT16: 77 | VU16: 83 | VV16: 83.77 | VW16: 75 | VX16: 76.39 | VY16: 81.67 | VZ16: 91 | WA16: 74.57 | WB16: 74.5 | WC16: 78.1 | WD16: 78 | WE16: 81.01 | WG16: 87.37 | WK16: 1456.054833 | WL16: 24 | WM16: 80.89193519 | WN16: 19 | WO16: 1456.054833 | WP16: 24 | WQ16: 80.89193519 | WR16: 19
A17: 10 | B17: RAP010 | D17: X TGB 1 | E17: DICKY WAHYUDI | I17: 15160010 | J17: 84.06666667 | K17: 80 | L17: B | M17: 84.06666667 | N17: 80 | O17: B | P17: 82 | Q17: 81 | R17: B | S17: 87 | T17: 86 | U17: A | V17: 84.88333333 | W17: 81.75 | X17: B | Y17: 78 | Z17: 78 | AA17: B | AB17: 76.8225 | AC17: 77.71428571 | AD17: B | AE17: 81.66666667 | AF17: 86.66666667 | AG17: B | AH17: 90.65 | AI17: 87.75 | AJ17: A | AK17: 77.53133333 | AL17: 77.75 | AM17: A | AN17: 77 | AO17: 78.75 | AP17: B | AQ17: 85.1 | AR17: 84.71428571 | AS17: B | AT17: 85 | AU17: 85 | AV17: B | AW17: 78.98333333 | AX17: 79.75 | AY17: B | AZ17: 85 | BA17: 85 | BB17: B | BC17: 85.65 | BD17: 83.6 | BE17: B | BF17: 84 | BG17: 85 | BH17: B | BI17: - | BJ17: - | BK17: - | BL17: - | BM17: - | BN17: - | BO17: - | BP17: - | BQ17: - | BR17: - | BS17: - | BT17: - | BU17: - | BV17: - | BW17: - | BX17: - | BY17: - | BZ17: - | CA17: - | CB17: - | CC17: - | CD17: - | CE17: - | CF17: - | CG17: - | CH17: - | CI17: - | CJ17: - | CK17: - | CL17: - | CM17: 94.31666667 | CN17: 93 | CO17: A | CP17: - | CQ17: - | CR17: - | CS17: - | CT17: - | CU17: - | CV17: 84.06666667 | CW17: 80 | CX17: B | CY17: 84.06666667 | CZ17: 80 | DA17: B | DB17: 82 | DC17: 81 | DD17: B | DE17: 87 | DF17: 86 | DG17: A | DH17: 84.88333333 | DI17: 81.75 | DJ17: B | DK17: 78 | DL17: 78 | DM17: B | DN17: 76.8225 | DO17: 77.71428571 | DP17: B | DQ17: 81.66666667 | DR17: 86.66666667 | DS17: B | DT17: 90.65 | DU17: 87.75 | DV17: A | DW17: 77.53133333 | DX17: 77.75 | DY17: A | DZ17: 77 | EA17: 78.75 | EB17: B | EC17: 85.1 | ED17: 84.71428571 | EE17: B | EF17: 85 | EG17: 85 | EH17: B | EI17: 78.98333333 | EJ17: 79.75 | EK17: B | EL17: 85 | EM17: 85 | EN17: B | EO17: 85.65 | EP17: 83.6 | EQ17: B | ER17: 84 | ES17: 85 | ET17: B | EU17: - | EV17: - | EW17: - | EX17: - | EY17: - | EZ17: - | FA17: - | FB17: - | FC17: - | FD17: - | FE17: - | FF17: - | FG17: - | FH17: - | FI17: - | FJ17: - | FK17: - | FL17: - | FM17: - | FN17: - | FO17: - | FP17: - | FQ17: - | FR17: - | FS17: - | FT17: - | FU17: - | FV17: - | FW17: - | FX17: - | FY17: 94.31666667 | FZ17: 93 | GA17: A | GB17: - | GC17: - | GD17: - | GE17: - | GF17: - | GG17: - | VR17: 84.07 | VS17: 84.07 | VT17: 82 | VU17: 87 | VV17: 84.88 | VW17: 78 | VX17: 76.82 | VY17: 81.67 | VZ17: 90.65 | WA17: 77.53 | WB17: 77 | WC17: 85.1 | WD17: 85 | WE17: 83.41 | WG17: 94.32 | WK17: 1501.737167 | WL17: 24 | WM17: 83.42984259 | WN17: 3 | WO17: 1501.737167 | WP17: 24 | WQ17: 83.42984259 | WR17: 3
A18: 11 | B18: RAP011 | D18: X TGB 1 | E18: ERIK MASHURI | I18: 15160011 | J18: 80.26666667 | K18: 80 | L18: B | M18: 80.26666667 | N18: 80 | O18: B | P18: 79 | Q18: 78 | R18: B | S18: 86 | T18: 80 | U18: B | V18: 76.85 | W18: 75 | X18: B | Y18: 75 | Z18: 75 | AA18: B | AB18: 76.8775 | AC18: 83.71428571 | AD18: B | AE18: 81.66666667 | AF18: 83.33333333 | AG18: B | AH18: 89.3 | AI18: 87.875 | AJ18: A | AK18: 76.07933333 | AL18: 75.25 | AM18: B | AN18: 75.425 | AO18: 88.425 | AP18: B | AQ18: 78.33333333 | AR18: 78.14285714 | AS18: B | AT18: 76 | AU18: 76 | AV18: B | AW18: 78.38333333 | AX18: 79.75 | AY18: B | AZ18: 76 | BA18: 76 | BB18: B | BC18: 85.65 | BD18: 83.6 | BE18: B | BF18: 86 | BG18: 85 | BH18: B | BI18: - | BJ18: - | BK18: - | BL18: - | BM18: - | BN18: - | BO18: - | BP18: - | BQ18: - | BR18: - | BS18: - | BT18: - | BU18: - | BV18: - | BW18: - | BX18: - | BY18: - | BZ18: - | CA18: - | CB18: - | CC18: - | CD18: - | CE18: - | CF18: - | CG18: - | CH18: - | CI18: - | CJ18: - | CK18: - | CL18: - | CM18: 94.86666667 | CN18: 94 | CO18: A | CP18: - | CQ18: - | CR18: - | CS18: - | CT18: - | CU18: - | CV18: 80.26666667 | CW18: 80 | CX18: B | CY18: 80.26666667 | CZ18: 80 | DA18: B | DB18: 79 | DC18: 78 | DD18: B | DE18: 86 | DF18: 80 | DG18: B | DH18: 76.85 | DI18: 75 | DJ18: B | DK18: 75 | DL18: 75 | DM18: B | DN18: 76.8775 | DO18: 83.71428571 | DP18: B | DQ18: 81.66666667 | DR18: 83.33333333 | DS18: B | DT18: 89.3 | DU18: 87.875 | DV18: A | DW18: 76.07933333 | DX18: 75.25 | DY18: B | DZ18: 75.425 | EA18: 88.425 | EB18: B | EC18: 78.33333333 | ED18: 78.14285714 | EE18: B | EF18: 76 | EG18: 76 | EH18: B | EI18: 78.38333333 | EJ18: 79.75 | EK18: B | EL18: 76 | EM18: 76 | EN18: B | EO18: 85.65 | EP18: 83.6 | EQ18: B | ER18: 86 | ES18: 85 | ET18: B | EU18: - | EV18: - | EW18: - | EX18: - | EY18: - | EZ18: - | FA18: - | FB18: - | FC18: - | FD18: - | FE18: - | FF18: - | FG18: - | FH18: - | FI18: - | FJ18: - | FK18: - | FL18: - | FM18: - | FN18: - | FO18: - | FP18: - | FQ18: - | FR18: - | FS18: - | FT18: - | FU18: - | FV18: - | FW18: - | FX18: - | FY18: 94.86666667 | FZ18: 94 | GA18: A | GB18: - | GC18: - | GD18: - | GE18: - | GF18: - | GG18: - | VR18: 80.27 | VS18: 80.27 | VT18: 79 | VU18: 86 | VV18: 76.85 | VW18: 75 | VX18: 76.88 | VY18: 81.67 | VZ18: 89.3 | WA18: 76.08 | WB18: 75.43 | WC18: 78.33 | WD18: 76 | WE18: 81.51 | WG18: 94.87 | WK18: 1451.965167 | WL18: 24 | WM18: 80.66473148 | WN18: 23 | WO18: 1451.965167 | WP18: 24 | WQ18: 80.66473148 | WR18: 23
A19: 12 | B19: RAP012 | D19: X TGB 1 | E19: FARID RAMDANI | I19: 15160012 | J19: 82.45 | K19: 80 | L19: B | M19: 82.45 | N19: 80 | O19: B | P19: 79 | Q19: 78 | R19: B | S19: 83 | T19: 80 | U19: B | V19: 83.76666667 | W19: 76.375 | X19: B | Y19: 75 | Z19: 75 | AA19: B | AB19: 80.67 | AC19: 78.28571429 | AD19: B | AE19: 81.66666667 | AF19: 83.33333333 | AG19: B | AH19: 91.4 | AI19: 90.5 | AJ19: A | AK19: 76.72733333 | AL19: 75.25 | AM19: B | AN19: 75.275 | AO19: 76.125 | AP19: B | AQ19: 84.63333333 | AR19: 83.42857143 | AS19: B | AT19: 76 | AU19: 76 | AV19: B | AW19: 78.65 | AX19: 79.75 | AY19: B | AZ19: 76 | BA19: 76 | BB19: B | BC19: 85.825 | BD19: 83.8 | BE19: B | BF19: 84 | BG19: 84 | BH19: B | BI19: - | BJ19: - | BK19: - | BL19: - | BM19: - | BN19: - | BO19: - | BP19: - | BQ19: - | BR19: - | BS19: - | BT19: - | BU19: - | BV19: - | BW19: - | BX19: - | BY19: - | BZ19: - | CA19: - | CB19: - | CC19: - | CD19: - | CE19: - | CF19: - | CG19: - | CH19: - | CI19: - | CJ19: - | CK19: - | CL19: - | CM19: 91.63333333 | CN19: 93 | CO19: A | CP19: - | CQ19: - | CR19: - | CS19: - | CT19: - | CU19: - | CV19: 82.45 | CW19: 80 | CX19: B | CY19: 82.45 | CZ19: 80 | DA19: B | DB19: 79 | DC19: 78 | DD19: B | DE19: 83 | DF19: 80 | DG19: B | DH19: 83.76666667 | DI19: 76.375 | DJ19: B | DK19: 75 | DL19: 75 | DM19: B | DN19: 80.67 | DO19: 78.28571429 | DP19: B | DQ19: 81.66666667 | DR19: 83.33333333 | DS19: B | DT19: 91.4 | DU19: 90.5 | DV19: A | DW19: 76.72733333 | DX19: 75.25 | DY19: B | DZ19: 75.275 | EA19: 76.125 | EB19: B | EC19: 84.63333333 | ED19: 83.42857143 | EE19: B | EF19: 76 | EG19: 76 | EH19: B | EI19: 78.65 | EJ19: 79.75 | EK19: B | EL19: 76 | EM19: 76 | EN19: B | EO19: 85.825 | EP19: 83.8 | EQ19: B | ER19: 84 | ES19: 84 | ET19: B | EU19: - | EV19: - | EW19: - | EX19: - | EY19: - | EZ19: - | FA19: - | FB19: - | FC19: - | FD19: - | FE19: - | FF19: - | FG19: - | FH19: - | FI19: - | FJ19: - | FK19: - | FL19: - | FM19: - | FN19: - | FO19: - | FP19: - | FQ19: - | FR19: - | FS19: - | FT19: - | FU19: - | FV19: - | FW19: - | FX19: - | FY19: 91.63333333 | FZ19: 93 | GA19: A | GB19: - | GC19: - | GD19: - | GE19: - | GF19: - | GG19: - | VR19: 82.45 | VS19: 82.45 | VT19: 79 | VU19: 83 | VV19: 83.77 | VW19: 75 | VX19: 80.67 | VY19: 81.67 | VZ19: 91.4 | WA19: 76.73 | WB19: 75.28 | WC19: 84.63 | WD19: 76 | WE19: 81.12 | WG19: 91.63 | WK19: 1468.147333 | WL19: 24 | WM19: 81.56374074 | WN19: 15 | WO19: 1468.147333 | WP19: 24 | WQ19: 81.56374074 | WR19: 15
A20: 13 | B20: RAP013 | D20: X TGB 1 | E20: FEBRIAN SUSANTO | I20: 15160013 | J20: 81.75 | K20: 80 | L20: B | M20: 81.75 | N20: 80 | O20: B | P20: 78 | Q20: 77 | R20: B | S20: 80 | T20: 80 | U20: B | V20: 76.58333333 | W20: 75 | X20: B | Y20: 78 | Z20: 78 | AA20: B | AB20: 75.65 | AC20: 77.14285714 | AD20: B | AE20: 78.66666667 | AF20: 83.33333333 | AG20: B | AH20: 86.45 | AI20: 86 | AJ20: A | AK20: 69.904 | AL20: 75.375 | AM20: B | AN20: 74.65 | AO20: 80 | AP20: B | AQ20: 78.45 | AR20: 78 | AS20: B | AT20: 70 | AU20: 70 | AV20: B | AW20: 78.3 | AX20: 78.25 | AY20: B | AZ20: 70 | BA20: 70 | BB20: B | BC20: 84.425 | BD20: 82.2 | BE20: B | BF20: 84 | BG20: 84 | BH20: B | BI20: - | BJ20: - | BK20: - | BL20: - | BM20: - | BN20: - | BO20: - | BP20: - | BQ20: - | BR20: - | BS20: - | BT20: - | BU20: - | BV20: - | BW20: - | BX20: - | BY20: - | BZ20: - | CA20: - | CB20: - | CC20: - | CD20: - | CE20: - | CF20: - | CG20: - | CH20: - | CI20: - | CJ20: - | CK20: - | CL20: - | CM20: 94.78333333 | CN20: 93 | CO20: A | CP20: - | CQ20: - | CR20: - | CS20: - | CT20: - | CU20: - | CV20: 81.75 | CW20: 80 | CX20: B | CY20: 81.75 | CZ20: 80 | DA20: B | DB20: 78 | DC20: 77 | DD20: B | DE20: 80 | DF20: 80 | DG20: B | DH20: 76.58333333 | DI20: 75 | DJ20: B | DK20: 78 | DL20: 78 | DM20: B | DN20: 75.65 | DO20: 77.14285714 | DP20: B | DQ20: 78.66666667 | DR20: 83.33333333 | DS20: B | DT20: 86.45 | DU20: 86 | DV20: A | DW20: 69.904 | DX20: 75.375 | DY20: B | DZ20: 74.65 | EA20: 80 | EB20: B | EC20: 78.45 | ED20: 78 | EE20: B | EF20: 70 | EG20: 70 | EH20: B | EI20: 78.3 | EJ20: 78.25 | EK20: B | EL20: 70 | EM20: 70 | EN20: B | EO20: 84.425 | EP20: 82.2 | EQ20: B | ER20: 84 | ES20: 84 | ET20: B | EU20: - | EV20: - | EW20: - | EX20: - | EY20: - | EZ20: - | FA20: - | FB20: - | FC20: - | FD20: - | FE20: - | FF20: - | FG20: - | FH20: - | FI20: - | FJ20: - | FK20: - | FL20: - | FM20: - | FN20: - | FO20: - | FP20: - | FQ20: - | FR20: - | FS20: - | FT20: - | FU20: - | FV20: - | FW20: - | FX20: - | FY20: 94.78333333 | FZ20: 93 | GA20: A | GB20: - | GC20: - | GD20: - | GE20: - | GF20: - | GG20: - | VR20: 81.75 | VS20: 81.75 | VT20: 78 | VU20: 80 | VV20: 76.58 | VW20: 78 | VX20: 75.65 | VY20: 78.67 | VZ20: 86.45 | WA20: 69.9 | WB20: 74.65 | WC20: 78.45 | WD20: 70 | WE20: 79.18 | WG20: 94.78 | WK20: 1421.362333 | WL20: 24 | WM20: 78.96457407 | WN20: 34 | WO20: 1421.362333 | WP20: 24 | WQ20: 78.96457407 | WR20: 34
A21: 14 | B21: RAP014 | D21: X TGB 1 | E21: FIRMAN HAKIM SOFYANDI | I21: 15160014 | J21: 83.91666667 | K21: 80 | L21: B | M21: 83.91666667 | N21: 80 | O21: B | P21: 83 | Q21: 82 | R21: A | S21: 80 | T21: 80 | U21: B | V21: 82.41666667 | W21: 79 | X21: B | Y21: 77 | Z21: 77 | AA21: B | AB21: 80.1325 | AC21: 78.28571429 | AD21: B | AE21: 81.66666667 | AF21: 83.33333333 | AG21: B | AH21: 92 | AI21: 89.875 | AJ21: A | AK21: 77.15333333 | AL21: 75.125 | AM21: B | AN21: 75.25 | AO21: 89.15 | AP21: B | AQ21: 90.11666667 | AR21: 88.14285714 | AS21: B | AT21: 78 | AU21: 78 | AV21: B | AW21: 79.6 | AX21: 78.875 | AY21: B | AZ21: 78 | BA21: 78 | BB21: B | BC21: 87.4 | BD21: 85.6 | BE21: B | BF21: 84 | BG21: 84 | BH21: B | BI21: - | BJ21: - | BK21: - | BL21: - | BM21: - | BN21: - | BO21: - | BP21: - | BQ21: - | BR21: - | BS21: - | BT21: - | BU21: - | BV21: - | BW21: - | BX21: - | BY21: - | BZ21: - | CA21: - | CB21: - | CC21: - | CD21: - | CE21: - | CF21: - | CG21: - | CH21: - | CI21: - | CJ21: - | CK21: - | CL21: - | CM21: 93.4 | CN21: 93 | CO21: A | CP21: - | CQ21: - | CR21: - | CS21: - | CT21: - | CU21: - | CV21: 83.91666667 | CW21: 80 | CX21: B | CY21: 83.91666667 | CZ21: 80 | DA21: B | DB21: 83 | DC21: 82 | DD21: A | DE21: 80 | DF21: 80 | DG21: B | DH21: 82.41666667 | DI21: 79 | DJ21: B | DK21: 77 | DL21: 77 | DM21: B | DN21: 80.1325 | DO21: 78.28571429 | DP21: B | DQ21: 81.66666667 | DR21: 83.33333333 | DS21: B | DT21: 92 | DU21: 89.875 | DV21: A | DW21: 77.15333333 | DX21: 75.125 | DY21: B | DZ21: 75.25 | EA21: 89.15 | EB21: B | EC21: 90.11666667 | ED21: 88.14285714 | EE21: B | EF21: 78 | EG21: 78 | EH21: B | EI21: 79.6 | EJ21: 78.875 | EK21: B | EL21: 78 | EM21: 78 | EN21: B | EO21: 87.4 | EP21: 85.6 | EQ21: B | ER21: 84 | ES21: 84 | ET21: B | EU21: - | EV21: - | EW21: - | EX21: - | EY21: - | EZ21: - | FA21: - | FB21: - | FC21: - | FD21: - | FE21: - | FF21: - | FG21: - | FH21: - | FI21: - | FJ21: - | FK21: - | FL21: - | FM21: - | FN21: - | FO21: - | FP21: - | FQ21: - | FR21: - | FS21: - | FT21: - | FU21: - | FV21: - | FW21: - | FX21: - | FY21: 93.4 | FZ21: 93 | GA21: A | GB21: - | GC21: - | GD21: - | GE21: - | GF21: - | GG21: - | VR21: 83.92 | VS21: 83.92 | VT21: 83 | VU21: 80 | VV21: 82.42 | VW21: 77 | VX21: 80.13 | VY21: 81.67 | VZ21: 92 | WA21: 77.15 | WB21: 75.25 | WC21: 90.12 | WD21: 78 | WE21: 82.25 | WG21: 93.4 | WK21: 1486.969167 | WL21: 24 | WM21: 82.60939815 | WN21: 9 | WO21: 1486.969167 | WP21: 24 | WQ21: 82.60939815 | WR21: 9
A22: 15 | B22: RAP015 | D22: X TGB 1 | E22: FRISKA APRILIA | I22: 15160015 | J22: 79.96666667 | K22: 80 | L22: B | M22: 79.96666667 | N22: 80 | O22: B | P22: 75 | Q22: 75 | R22: B | S22: 80 | T22: 80 | U22: B | V22: 76.81666667 | W22: 75 | X22: B | Y22: 75 | Z22: 75 | AA22: B | AB22: 75.9375 | AC22: 77.14285714 | AD22: B | AE22: 77.5 | AF22: 80 | AG22: B | AH22: 91.85 | AI22: 87.625 | AJ22: A | AK22: 39.702 | AL22: 72.625 | AM22: B | AN22: 73.775 | AO22: 78.525 | AP22: B | AQ22: 78.1 | AR22: 78 | AS22: B | AT22: 76 | AU22: 76 | AV22: B | AW22: 78.21666667 | AX22: 78.125 | AY22: C | AZ22: 76 | BA22: 76 | BB22: B | BC22: 77.775 | BD22: 78 | BE22: B | BF22: 75 | BG22: 74 | BH22: B | BI22: - | BJ22: - | BK22: - | BL22: - | BM22: - | BN22: - | BO22: - | BP22: - | BQ22: - | BR22: - | BS22: - | BT22: - | BU22: - | BV22: - | BW22: - | BX22: - | BY22: - | BZ22: - | CA22: - | CB22: - | CC22: - | CD22: - | CE22: - | CF22: - | CG22: - | CH22: - | CI22: - | CJ22: - | CK22: - | CL22: - | CM22: 0 | CN22: 0 | CO22: - | CP22: - | CQ22: - | CR22: - | CS22: - | CT22: - | CU22: - | CV22: 79.96666667 | CW22: 80 | CX22: B | CY22: 79.96666667 | CZ22: 80 | DA22: B | DB22: 75 | DC22: 75 | DD22: B | DE22: 80 | DF22: 80 | DG22: B | DH22: 76.81666667 | DI22: 75 | DJ22: B | DK22: 75 | DL22: 75 | DM22: B | DN22: 75.9375 | DO22: 77.14285714 | DP22: B | DQ22: 77.5 | DR22: 80 | DS22: B | DT22: 91.85 | DU22: 87.625 | DV22: A | DW22: 39.702 | DX22: 72.625 | DY22: B | DZ22: 73.775 | EA22: 78.525 | EB22: B | EC22: 78.1 | ED22: 78 | EE22: B | EF22: 76 | EG22: 76 | EH22: B | EI22: 78.21666667 | EJ22: 78.125 | EK22: C | EL22: 76 | EM22: 76 | EN22: B | EO22: 77.775 | EP22: 78 | EQ22: B | ER22: 75 | ES22: 74 | ET22: B | EU22: - | EV22: - | EW22: - | EX22: - | EY22: - | EZ22: - | FA22: - | FB22: - | FC22: - | FD22: - | FE22: - | FF22: - | FG22: - | FH22: - | FI22: - | FJ22: - | FK22: - | FL22: - | FM22: - | FN22: - | FO22: - | FP22: - | FQ22: - | FR22: - | FS22: - | FT22: - | FU22: - | FV22: - | FW22: - | FX22: - | FY22: 0 | FZ22: 0 | GA22: - | GB22: - | GC22: - | GD22: - | GE22: - | GF22: - | GG22: - | VR22: 79.97 | VS22: 79.97 | VT22: 75 | VU22: 80 | VV22: 76.82 | VW22: 75 | VX22: 75.94 | VY22: 77.5 | VZ22: 91.85 | WA22: 39.7 | WB22: 73.78 | WC22: 78.1 | WD22: 76 | WE22: 76.75 | WG22: 0 | WK22: 1286.606167 | WL22: 23.66666667 | WM22: 71.47812037 | WN22: 37 | WO22: 1286.606167 | WP22: 23.66666667 | WQ22: 71.47812037 | WR22: 37
A23: 16 | B23: RAP016 | D23: X TGB 1 | E23: GRAHA SHITA WIDAYANTI | I23: 15160016 | J23: 86.11666667 | K23: 85 | L23: B | M23: 86.11666667 | N23: 85 | O23: B | P23: 84 | Q23: 83 | R23: A | S23: 92 | T23: 89 | U23: A | V23: 90.7 | W23: 91.875 | X23: A | Y23: 75 | Z23: 75 | AA23: B | AB23: 91.3475 | AC23: 84.85714286 | AD23: B | AE23: 81.66666667 | AF23: 86.66666667 | AG23: B | AH23: 91.55 | AI23: 86.875 | AJ23: A | AK23: 84.79066667 | AL23: 79.5 | AM23: A | AN23: 79.775 | AO23: 83.025 | AP23: B | AQ23: 84.05 | AR23: 82.42857143 | AS23: B | AT23: 90 | AU23: 90 | AV23: B | AW23: 79.43333333 | AX23: 79.125 | AY23: B | AZ23: 90 | BA23: 90 | BB23: B | BC23: 86.35 | BD23: 83.4 | BE23: B | BF23: 94 | BG23: 90 | BH23: A | BI23: - | BJ23: - | BK23: - | BL23: - | BM23: - | BN23: - | BO23: - | BP23: - | BQ23: - | BR23: - | BS23: - | BT23: - | BU23: - | BV23: - | BW23: - | BX23: - | BY23: - | BZ23: - | CA23: - | CB23: - | CC23: - | CD23: - | CE23: - | CF23: - | CG23: - | CH23: - | CI23: - | CJ23: - | CK23: - | CL23: - | CM23: 92.85 | CN23: 90.25 | CO23: A | CP23: - | CQ23: - | CR23: - | CS23: - | CT23: - | CU23: - | CV23: 86.11666667 | CW23: 85 | CX23: B | CY23: 86.11666667 | CZ23: 85 | DA23: B | DB23: 84 | DC23: 83 | DD23: A | DE23: 92 | DF23: 89 | DG23: A | DH23: 90.7 | DI23: 91.875 | DJ23: A | DK23: 75 | DL23: 75 | DM23: B | DN23: 91.3475 | DO23: 84.85714286 | DP23: B | DQ23: 81.66666667 | DR23: 86.66666667 | DS23: B | DT23: 91.55 | DU23: 86.875 | DV23: A | DW23: 84.79066667 | DX23: 79.5 | DY23: A | DZ23: 79.775 | EA23: 83.025 | EB23: B | EC23: 84.05 | ED23: 82.42857143 | EE23: B | EF23: 90 | EG23: 90 | EH23: B | EI23: 79.43333333 | EJ23: 79.125 | EK23: B | EL23: 90 | EM23: 90 | EN23: B | EO23: 86.35 | EP23: 83.4 | EQ23: B | ER23: 94 | ES23: 90 | ET23: A | EU23: - | EV23: - | EW23: - | EX23: - | EY23: - | EZ23: - | FA23: - | FB23: - | FC23: - | FD23: - | FE23: - | FF23: - | FG23: - | FH23: - | FI23: - | FJ23: - | FK23: - | FL23: - | FM23: - | FN23: - | FO23: - | FP23: - | FQ23: - | FR23: - | FS23: - | FT23: - | FU23: - | FV23: - | FW23: - | FX23: - | FY23: 92.85 | FZ23: 90.25 | GA23: A | GB23: - | GC23: - | GD23: - | GE23: - | GF23: - | GG23: - | VR23: 86.12 | VS23: 86.12 | VT23: 84 | VU23: 92 | VV23: 90.7 | VW23: 75 | VX23: 91.35 | VY23: 81.67 | VZ23: 91.55 | WA23: 84.79 | WB23: 79.78 | WC23: 84.05 | WD23: 90 | WE23: 87.45 | WG23: 92.85 | WK23: 1559.7465 | WL23: 24 | WM23: 86.65258333 | WN23: 1 | WO23: 1559.7465 | WP23: 24 | WQ23: 86.65258333 | WR23: 1
A24: 17 | B24: RAP017 | D24: X TGB 1 | E24: JIBALUL DJAHAB | I24: 15160018 | J24: 86.11666667 | K24: 90 | L24: B | M24: 86.11666667 | N24: 90 | O24: B | P24: 79 | Q24: 79 | R24: B | S24: 80 | T24: 85 | U24: B | V24: 82.35 | W24: 85.625 | X24: A | Y24: 75 | Z24: 75 | AA24: B | AB24: 76.8975 | AC24: 77.71428571 | AD24: B | AE24: 81.66666667 | AF24: 85 | AG24: B | AH24: 89.5 | AI24: 89.625 | AJ24: A | AK24: 69.678 | AL24: 75 | AM24: B | AN24: 75.275 | AO24: 86.025 | AP24: B | AQ24: 78.68333333 | AR24: 78 | AS24: B | AT24: 76 | AU24: 76 | AV24: B | AW24: 80.05 | AX24: 79.75 | AY24: B | AZ24: 76 | BA24: 76 | BB24: B | BC24: 86.35 | BD24: 84.4 | BE24: B | BF24: 84 | BG24: 88 | BH24: B | BI24: - | BJ24: - | BK24: - | BL24: - | BM24: - | BN24: - | BO24: - | BP24: - | BQ24: - | BR24: - | BS24: - | BT24: - | BU24: - | BV24: - | BW24: - | BX24: - | BY24: - | BZ24: - | CA24: - | CB24: - | CC24: - | CD24: - | CE24: - | CF24: - | CG24: - | CH24: - | CI24: - | CJ24: - | CK24: - | CL24: - | CM24: 92.8 | CN24: 90.25 | CO24: A | CP24: - | CQ24: - | CR24: - | CS24: - | CT24: - | CU24: - | CV24: 86.11666667 | CW24: 90 | CX24: B | CY24: 86.11666667 | CZ24: 90 | DA24: B | DB24: 79 | DC24: 79 | DD24: B | DE24: 80 | DF24: 85 | DG24: B | DH24: 82.35 | DI24: 85.625 | DJ24: A | DK24: 75 | DL24: 75 | DM24: B | DN24: 76.8975 | DO24: 77.71428571 | DP24: B | DQ24: 81.66666667 | DR24: 85 | DS24: B | DT24: 89.5 | DU24: 89.625 | DV24: A | DW24: 69.678 | DX24: 75 | DY24: B | DZ24: 75.275 | EA24: 86.025 | EB24: B | EC24: 78.68333333 | ED24: 78 | EE24: B | EF24: 76 | EG24: 76 | EH24: B | EI24: 80.05 | EJ24: 79.75 | EK24: B | EL24: 76 | EM24: 76 | EN24: B | EO24: 86.35 | EP24: 84.4 | EQ24: B | ER24: 84 | ES24: 88 | ET24: B | EU24: - | EV24: - | EW24: - | EX24: - | EY24: - | EZ24: - | FA24: - | FB24: - | FC24: - | FD24: - | FE24: - | FF24: - | FG24: - | FH24: - | FI24: - | FJ24: - | FK24: - | FL24: - | FM24: - | FN24: - | FO24: - | FP24: - | FQ24: - | FR24: - | FS24: - | FT24: - | FU24: - | FV24: - | FW24: - | FX24: - | FY24: 92.8 | FZ24: 90.25 | GA24: A | GB24: - | GC24: - | GD24: - | GE24: - | GF24: - | GG24: - | VR24: 86.12 | VS24: 86.12 | VT24: 79 | VU24: 80 | VV24: 82.35 | VW24: 75 | VX24: 76.9 | VY24: 81.67 | VZ24: 89.5 | WA24: 69.68 | WB24: 75.28 | WC24: 78.68 | WD24: 76 | WE24: 81.6 | WG24: 92.8 | WK24: 1455.483833 | WL24: 24 | WM24: 80.86021296 | WN24: 20 | WO24: 1455.483833 | WP24: 24 | WQ24: 80.86021296 | WR24: 20
A25: 18 | B25: RAP018 | D25: X TGB 1 | E25: JUNIA PUTRI | I25: 15160019 | J25: 84.66666667 | K25: 85 | L25: B | M25: 84.66666667 | N25: 85 | O25: B | P25: 79 | Q25: 77 | R25: B | S25: 80 | T25: 85 | U25: B | V25: 83.76666667 | W25: 76.625 | X25: B | Y25: 78 | Z25: 78 | AA25: B | AB25: 82.6875 | AC25: 84.28571429 | AD25: B | AE25: 81.66666667 | AF25: 86.66666667 | AG25: B | AH25: 87.8 | AI25: 87.75 | AJ25: A | AK25: 58.83266667 | AL25: 75.25 | AM25: B | AN25: 75.275 | AO25: 77.175 | AP25: B | AQ25: 78.33333333 | AR25: 78.14285714 | AS25: B | AT25: 78 | AU25: 78 | AV25: B | AW25: 78.2 | AX25: 79.75 | AY25: B | AZ25: 78 | BA25: 78 | BB25: B | BC25: 83.9 | BD25: 81.6 | BE25: B | BF25: 84 | BG25: 89 | BH25: B | BI25: - | BJ25: - | BK25: - | BL25: - | BM25: - | BN25: - | BO25: - | BP25: - | BQ25: - | BR25: - | BS25: - | BT25: - | BU25: - | BV25: - | BW25: - | BX25: - | BY25: - | BZ25: - | CA25: - | CB25: - | CC25: - | CD25: - | CE25: - | CF25: - | CG25: - | CH25: - | CI25: - | CJ25: - | CK25: - | CL25: - | CM25: 83.76666667 | CN25: 83 | CO25: B | CP25: - | CQ25: - | CR25: - | CS25: - | CT25: - | CU25: - | CV25: 84.66666667 | CW25: 85 | CX25: B | CY25: 84.66666667 | CZ25: 85 | DA25: B | DB25: 79 | DC25: 77 | DD25: B | DE25: 80 | DF25: 85 | DG25: B | DH25: 83.76666667 | DI25: 76.625 | DJ25: B | DK25: 78 | DL25: 78 | DM25: B | DN25: 82.6875 | DO25: 84.28571429 | DP25: B | DQ25: 81.66666667 | DR25: 86.66666667 | DS25: B | DT25: 87.8 | DU25: 87.75 | DV25: A | DW25: 58.83266667 | DX25: 75.25 | DY25: B | DZ25: 75.275 | EA25: 77.175 | EB25: B | EC25: 78.33333333 | ED25: 78.14285714 | EE25: B | EF25: 78 | EG25: 78 | EH25: B | EI25: 78.2 | EJ25: 79.75 | EK25: B | EL25: 78 | EM25: 78 | EN25: B | EO25: 83.9 | EP25: 81.6 | EQ25: B | ER25: 84 | ES25: 89 | ET25: B | EU25: - | EV25: - | EW25: - | EX25: - | EY25: - | EZ25: - | FA25: - | FB25: - | FC25: - | FD25: - | FE25: - | FF25: - | FG25: - | FH25: - | FI25: - | FJ25: - | FK25: - | FL25: - | FM25: - | FN25: - | FO25: - | FP25: - | FQ25: - | FR25: - | FS25: - | FT25: - | FU25: - | FV25: - | FW25: - | FX25: - | FY25: 83.76666667 | FZ25: 83 | GA25: B | GB25: - | GC25: - | GD25: - | GE25: - | GF25: - | GG25: - | VR25: 84.67 | VS25: 84.67 | VT25: 79 | VU25: 80 | VV25: 83.77 | VW25: 78 | VX25: 82.69 | VY25: 81.67 | VZ25: 87.8 | WA25: 58.83 | WB25: 75.28 | WC25: 78.33 | WD25: 78 | WE25: 81.03 | WG25: 83.77 | WK25: 1440.561833 | WL25: 24 | WM25: 80.03121296 | WN25: 28 | WO25: 1440.561833 | WP25: 24 | WQ25: 80.03121296 | WR25: 28
A26: 19 | B26: RAP019 | D26: X TGB 1 | E26: KARDIDI MUHAMMAD GUNTUR | I26: 15160020 | J26: 83.5 | K26: 80 | L26: B | M26: 83.5 | N26: 80 | O26: B | P26: 78 | Q26: 77 | R26: B | S26: 80 | T26: 80 | U26: B | V26: 77.36666667 | W26: 75 | X26: B | Y26: 75 | Z26: 75 | AA26: B | AB26: 76.11 | AC26: 77.71428571 | AD26: B | AE26: 81.66666667 | AF26: 85 | AG26: B | AH26: 89.95 | AI26: 86.5 | AJ26: A | AK26: 75.64733333 | AL26: 75.25 | AM26: B | AN26: 75.275 | AO26: 87.525 | AP26: B | AQ26: 78.21666667 | AR26: 78.14285714 | AS26: B | AT26: 76 | AU26: 76 | AV26: B | AW26: 79.45 | AX26: 79.75 | AY26: B | AZ26: 76 | BA26: 76 | BB26: B | BC26: 83.9 | BD26: 81.6 | BE26: B | BF26: 76 | BG26: 78 | BH26: B | BI26: - | BJ26: - | BK26: - | BL26: - | BM26: - | BN26: - | BO26: - | BP26: - | BQ26: - | BR26: - | BS26: - | BT26: - | BU26: - | BV26: - | BW26: - | BX26: - | BY26: - | BZ26: - | CA26: - | CB26: - | CC26: - | CD26: - | CE26: - | CF26: - | CG26: - | CH26: - | CI26: - | CJ26: - | CK26: - | CL26: - | CM26: 93.11666667 | CN26: 92.5 | CO26: A | CP26: - | CQ26: - | CR26: - | CS26: - | CT26: - | CU26: - | CV26: 83.5 | CW26: 80 | CX26: B | CY26: 83.5 | CZ26: 80 | DA26: B | DB26: 78 | DC26: 77 | DD26: B | DE26: 80 | DF26: 80 | DG26: B | DH26: 77.36666667 | DI26: 75 | DJ26: B | DK26: 75 | DL26: 75 | DM26: B | DN26: 76.11 | DO26: 77.71428571 | DP26: B | DQ26: 81.66666667 | DR26: 85 | DS26: B | DT26: 89.95 | DU26: 86.5 | DV26: A | DW26: 75.64733333 | DX26: 75.25 | DY26: B | DZ26: 75.275 | EA26: 87.525 | EB26: B | EC26: 78.21666667 | ED26: 78.14285714 | EE26: B | EF26: 76 | EG26: 76 | EH26: B | EI26: 79.45 | EJ26: 79.75 | EK26: B | EL26: 76 | EM26: 76 | EN26: B | EO26: 83.9 | EP26: 81.6 | EQ26: B | ER26: 76 | ES26: 78 | ET26: B | EU26: - | EV26: - | EW26: - | EX26: - | EY26: - | EZ26: - | FA26: - | FB26: - | FC26: - | FD26: - | FE26: - | FF26: - | FG26: - | FH26: - | FI26: - | FJ26: - | FK26: - | FL26: - | FM26: - | FN26: - | FO26: - | FP26: - | FQ26: - | FR26: - | FS26: - | FT26: - | FU26: - | FV26: - | FW26: - | FX26: - | FY26: 93.11666667 | FZ26: 92.5 | GA26: A | GB26: - | GC26: - | GD26: - | GE26: - | GF26: - | GG26: - | VR26: 83.5 | VS26: 83.5 | VT26: 78 | VU26: 80 | VV26: 77.37 | VW26: 75 | VX26: 76.11 | VY26: 81.67 | VZ26: 89.95 | WA26: 75.65 | WB26: 75.28 | WC26: 78.22 | WD26: 76 | WE26: 78.84 | WG26: 93.12 | WK26: 1438.699 | WL26: 24 | WM26: 79.92772222 | WN26: 30 | WO26: 1438.699 | WP26: 24 | WQ26: 79.92772222 | WR26: 30
A27: 20 | B27: RAP020 | D27: X TGB 1 | E27: KEVIN ARMANDO OMAR SUDRAJAT | I27: 15160021 | J27: 84.36666667 | K27: 80 | L27: B | M27: 84.36666667 | N27: 80 | O27: B | P27: 84 | Q27: 83 | R27: A | S27: 90 | T27: 89 | U27: A | V27: 79.11666667 | W27: 77 | X27: B | Y27: 80 | Z27: 80 | AA27: B | AB27: 80.9 | AC27: 80 | AD27: B | AE27: 81.66666667 | AF27: 86.66666667 | AG27: B | AH27: 87.1 | AI27: 86.625 | AJ27: A | AK27: 77.42933333 | AL27: 77.625 | AM27: B | AN27: 79.5 | AO27: 84.575 | AP27: B | AQ27: 84.28333333 | AR27: 84 | AS27: B | AT27: 80 | AU27: 80 | AV27: B | AW27: 79.88333333 | AX27: 79.75 | AY27: B | AZ27: 80 | BA27: 80 | BB27: B | BC27: 86.35 | BD27: 84.4 | BE27: B | BF27: 86 | BG27: 89 | BH27: B | BI27: - | BJ27: - | BK27: - | BL27: - | BM27: - | BN27: - | BO27: - | BP27: - | BQ27: - | BR27: - | BS27: - | BT27: - | BU27: - | BV27: - | BW27: - | BX27: - | BY27: - | BZ27: - | CA27: - | CB27: - | CC27: - | CD27: - | CE27: - | CF27: - | CG27: - | CH27: - | CI27: - | CJ27: - | CK27: - | CL27: - | CM27: 82.6 | CN27: 83 | CO27: B | CP27: - | CQ27: - | CR27: - | CS27: - | CT27: - | CU27: - | CV27: 84.36666667 | CW27: 80 | CX27: B | CY27: 84.36666667 | CZ27: 80 | DA27: B | DB27: 84 | DC27: 83 | DD27: A | DE27: 90 | DF27: 89 | DG27: A | DH27: 79.11666667 | DI27: 77 | DJ27: B | DK27: 80 | DL27: 80 | DM27: B | DN27: 80.9 | DO27: 80 | DP27: B | DQ27: 81.66666667 | DR27: 86.66666667 | DS27: B | DT27: 87.1 | DU27: 86.625 | DV27: A | DW27: 77.42933333 | DX27: 77.625 | DY27: B | DZ27: 79.5 | EA27: 84.575 | EB27: B | EC27: 84.28333333 | ED27: 84 | EE27: B | EF27: 80 | EG27: 80 | EH27: B | EI27: 79.88333333 | EJ27: 79.75 | EK27: B | EL27: 80 | EM27: 80 | EN27: B | EO27: 86.35 | EP27: 84.4 | EQ27: B | ER27: 86 | ES27: 89 | ET27: B | EU27: - | EV27: - | EW27: - | EX27: - | EY27: - | EZ27: - | FA27: - | FB27: - | FC27: - | FD27: - | FE27: - | FF27: - | FG27: - | FH27: - | FI27: - | FJ27: - | FK27: - | FL27: - | FM27: - | FN27: - | FO27: - | FP27: - | FQ27: - | FR27: - | FS27: - | FT27: - | FU27: - | FV27: - | FW27: - | FX27: - | FY27: 82.6 | FZ27: 83 | GA27: B | GB27: - | GC27: - | GD27: - | GE27: - | GF27: - | GG27: - | VR27: 84.37 | VS27: 84.37 | VT27: 84 | VU27: 90 | VV27: 79.12 | VW27: 80 | VX27: 80.9 | VY27: 81.67 | VZ27: 87.1 | WA27: 77.43 | WB27: 79.5 | WC27: 84.28 | WD27: 80 | WE27: 83.06 | WG27: 82.6 | WK27: 1487.562667 | WL27: 24 | WM27: 82.64237037 | WN27: 8 | WO27: 1487.562667 | WP27: 24 | WQ27: 82.64237037 | WR27: 8
A28: 21 | B28: RAP021 | D28: X TGB 1 | E28: KHOFIFAH NUR ALIYAH | I28: 15160022 | J28: 84.95 | K28: 85 | L28: B | M28: 84.95 | N28: 85 | O28: B | P28: 77 | Q28: 78 | R28: B | S28: 83 | T28: 85 | U28: A | V28: 83.76666667 | W28: 75 | X28: B | Y28: 78 | Z28: 78 | AA28: B | AB28: 80.3875 | AC28: 80 | AD28: B | AE28: 81.66666667 | AF28: 86.66666667 | AG28: B | AH28: 88.9 | AI28: 90.375 | AJ28: A | AK28: 75.63533333 | AL28: 75.25 | AM28: B | AN28: 74.525 | AO28: 77.625 | AP28: B | AQ28: 78.56666667 | AR28: 78.14285714 | AS28: B | AT28: 76 | AU28: 76 | AV28: B | AW28: 79.48333333 | AX28: 79.75 | AY28: B | AZ28: 76 | BA28: 76 | BB28: B | BC28: 85.125 | BD28: 83 | BE28: B | BF28: 81 | BG28: 85 | BH28: B | BI28: - | BJ28: - | BK28: - | BL28: - | BM28: - | BN28: - | BO28: - | BP28: - | BQ28: - | BR28: - | BS28: - | BT28: - | BU28: - | BV28: - | BW28: - | BX28: - | BY28: - | BZ28: - | CA28: - | CB28: - | CC28: - | CD28: - | CE28: - | CF28: - | CG28: - | CH28: - | CI28: - | CJ28: - | CK28: - | CL28: - | CM28: 83.76666667 | CN28: 83 | CO28: B | CP28: - | CQ28: - | CR28: - | CS28: - | CT28: - | CU28: - | CV28: 84.95 | CW28: 85 | CX28: B | CY28: 84.95 | CZ28: 85 | DA28: B | DB28: 77 | DC28: 78 | DD28: B | DE28: 83 | DF28: 85 | DG28: A | DH28: 83.76666667 | DI28: 75 | DJ28: B | DK28: 78 | DL28: 78 | DM28: B | DN28: 80.3875 | DO28: 80 | DP28: B | DQ28: 81.66666667 | DR28: 86.66666667 | DS28: B | DT28: 88.9 | DU28: 90.375 | DV28: A | DW28: 75.63533333 | DX28: 75.25 | DY28: B | DZ28: 74.525 | EA28: 77.625 | EB28: B | EC28: 78.56666667 | ED28: 78.14285714 | EE28: B | EF28: 76 | EG28: 76 | EH28: B | EI28: 79.48333333 | EJ28: 79.75 | EK28: B | EL28: 76 | EM28: 76 | EN28: B | EO28: 85.125 | EP28: 83 | EQ28: B | ER28: 81 | ES28: 85 | ET28: B | EU28: - | EV28: - | EW28: - | EX28: - | EY28: - | EZ28: - | FA28: - | FB28: - | FC28: - | FD28: - | FE28: - | FF28: - | FG28: - | FH28: - | FI28: - | FJ28: - | FK28: - | FL28: - | FM28: - | FN28: - | FO28: - | FP28: - | FQ28: - | FR28: - | FS28: - | FT28: - | FU28: - | FV28: - | FW28: - | FX28: - | FY28: 83.76666667 | FZ28: 83 | GA28: B | GB28: - | GC28: - | GD28: - | GE28: - | GF28: - | GG28: - | VR28: 84.95 | VS28: 84.95 | VT28: 77 | VU28: 83 | VV28: 83.77 | VW28: 78 | VX28: 80.39 | VY28: 81.67 | VZ28: 88.9 | WA28: 75.64 | WB28: 74.53 | WC28: 78.57 | WD28: 76 | WE28: 80.4 | WG28: 83.77 | WK28: 1452.722833 | WL28: 24 | WM28: 80.70682407 | WN28: 22 | WO28: 1452.722833 | WP28: 24 | WQ28: 80.70682407 | WR28: 22
A29: 22 | B29: RAP022 | D29: X TGB 1 | E29: METHA ANGELA | I29: 15160024 | J29: 84.95 | K29: 85 | L29: A | M29: 84.95 | N29: 85 | O29: A | P29: 77 | Q29: 77 | R29: B | S29: 80 | T29: 85 | U29: B | V29: 75.81666667 | W29: 75.875 | X29: B | Y29: 77 | Z29: 77 | AA29: B | AB29: 81.65 | AC29: 84.28571429 | AD29: B | AE29: 81.66666667 | AF29: 86.66666667 | AG29: B | AH29: 91.7 | AI29: 90.625 | AJ29: A | AK29: 65.134 | AL29: 75.25 | AM29: B | AN29: 75.325 | AO29: 76.625 | AP29: B | AQ29: 80.78333333 | AR29: 78.71428571 | AS29: B | AT29: 78 | AU29: 78 | AV29: B | AW29: 80.65 | AX29: 79 | AY29: B | AZ29: 78 | BA29: 78 | BB29: B | BC29: 86 | BD29: 84 | BE29: B | BF29: 77 | BG29: 81 | BH29: B | BI29: - | BJ29: - | BK29: - | BL29: - | BM29: - | BN29: - | BO29: - | BP29: - | BQ29: - | BR29: - | BS29: - | BT29: - | BU29: - | BV29: - | BW29: - | BX29: - | BY29: - | BZ29: - | CA29: - | CB29: - | CC29: - | CD29: - | CE29: - | CF29: - | CG29: - | CH29: - | CI29: - | CJ29: - | CK29: - | CL29: - | CM29: 70.3 | CN29: 76 | CO29: C | CP29: - | CQ29: - | CR29: - | CS29: - | CT29: - | CU29: - | CV29: 84.95 | CW29: 85 | CX29: A | CY29: 84.95 | CZ29: 85 | DA29: A | DB29: 77 | DC29: 77 | DD29: B | DE29: 80 | DF29: 85 | DG29: B | DH29: 75.81666667 | DI29: 75.875 | DJ29: B | DK29: 77 | DL29: 77 | DM29: B | DN29: 81.65 | DO29: 84.28571429 | DP29: B | DQ29: 81.66666667 | DR29: 86.66666667 | DS29: B | DT29: 91.7 | DU29: 90.625 | DV29: A | DW29: 65.134 | DX29: 75.25 | DY29: B | DZ29: 75.325 | EA29: 76.625 | EB29: B | EC29: 80.78333333 | ED29: 78.71428571 | EE29: B | EF29: 78 | EG29: 78 | EH29: B | EI29: 80.65 | EJ29: 79 | EK29: B | EL29: 78 | EM29: 78 | EN29: B | EO29: 86 | EP29: 84 | EQ29: B | ER29: 77 | ES29: 81 | ET29: B | EU29: - | EV29: - | EW29: - | EX29: - | EY29: - | EZ29: - | FA29: - | FB29: - | FC29: - | FD29: - | FE29: - | FF29: - | FG29: - | FH29: - | FI29: - | FJ29: - | FK29: - | FL29: - | FM29: - | FN29: - | FO29: - | FP29: - | FQ29: - | FR29: - | FS29: - | FT29: - | FU29: - | FV29: - | FW29: - | FX29: - | FY29: 70.3 | FZ29: 76 | GA29: C | GB29: - | GC29: - | GD29: - | GE29: - | GF29: - | GG29: - | VR29: 84.95 | VS29: 84.95 | VT29: 77 | VU29: 80 | VV29: 75.82 | VW29: 77 | VX29: 81.65 | VY29: 81.67 | VZ29: 91.7 | WA29: 65.13 | WB29: 75.33 | WC29: 80.78 | WD29: 78 | WE29: 80.41 | WG29: 70.3 | WK29: 1425.925667 | WL29: 24 | WM29: 79.21809259 | WN29: 32 | WO29: 1425.925667 | WP29: 24 | WQ29: 79.21809259 | WR29: 32
A30: 23 | B30: RAP024 | D30: X TGB 1 | E30: MIA FADLIA | I30: 15160025 | J30: 86.41666667 | K30: 90 | L30: B | M30: 86.41666667 | N30: 90 | O30: B | P30: 80 | Q30: 79 | R30: B | S30: 83 | T30: 85 | U30: B | V30: 83.38333333 | W30: 81.75 | X30: B | Y30: 75 | Z30: 75 | AA30: B | AB30: 76.285 | AC30: 80.57142857 | AD30: B | AE30: 81.66666667 | AF30: 86.66666667 | AG30: B | AH30: 89.2 | AI30: 86.75 | AJ30: A | AK30: 74.148 | AL30: 76.5 | AM30: B | AN30: 75.425 | AO30: 78.625 | AP30: B | AQ30: 79.38333333 | AR30: 79.14285714 | AS30: B | AT30: 78 | AU30: 78 | AV30: B | AW30: 80.05 | AX30: 79 | AY30: B | AZ30: 91 | BA30: 86 | BB30: A | BC30: 86.35 | BD30: 84.4 | BE30: B | BF30: 85 | BG30: 87 | BH30: B | BI30: - | BJ30: - | BK30: - | BL30: - | BM30: - | BN30: - | BO30: - | BP30: - | BQ30: - | BR30: - | BS30: - | BT30: - | BU30: - | BV30: - | BW30: - | BX30: - | BY30: - | BZ30: - | CA30: - | CB30: - | CC30: - | CD30: - | CE30: - | CF30: - | CG30: - | CH30: - | CI30: - | CJ30: - | CK30: - | CL30: - | CM30: 91.5 | CN30: 92.5 | CO30: A | CP30: - | CQ30: - | CR30: - | CS30: - | CT30: - | CU30: - | CV30: 86.41666667 | CW30: 90 | CX30: B | CY30: 86.41666667 | CZ30: 90 | DA30: B | DB30: 80 | DC30: 79 | DD30: B | DE30: 83 | DF30: 85 | DG30: B | DH30: 83.38333333 | DI30: 81.75 | DJ30: B | DK30: 75 | DL30: 75 | DM30: B | DN30: 76.285 | DO30: 80.57142857 | DP30: B | DQ30: 81.66666667 | DR30: 86.66666667 | DS30: B | DT30: 89.2 | DU30: 86.75 | DV30: A | DW30: 74.148 | DX30: 76.5 | DY30: B | DZ30: 75.425 | EA30: 78.625 | EB30: B | EC30: 79.38333333 | ED30: 79.14285714 | EE30: B | EF30: 78 | EG30: 78 | EH30: B | EI30: 80.05 | EJ30: 79 | EK30: B | EL30: 91 | EM30: 86 | EN30: A | EO30: 86.35 | EP30: 84.4 | EQ30: B | ER30: 85 | ES30: 87 | ET30: B | EU30: - | EV30: - | EW30: - | EX30: - | EY30: - | EZ30: - | FA30: - | FB30: - | FC30: - | FD30: - | FE30: - | FF30: - | FG30: - | FH30: - | FI30: - | FJ30: - | FK30: - | FL30: - | FM30: - | FN30: - | FO30: - | FP30: - | FQ30: - | FR30: - | FS30: - | FT30: - | FU30: - | FV30: - | FW30: - | FX30: - | FY30: 91.5 | FZ30: 92.5 | GA30: A | GB30: - | GC30: - | GD30: - | GE30: - | GF30: - | GG30: - | VR30: 86.42 | VS30: 86.42 | VT30: 80 | VU30: 83 | VV30: 83.38 | VW30: 75 | VX30: 76.29 | VY30: 81.67 | VZ30: 89.2 | WA30: 74.15 | WB30: 75.43 | WC30: 79.38 | WD30: 78 | WE30: 85.6 | WG30: 91.5 | WK30: 1482.224667 | WL30: 24 | WM30: 82.34581481 | WN30: 12 | WO30: 1482.224667 | WP30: 24 | WQ30: 82.34581481 | WR30: 12
A31: 24 | B31: RAP023 | D31: X TGB 1 | E31: MUHAMAD NURALIF | I31: 15160026 | J31: 80 | K31: 80 | L31: A | M31: 80 | N31: 80 | O31: A | P31: 78 | Q31: 77 | R31: B | S31: 80 | T31: 85 | U31: B | V31: 77.46666667 | W31: 75 | X31: B | Y31: 76 | Z31: 76 | AA31: B | AB31: 78.275 | AC31: 81.42857143 | AD31: B | AE31: 80.16666667 | AF31: 86.66666667 | AG31: B | AH31: 90.1 | AI31: 86.375 | AJ31: A | AK31: 72.55733333 | AL31: 75 | AM31: B | AN31: 74.525 | AO31: 82.875 | AP31: B | AQ31: 78.21666667 | AR31: 78 | AS31: B | AT31: 78 | AU31: 78 | AV31: B | AW31: 79.9 | AX31: 79.75 | AY31: B | AZ31: 92 | BA31: 86 | BB31: A | BC31: 84.95 | BD31: 82.8 | BE31: B | BF31: 83 | BG31: 82 | BH31: B | BI31: - | BJ31: - | BK31: - | BL31: - | BM31: - | BN31: - | BO31: - | BP31: - | BQ31: - | BR31: - | BS31: - | BT31: - | BU31: - | BV31: - | BW31: - | BX31: - | BY31: - | BZ31: - | CA31: - | CB31: - | CC31: - | CD31: - | CE31: - | CF31: - | CG31: - | CH31: - | CI31: - | CJ31: - | CK31: - | CL31: - | CM31: 83.76666667 | CN31: 85 | CO31: B | CP31: - | CQ31: - | CR31: - | CS31: - | CT31: - | CU31: - | CV31: 80 | CW31: 80 | CX31: A | CY31: 80 | CZ31: 80 | DA31: A | DB31: 78 | DC31: 77 | DD31: B | DE31: 80 | DF31: 85 | DG31: B | DH31: 77.46666667 | DI31: 75 | DJ31: B | DK31: 76 | DL31: 76 | DM31: B | DN31: 78.275 | DO31: 81.42857143 | DP31: B | DQ31: 80.16666667 | DR31: 86.66666667 | DS31: B | DT31: 90.1 | DU31: 86.375 | DV31: A | DW31: 72.55733333 | DX31: 75 | DY31: B | DZ31: 74.525 | EA31: 82.875 | EB31: B | EC31: 78.21666667 | ED31: 78 | EE31: B | EF31: 78 | EG31: 78 | EH31: B | EI31: 79.9 | EJ31: 79.75 | EK31: B | EL31: 92 | EM31: 86 | EN31: A | EO31: 84.95 | EP31: 82.8 | EQ31: B | ER31: 83 | ES31: 82 | ET31: B | EU31: - | EV31: - | EW31: - | EX31: - | EY31: - | EZ31: - | FA31: - | FB31: - | FC31: - | FD31: - | FE31: - | FF31: - | FG31: - | FH31: - | FI31: - | FJ31: - | FK31: - | FL31: - | FM31: - | FN31: - | FO31: - | FP31: - | FQ31: - | FR31: - | FS31: - | FT31: - | FU31: - | FV31: - | FW31: - | FX31: - | FY31: 83.76666667 | FZ31: 85 | GA31: B | GB31: - | GC31: - | GD31: - | GE31: - | GF31: - | GG31: - | VR31: 80 | VS31: 80 | VT31: 78 | VU31: 80 | VV31: 77.47 | VW31: 76 | VX31: 78.28 | VY31: 80.17 | VZ31: 90.1 | WA31: 72.56 | WB31: 74.53 | WC31: 78.22 | WD31: 78 | WE31: 84.96 | WG31: 83.77 | WK31: 1446.924 | WL31: 24 | WM31: 80.38466667 | WN31: 25 | WO31: 1446.924 | WP31: 24 | WQ31: 80.38466667 | WR31: 25
A32: 25 | B32: RAP025 | D32: X TGB 1 | E32: MUHAMMAD ABIN | I32: 15160027 | J32: 81.73333333 | K32: 80 | L32: B | M32: 81.73333333 | N32: 80 | O32: B | P32: 78 | Q32: 77 | R32: B | S32: 80 | T32: 85 | U32: B | V32: 77.15 | W32: 75 | X32: B | Y32: 77 | Z32: 77 | AA32: B | AB32: 76.6875 | AC32: 82.85714286 | AD32: B | AE32: 81.66666667 | AF32: 86.66666667 | AG32: B | AH32: 88.05 | AI32: 87.375 | AJ32: A | AK32: 74.27933333 | AL32: 75.375 | AM32: B | AN32: 75.325 | AO32: 84.575 | AP32: B | AQ32: 78.45 | AR32: 78.28571429 | AS32: B | AT32: 78 | AU32: 78 | AV32: B | AW32: 79.3 | AX32: 79.75 | AY32: B | AZ32: 89 | BA32: 86 | BB32: B | BC32: 84.425 | BD32: 83.2 | BE32: B | BF32: 77 | BG32: 81 | BH32: B | BI32: - | BJ32: - | BK32: - | BL32: - | BM32: - | BN32: - | BO32: - | BP32: - | BQ32: - | BR32: - | BS32: - | BT32: - | BU32: - | BV32: - | BW32: - | BX32: - | BY32: - | BZ32: - | CA32: - | CB32: - | CC32: - | CD32: - | CE32: - | CF32: - | CG32: - | CH32: - | CI32: - | CJ32: - | CK32: - | CL32: - | CM32: 81.35 | CN32: 85.75 | CO32: B | CP32: - | CQ32: - | CR32: - | CS32: - | CT32: - | CU32: - | CV32: 81.73333333 | CW32: 80 | CX32: B | CY32: 81.73333333 | CZ32: 80 | DA32: B | DB32: 78 | DC32: 77 | DD32: B | DE32: 80 | DF32: 85 | DG32: B | DH32: 77.15 | DI32: 75 | DJ32: B | DK32: 77 | DL32: 77 | DM32: B | DN32: 76.6875 | DO32: 82.85714286 | DP32: B | DQ32: 81.66666667 | DR32: 86.66666667 | DS32: B | DT32: 88.05 | DU32: 87.375 | DV32: A | DW32: 74.27933333 | DX32: 75.375 | DY32: B | DZ32: 75.325 | EA32: 84.575 | EB32: B | EC32: 78.45 | ED32: 78.28571429 | EE32: B | EF32: 78 | EG32: 78 | EH32: B | EI32: 79.3 | EJ32: 79.75 | EK32: B | EL32: 89 | EM32: 86 | EN32: B | EO32: 84.425 | EP32: 83.2 | EQ32: B | ER32: 77 | ES32: 81 | ET32: B | EU32: - | EV32: - | EW32: - | EX32: - | EY32: - | EZ32: - | FA32: - | FB32: - | FC32: - | FD32: - | FE32: - | FF32: - | FG32: - | FH32: - | FI32: - | FJ32: - | FK32: - | FL32: - | FM32: - | FN32: - | FO32: - | FP32: - | FQ32: - | FR32: - | FS32: - | FT32: - | FU32: - | FV32: - | FW32: - | FX32: - | FY32: 81.35 | FZ32: 85.75 | GA32: B | GB32: - | GC32: - | GD32: - | GE32: - | GF32: - | GG32: - | VR32: 81.73 | VS32: 81.73 | VT32: 78 | VU32: 80 | VV32: 77.15 | VW32: 77 | VX32: 76.69 | VY32: 81.67 | VZ32: 88.05 | WA32: 74.28 | WB32: 75.33 | WC32: 78.45 | WD32: 78 | WE32: 82.43 | WG32: 81.35 | WK32: 1439.150167 | WL32: 24 | WM32: 79.95278704 | WN32: 29 | WO32: 1439.150167 | WP32: 24 | WQ32: 79.95278704 | WR32: 29
A33: 26 | B33: RAP026 | D33: X TGB 1 | E33: MUHAMMAD FARIDZ RAFIZHAM | I33: 15160028 | J33: 81 | K33: 80 | L33: B | M33: 81 | N33: 80 | O33: B | P33: 77 | Q33: 77 | R33: B | S33: 80 | T33: 85 | U33: B | V33: 76.6 | W33: 76.875 | X33: B | Y33: 75 | Z33: 75 | AA33: B | AB33: 75.785 | AC33: 77.71428571 | AD33: B | AE33: 81.66666667 | AF33: 85 | AG33: B | AH33: 88.55 | AI33: 86.25 | AJ33: A | AK33: 74.26733333 | AL33: 75.125 | AM33: B | AN33: 75.025 | AO33: 79.775 | AP33: B | AQ33: 78.21666667 | AR33: 78.14285714 | AS33: B | AT33: 70 | AU33: 70 | AV33: B | AW33: 80.5 | AX33: 79.75 | AY33: B | AZ33: 71 | BA33: 87 | BB33: B | BC33: 83.2 | BD33: 80.8 | BE33: B | BF33: 84 | BG33: 87 | BH33: B | BI33: - | BJ33: - | BK33: - | BL33: - | BM33: - | BN33: - | BO33: - | BP33: - | BQ33: - | BR33: - | BS33: - | BT33: - | BU33: - | BV33: - | BW33: - | BX33: - | BY33: - | BZ33: - | CA33: - | CB33: - | CC33: - | CD33: - | CE33: - | CF33: - | CG33: - | CH33: - | CI33: - | CJ33: - | CK33: - | CL33: - | CM33: 78.4 | CN33: 76.5 | CO33: B | CP33: - | CQ33: - | CR33: - | CS33: - | CT33: - | CU33: - | CV33: 81 | CW33: 80 | CX33: B | CY33: 81 | CZ33: 80 | DA33: B | DB33: 77 | DC33: 77 | DD33: B | DE33: 80 | DF33: 85 | DG33: B | DH33: 76.6 | DI33: 76.875 | DJ33: B | DK33: 75 | DL33: 75 | DM33: B | DN33: 75.785 | DO33: 77.71428571 | DP33: B | DQ33: 81.66666667 | DR33: 85 | DS33: B | DT33: 88.55 | DU33: 86.25 | DV33: A | DW33: 74.26733333 | DX33: 75.125 | DY33: B | DZ33: 75.025 | EA33: 79.775 | EB33: B | EC33: 78.21666667 | ED33: 78.14285714 | EE33: B | EF33: 70 | EG33: 70 | EH33: B | EI33: 80.5 | EJ33: 79.75 | EK33: B | EL33: 71 | EM33: 87 | EN33: B | EO33: 83.2 | EP33: 80.8 | EQ33: B | ER33: 84 | ES33: 87 | ET33: B | EU33: - | EV33: - | EW33: - | EX33: - | EY33: - | EZ33: - | FA33: - | FB33: - | FC33: - | FD33: - | FE33: - | FF33: - | FG33: - | FH33: - | FI33: - | FJ33: - | FK33: - | FL33: - | FM33: - | FN33: - | FO33: - | FP33: - | FQ33: - | FR33: - | FS33: - | FT33: - | FU33: - | FV33: - | FW33: - | FX33: - | FY33: 78.4 | FZ33: 76.5 | GA33: B | GB33: - | GC33: - | GD33: - | GE33: - | GF33: - | GG33: - | VR33: 81 | VS33: 81 | VT33: 77 | VU33: 80 | VV33: 76.6 | VW33: 75 | VX33: 75.79 | VY33: 81.67 | VZ33: 88.55 | WA33: 74.27 | WB33: 75.03 | WC33: 78.22 | WD33: 70 | WE33: 79.68 | WG33: 78.4 | WK33: 1411.210667 | WL33: 24 | WM33: 78.40059259 | WN33: 36 | WO33: 1411.210667 | WP33: 24 | WQ33: 78.40059259 | WR33: 36
A34: 27 | B34: RAP027 | D34: X TGB 1 | E34: NAZILATUL ULYA | I34: 15160029 | J34: 82.61666667 | K34: 85 | L34: A | M34: 82.61666667 | N34: 85 | O34: A | P34: 80 | Q34: 78 | R34: B | S34: 83 | T34: 85 | U34: A | V34: 83.76666667 | W34: 76.375 | X34: B | Y34: 77 | Z34: 77 | AA34: B | AB34: 78.23 | AC34: 77.42857143 | AD34: B | AE34: 81.66666667 | AF34: 86.66666667 | AG34: B | AH34: 91.75 | AI34: 90.75 | AJ34: A | AK34: 65.296 | AL34: 75.25 | AM34: B | AN34: 75.1 | AO34: 79.975 | AP34: B | AQ34: 79.15 | AR34: 78.85714286 | AS34: B | AT34: 78 | AU34: 78 | AV34: B | AW34: 80.05 | AX34: 79 | AY34: B | AZ34: 89 | BA34: 86 | BB34: A | BC34: 86.35 | BD34: 84.4 | BE34: B | BF34: 83 | BG34: 85 | BH34: B | BI34: - | BJ34: - | BK34: - | BL34: - | BM34: - | BN34: - | BO34: - | BP34: - | BQ34: - | BR34: - | BS34: - | BT34: - | BU34: - | BV34: - | BW34: - | BX34: - | BY34: - | BZ34: - | CA34: - | CB34: - | CC34: - | CD34: - | CE34: - | CF34: - | CG34: - | CH34: - | CI34: - | CJ34: - | CK34: - | CL34: - | CM34: 89.58333333 | CN34: 92.5 | CO34: A | CP34: - | CQ34: - | CR34: - | CS34: - | CT34: - | CU34: - | CV34: 82.61666667 | CW34: 85 | CX34: A | CY34: 82.61666667 | CZ34: 85 | DA34: A | DB34: 80 | DC34: 78 | DD34: B | DE34: 83 | DF34: 85 | DG34: A | DH34: 83.76666667 | DI34: 76.375 | DJ34: B | DK34: 77 | DL34: 77 | DM34: B | DN34: 78.23 | DO34: 77.42857143 | DP34: B | DQ34: 81.66666667 | DR34: 86.66666667 | DS34: B | DT34: 91.75 | DU34: 90.75 | DV34: A | DW34: 65.296 | DX34: 75.25 | DY34: B | DZ34: 75.1 | EA34: 79.975 | EB34: B | EC34: 79.15 | ED34: 78.85714286 | EE34: B | EF34: 78 | EG34: 78 | EH34: B | EI34: 80.05 | EJ34: 79 | EK34: B | EL34: 89 | EM34: 86 | EN34: A | EO34: 86.35 | EP34: 84.4 | EQ34: B | ER34: 83 | ES34: 85 | ET34: B | EU34: - | EV34: - | EW34: - | EX34: - | EY34: - | EZ34: - | FA34: - | FB34: - | FC34: - | FD34: - | FE34: - | FF34: - | FG34: - | FH34: - | FI34: - | FJ34: - | FK34: - | FL34: - | FM34: - | FN34: - | FO34: - | FP34: - | FQ34: - | FR34: - | FS34: - | FT34: - | FU34: - | FV34: - | FW34: - | FX34: - | FY34: 89.58333333 | FZ34: 92.5 | GA34: A | GB34: - | GC34: - | GD34: - | GE34: - | GF34: - | GG34: - | VR34: 82.62 | VS34: 82.62 | VT34: 80 | VU34: 83 | VV34: 83.77 | VW34: 77 | VX34: 78.23 | VY34: 81.67 | VZ34: 91.75 | WA34: 65.3 | WB34: 75.1 | WC34: 79.15 | WD34: 78 | WE34: 84.6 | WG34: 89.58 | WK34: 1466.176 | WL34: 24 | WM34: 81.45422222 | WN34: 16 | WO34: 1466.176 | WP34: 24 | WQ34: 81.45422222 | WR34: 16
A35: 28 | B35: RAP028 | D35: X TGB 1 | E35: NON TIARA | I35: 15160030 | J35: 86.11666667 | K35: 80 | L35: B | M35: 86.11666667 | N35: 80 | O35: B | P35: 81 | Q35: 80 | R35: B | S35: 83 | T35: 85 | U35: B | V35: 79.13333333 | W35: 78.625 | X35: B | Y35: 78 | Z35: 78 | AA35: B | AB35: 71 | AC35: 87 | AD35: B | AE35: 81.66666667 | AF35: 86.66666667 | AG35: B | AH35: 86.6 | AI35: 86.375 | AJ35: A | AK35: 76.43933333 | AL35: 75.125 | AM35: B | AN35: 74.525 | AO35: 76.125 | AP35: B | AQ35: 82.88333333 | AR35: 80.28571429 | AS35: B | AT35: 78 | AU35: 78 | AV35: B | AW35: 80.95 | AX35: 79 | AY35: B | AZ35: 91 | BA35: 87 | BB35: B | BC35: 84.95 | BD35: 82.8 | BE35: B | BF35: 85 | BG35: 87 | BH35: B | BI35: - | BJ35: - | BK35: - | BL35: - | BM35: - | BN35: - | BO35: - | BP35: - | BQ35: - | BR35: - | BS35: - | BT35: - | BU35: - | BV35: - | BW35: - | BX35: - | BY35: - | BZ35: - | CA35: - | CB35: - | CC35: - | CD35: - | CE35: - | CF35: - | CG35: - | CH35: - | CI35: - | CJ35: - | CK35: - | CL35: - | CM35: 92.06666667 | CN35: 92.5 | CO35: A | CP35: - | CQ35: - | CR35: - | CS35: - | CT35: - | CU35: - | CV35: 86.11666667 | CW35: 80 | CX35: B | CY35: 86.11666667 | CZ35: 80 | DA35: B | DB35: 81 | DC35: 80 | DD35: B | DE35: 83 | DF35: 85 | DG35: B | DH35: 79.13333333 | DI35: 78.625 | DJ35: B | DK35: 78 | DL35: 78 | DM35: B | DN35: 71 | DO35: 87 | DP35: B | DQ35: 81.66666667 | DR35: 86.66666667 | DS35: B | DT35: 86.6 | DU35: 86.375 | DV35: A | DW35: 76.43933333 | DX35: 75.125 | DY35: B | DZ35: 74.525 | EA35: 76.125 | EB35: B | EC35: 82.88333333 | ED35: 80.28571429 | EE35: B | EF35: 78 | EG35: 78 | EH35: B | EI35: 80.95 | EJ35: 79 | EK35: B | EL35: 91 | EM35: 87 | EN35: B | EO35: 84.95 | EP35: 82.8 | EQ35: B | ER35: 85 | ES35: 87 | ET35: B | EU35: - | EV35: - | EW35: - | EX35: - | EY35: - | EZ35: - | FA35: - | FB35: - | FC35: - | FD35: - | FE35: - | FF35: - | FG35: - | FH35: - | FI35: - | FJ35: - | FK35: - | FL35: - | FM35: - | FN35: - | FO35: - | FP35: - | FQ35: - | FR35: - | FS35: - | FT35: - | FU35: - | FV35: - | FW35: - | FX35: - | FY35: 92.06666667 | FZ35: 92.5 | GA35: A | GB35: - | GC35: - | GD35: - | GE35: - | GF35: - | GG35: - | VR35: 86.12 | VS35: 86.12 | VT35: 81 | VU35: 83 | VV35: 79.13 | VW35: 78 | VX35: 71 | VY35: 81.67 | VZ35: 86.6 | WA35: 76.44 | WB35: 74.53 | WC35: 82.88 | WD35: 78 | WE35: 85.48 | WG35: 92.07 | WK35: 1478.447667 | WL35: 24 | WM35: 82.13598148 | WN35: 14 | WO35: 1478.447667 | WP35: 24 | WQ35: 82.13598148 | WR35: 14
A36: 29 | B36: RAP029 | D36: X TGB 1 | E36: PANJI ARIANTO | I36: 15160031 | J36: 80.18333333 | K36: 80 | L36: B | M36: 80.18333333 | N36: 80 | O36: B | P36: 76 | Q36: 77 | R36: B | S36: 80 | T36: 80 | U36: B | V36: 76.9 | W36: 75 | X36: B | Y36: 77 | Z36: 77 | AA36: B | AB36: 89 | AC36: 86 | AD36: B | AE36: 81.66666667 | AF36: 86.66666667 | AG36: B | AH36: 90.35 | AI36: 90.25 | AJ36: A | AK36: 73.97933333 | AL36: 75.125 | AM36: B | AN36: 74.75 | AO36: 87.7 | AP36: B | AQ36: 78.33333333 | AR36: 78.28571429 | AS36: B | AT36: 76 | AU36: 76 | AV36: B | AW36: 80.35 | AX36: 79.75 | AY36: B | AZ36: 89 | BA36: 86 | BB36: B | BC36: 80.225 | BD36: 78.8 | BE36: B | BF36: 84 | BG36: 83 | BH36: B | BI36: - | BJ36: - | BK36: - | BL36: - | BM36: - | BN36: - | BO36: - | BP36: - | BQ36: - | BR36: - | BS36: - | BT36: - | BU36: - | BV36: - | BW36: - | BX36: - | BY36: - | BZ36: - | CA36: - | CB36: - | CC36: - | CD36: - | CE36: - | CF36: - | CG36: - | CH36: - | CI36: - | CJ36: - | CK36: - | CL36: - | CM36: 80.43333333 | CN36: 83.75 | CO36: B | CP36: - | CQ36: - | CR36: - | CS36: - | CT36: - | CU36: - | CV36: 80.18333333 | CW36: 80 | CX36: B | CY36: 80.18333333 | CZ36: 80 | DA36: B | DB36: 76 | DC36: 77 | DD36: B | DE36: 80 | DF36: 80 | DG36: B | DH36: 76.9 | DI36: 75 | DJ36: B | DK36: 77 | DL36: 77 | DM36: B | DN36: 89 | DO36: 86 | DP36: B | DQ36: 81.66666667 | DR36: 86.66666667 | DS36: B | DT36: 90.35 | DU36: 90.25 | DV36: A | DW36: 73.97933333 | DX36: 75.125 | DY36: B | DZ36: 74.75 | EA36: 87.7 | EB36: B | EC36: 78.33333333 | ED36: 78.28571429 | EE36: B | EF36: 76 | EG36: 76 | EH36: B | EI36: 80.35 | EJ36: 79.75 | EK36: B | EL36: 89 | EM36: 86 | EN36: B | EO36: 80.225 | EP36: 78.8 | EQ36: B | ER36: 84 | ES36: 83 | ET36: B | EU36: - | EV36: - | EW36: - | EX36: - | EY36: - | EZ36: - | FA36: - | FB36: - | FC36: - | FD36: - | FE36: - | FF36: - | FG36: - | FH36: - | FI36: - | FJ36: - | FK36: - | FL36: - | FM36: - | FN36: - | FO36: - | FP36: - | FQ36: - | FR36: - | FS36: - | FT36: - | FU36: - | FV36: - | FW36: - | FX36: - | FY36: 80.43333333 | FZ36: 83.75 | GA36: B | GB36: - | GC36: - | GD36: - | GE36: - | GF36: - | GG36: - | VR36: 80.18 | VS36: 80.18 | VT36: 76 | VU36: 80 | VV36: 76.9 | VW36: 77 | VX36: 89 | VY36: 81.67 | VZ36: 90.35 | WA36: 73.98 | WB36: 74.75 | WC36: 78.33 | WD36: 76 | WE36: 83.39 | WG36: 80.43 | WK36: 1448.354333 | WL36: 24 | WM36: 80.46412963 | WN36: 24 | WO36: 1448.354333 | WP36: 24 | WQ36: 80.46412963 | WR36: 24
A37: 30 | B37: RAP030 | D37: X TGB 1 | E37: SAEPUL HAYATI YUSUP | I37: 15160032 | J37: 90 | K37: 90 | L37: A | M37: 90 | N37: 90 | O37: A | P37: 82 | Q37: 81 | R37: B | S37: 86 | T37: 87 | U37: A | V37: 83.91666667 | W37: 86.125 | X37: A | Y37: 80 | Z37: 80 | AA37: B | AB37: 91 | AC37: 87 | AD37: B | AE37: 77.5 | AF37: 78.33333333 | AG37: B | AH37: 88.55 | AI37: 87.5 | AJ37: A | AK37: 50.86333333 | AL37: 75.125 | AM37: B | AN37: 74.525 | AO37: 81.525 | AP37: B | AQ37: 85.91666667 | AR37: 84.71428571 | AS37: B | AT37: 76 | AU37: 76 | AV37: B | AW37: 79.8 | AX37: 79.75 | AY37: B | AZ37: 89 | BA37: 87 | BB37: B | BC37: 86 | BD37: 84 | BE37: B | BF37: 81 | BG37: 81 | BH37: B | BI37: - | BJ37: - | BK37: - | BL37: - | BM37: - | BN37: - | BO37: - | BP37: - | BQ37: - | BR37: - | BS37: - | BT37: - | BU37: - | BV37: - | BW37: - | BX37: - | BY37: - | BZ37: - | CA37: - | CB37: - | CC37: - | CD37: - | CE37: - | CF37: - | CG37: - | CH37: - | CI37: - | CJ37: - | CK37: - | CL37: - | CM37: 90.03333333 | CN37: 92.5 | CO37: A | CP37: - | CQ37: - | CR37: - | CS37: - | CT37: - | CU37: - | CV37: 90 | CW37: 90 | CX37: A | CY37: 90 | CZ37: 90 | DA37: A | DB37: 82 | DC37: 81 | DD37: B | DE37: 86 | DF37: 87 | DG37: A | DH37: 83.91666667 | DI37: 86.125 | DJ37: A | DK37: 80 | DL37: 80 | DM37: B | DN37: 91 | DO37: 87 | DP37: B | DQ37: 77.5 | DR37: 78.33333333 | DS37: B | DT37: 88.55 | DU37: 87.5 | DV37: A | DW37: 50.86333333 | DX37: 75.125 | DY37: B | DZ37: 74.525 | EA37: 81.525 | EB37: B | EC37: 85.91666667 | ED37: 84.71428571 | EE37: B | EF37: 76 | EG37: 76 | EH37: B | EI37: 79.8 | EJ37: 79.75 | EK37: B | EL37: 89 | EM37: 87 | EN37: B | EO37: 86 | EP37: 84 | EQ37: B | ER37: 81 | ES37: 81 | ET37: B | EU37: - | EV37: - | EW37: - | EX37: - | EY37: - | EZ37: - | FA37: - | FB37: - | FC37: - | FD37: - | FE37: - | FF37: - | FG37: - | FH37: - | FI37: - | FJ37: - | FK37: - | FL37: - | FM37: - | FN37: - | FO37: - | FP37: - | FQ37: - | FR37: - | FS37: - | FT37: - | FU37: - | FV37: - | FW37: - | FX37: - | FY37: 90.03333333 | FZ37: 92.5 | GA37: A | GB37: - | GC37: - | GD37: - | GE37: - | GF37: - | GG37: - | VR37: 90 | VS37: 90 | VT37: 82 | VU37: 86 | VV37: 83.92 | VW37: 80 | VX37: 91 | VY37: 77.5 | VZ37: 88.55 | WA37: 50.86 | WB37: 74.53 | WC37: 85.92 | WD37: 76 | WE37: 83.95 | WG37: 90.03 | WK37: 1482.105 | WL37: 24 | WM37: 82.33916667 | WN37: 13 | WO37: 1482.105 | WP37: 24 | WQ37: 82.33916667 | WR37: 13
A38: 31 | B38: RAP031 | D38: X TGB 1 | E38: SELI MARLINA | I38: 15160033 | J38: 85 | K38: 85 | L38: B | M38: 85 | N38: 85 | O38: B | P38: 79 | Q38: 77 | R38: B | S38: 83 | T38: 85 | U38: B | V38: 76.71666667 | W38: 75 | X38: B | Y38: 80 | Z38: 80 | AA38: B | AB38: 89 | AC38: 86 | AD38: A | AE38: 81.66666667 | AF38: 86.66666667 | AG38: B | AH38: 92.3 | AI38: 90.5 | AJ38: A | AK38: 59.46266667 | AL38: 75.125 | AM38: B | AN38: 74.675 | AO38: 77.925 | AP38: B | AQ38: 78.56666667 | AR38: 78.14285714 | AS38: B | AT38: 76 | AU38: 76 | AV38: B | AW38: 80.05 | AX38: 79.75 | AY38: B | AZ38: 89 | BA38: 86 | BB38: A | BC38: 84.075 | BD38: 81.8 | BE38: B | BF38: 84 | BG38: 87 | BH38: B | BI38: - | BJ38: - | BK38: - | BL38: - | BM38: - | BN38: - | BO38: - | BP38: - | BQ38: - | BR38: - | BS38: - | BT38: - | BU38: - | BV38: - | BW38: - | BX38: - | BY38: - | BZ38: - | CA38: - | CB38: - | CC38: - | CD38: - | CE38: - | CF38: - | CG38: - | CH38: - | CI38: - | CJ38: - | CK38: - | CL38: - | CM38: 85.45 | CN38: 82.5 | CO38: B | CP38: - | CQ38: - | CR38: - | CS38: - | CT38: - | CU38: - | CV38: 85 | CW38: 85 | CX38: B | CY38: 85 | CZ38: 85 | DA38: B | DB38: 79 | DC38: 77 | DD38: B | DE38: 83 | DF38: 85 | DG38: B | DH38: 76.71666667 | DI38: 75 | DJ38: B | DK38: 80 | DL38: 80 | DM38: B | DN38: 89 | DO38: 86 | DP38: A | DQ38: 81.66666667 | DR38: 86.66666667 | DS38: B | DT38: 92.3 | DU38: 90.5 | DV38: A | DW38: 59.46266667 | DX38: 75.125 | DY38: B | DZ38: 74.675 | EA38: 77.925 | EB38: B | EC38: 78.56666667 | ED38: 78.14285714 | EE38: B | EF38: 76 | EG38: 76 | EH38: B | EI38: 80.05 | EJ38: 79.75 | EK38: B | EL38: 89 | EM38: 86 | EN38: A | EO38: 84.075 | EP38: 81.8 | EQ38: B | ER38: 84 | ES38: 87 | ET38: B | EU38: - | EV38: - | EW38: - | EX38: - | EY38: - | EZ38: - | FA38: - | FB38: - | FC38: - | FD38: - | FE38: - | FF38: - | FG38: - | FH38: - | FI38: - | FJ38: - | FK38: - | FL38: - | FM38: - | FN38: - | FO38: - | FP38: - | FQ38: - | FR38: - | FS38: - | FT38: - | FU38: - | FV38: - | FW38: - | FX38: - | FY38: 85.45 | FZ38: 82.5 | GA38: B | GB38: - | GC38: - | GD38: - | GE38: - | GF38: - | GG38: - | VR38: 85 | VS38: 85 | VT38: 79 | VU38: 83 | VV38: 76.72 | VW38: 80 | VX38: 89 | VY38: 81.67 | VZ38: 92.3 | WA38: 59.46 | WB38: 74.68 | WC38: 78.57 | WD38: 76 | WE38: 84.28 | WG38: 85.45 | WK38: 1462.962667 | WL38: 24 | WM38: 81.2757037 | WN38: 17 | WO38: 1462.962667 | WP38: 24 | WQ38: 81.2757037 | WR38: 17
A39: 32 | B39: RAP032 | D39: X TGB 1 | E39: SITI SALAMAH AZZAHRA | I39: 15160034 | J39: 85 | K39: 85 | L39: B | M39: 85 | N39: 85 | O39: B | P39: 80 | Q39: 79 | R39: B | S39: 85 | T39: 85 | U39: A | V39: 79.41666667 | W39: 75 | X39: B | Y39: 80 | Z39: 80 | AA39: B | AB39: 89 | AC39: 86 | AD39: A | AE39: 81.66666667 | AF39: 86.66666667 | AG39: B | AH39: 89.15 | AI39: 86.75 | AJ39: A | AK39: 78.614 | AL39: 77.625 | AM39: B | AN39: 74.675 | AO39: 86.025 | AP39: B | AQ39: 83.35 | AR39: 81.28571429 | AS39: B | AT39: 80 | AU39: 80 | AV39: B | AW39: 80.2 | AX39: 79.75 | AY39: B | AZ39: 89 | BA39: 86 | BB39: A | BC39: 85.475 | BD39: 83.4 | BE39: B | BF39: 84 | BG39: 83 | BH39: B | BI39: - | BJ39: - | BK39: - | BL39: - | BM39: - | BN39: - | BO39: - | BP39: - | BQ39: - | BR39: - | BS39: - | BT39: - | BU39: - | BV39: - | BW39: - | BX39: - | BY39: - | BZ39: - | CA39: - | CB39: - | CC39: - | CD39: - | CE39: - | CF39: - | CG39: - | CH39: - | CI39: - | CJ39: - | CK39: - | CL39: - | CM39: 80.28333333 | CN39: 85.25 | CO39: B | CP39: - | CQ39: - | CR39: - | CS39: - | CT39: - | CU39: - | CV39: 85 | CW39: 85 | CX39: B | CY39: 85 | CZ39: 85 | DA39: B | DB39: 80 | DC39: 79 | DD39: B | DE39: 85 | DF39: 85 | DG39: A | DH39: 79.41666667 | DI39: 75 | DJ39: B | DK39: 80 | DL39: 80 | DM39: B | DN39: 89 | DO39: 86 | DP39: A | DQ39: 81.66666667 | DR39: 86.66666667 | DS39: B | DT39: 89.15 | DU39: 86.75 | DV39: A | DW39: 78.614 | DX39: 77.625 | DY39: B | DZ39: 74.675 | EA39: 86.025 | EB39: B | EC39: 83.35 | ED39: 81.28571429 | EE39: B | EF39: 80 | EG39: 80 | EH39: B | EI39: 80.2 | EJ39: 79.75 | EK39: B | EL39: 89 | EM39: 86 | EN39: A | EO39: 85.475 | EP39: 83.4 | EQ39: B | ER39: 84 | ES39: 83 | ET39: B | EU39: - | EV39: - | EW39: - | EX39: - | EY39: - | EZ39: - | FA39: - | FB39: - | FC39: - | FD39: - | FE39: - | FF39: - | FG39: - | FH39: - | FI39: - | FJ39: - | FK39: - | FL39: - | FM39: - | FN39: - | FO39: - | FP39: - | FQ39: - | FR39: - | FS39: - | FT39: - | FU39: - | FV39: - | FW39: - | FX39: - | FY39: 80.28333333 | FZ39: 85.25 | GA39: B | GB39: - | GC39: - | GD39: - | GE39: - | GF39: - | GG39: - | VR39: 85 | VS39: 85 | VT39: 80 | VU39: 85 | VV39: 79.42 | VW39: 80 | VX39: 89 | VY39: 81.67 | VZ39: 89.15 | WA39: 78.61 | WB39: 74.68 | WC39: 83.35 | WD39: 80 | WE39: 84.67 | WG39: 80.28 | WK39: 1489.830667 | WL39: 24 | WM39: 82.76837037 | WN39: 7 | WO39: 1489.830667 | WP39: 24 | WQ39: 82.76837037 | WR39: 7
A40: 33 | B40: RAP033 | D40: X TGB 1 | E40: SOPIAN | I40: 15160035 | J40: 85 | K40: 80 | L40: B | M40: 85 | N40: 80 | O40: B | P40: 80 | Q40: 79 | R40: B | S40: 85 | T40: 88 | U40: A | V40: 81.55 | W40: 76.375 | X40: B | Y40: 75 | Z40: 75 | AA40: B | AB40: 89 | AC40: 86 | AD40: B | AE40: 81.66666667 | AF40: 86.66666667 | AG40: B | AH40: 92.45 | AI40: 89 | AJ40: A | AK40: 69.112 | AL40: 75.125 | AM40: B | AN40: 77.975 | AO40: 86.925 | AP40: B | AQ40: 79.15 | AR40: 78.42857143 | AS40: B | AT40: 80 | AU40: 80 | AV40: B | AW40: 79.5 | AX40: 79.75 | AY40: B | AZ40: 89 | BA40: 86 | BB40: B | BC40: 87.4 | BD40: 85.6 | BE40: B | BF40: 91 | BG40: 87 | BH40: B | BI40: - | BJ40: - | BK40: - | BL40: - | BM40: - | BN40: - | BO40: - | BP40: - | BQ40: - | BR40: - | BS40: - | BT40: - | BU40: - | BV40: - | BW40: - | BX40: - | BY40: - | BZ40: - | CA40: - | CB40: - | CC40: - | CD40: - | CE40: - | CF40: - | CG40: - | CH40: - | CI40: - | CJ40: - | CK40: - | CL40: - | CM40: 88.56666667 | CN40: 83.25 | CO40: A | CP40: - | CQ40: - | CR40: - | CS40: - | CT40: - | CU40: - | CV40: 85 | CW40: 80 | CX40: B | CY40: 85 | CZ40: 80 | DA40: B | DB40: 80 | DC40: 79 | DD40: B | DE40: 85 | DF40: 88 | DG40: A | DH40: 81.55 | DI40: 76.375 | DJ40: B | DK40: 75 | DL40: 75 | DM40: B | DN40: 89 | DO40: 86 | DP40: B | DQ40: 81.66666667 | DR40: 86.66666667 | DS40: B | DT40: 92.45 | DU40: 89 | DV40: A | DW40: 69.112 | DX40: 75.125 | DY40: B | DZ40: 77.975 | EA40: 86.925 | EB40: B | EC40: 79.15 | ED40: 78.42857143 | EE40: B | EF40: 80 | EG40: 80 | EH40: B | EI40: 79.5 | EJ40: 79.75 | EK40: B | EL40: 89 | EM40: 86 | EN40: B | EO40: 87.4 | EP40: 85.6 | EQ40: B | ER40: 91 | ES40: 87 | ET40: B | EU40: - | EV40: - | EW40: - | EX40: - | EY40: - | EZ40: - | FA40: - | FB40: - | FC40: - | FD40: - | FE40: - | FF40: - | FG40: - | FH40: - | FI40: - | FJ40: - | FK40: - | FL40: - | FM40: - | FN40: - | FO40: - | FP40: - | FQ40: - | FR40: - | FS40: - | FT40: - | FU40: - | FV40: - | FW40: - | FX40: - | FY40: 88.56666667 | FZ40: 83.25 | GA40: A | GB40: - | GC40: - | GD40: - | GE40: - | GF40: - | GG40: - | VR40: 85 | VS40: 85 | VT40: 80 | VU40: 85 | VV40: 81.55 | VW40: 75 | VX40: 89 | VY40: 81.67 | VZ40: 92.45 | WA40: 69.11 | WB40: 77.98 | WC40: 79.15 | WD40: 80 | WE40: 86.73 | WG40: 88.57 | WK40: 1496.370333 | WL40: 24 | WM40: 83.13168519 | WN40: 4 | WO40: 1496.370333 | WP40: 24 | WQ40: 83.13168519 | WR40: 4
A41: 34 | B41: RAP034 | D41: X TGB 1 | E41: TAUFAN AKBAR FAUZI | I41: 15160036 | J41: 85 | K41: 80 | L41: B | M41: 85 | N41: 80 | O41: B | P41: 83 | Q41: 80 | R41: A | S41: 90 | T41: 89 | U41: A | V41: 77.03333333 | W41: 75 | X41: B | Y41: 80 | Z41: 80 | AA41: B | AB41: 94 | AC41: 89 | AD41: B | AE41: 81.66666667 | AF41: 86.66666667 | AG41: B | AH41: 88.7 | AI41: 87.5 | AJ41: A | AK41: 77.79533333 | AL41: 75.125 | AM41: B | AN41: 77.975 | AO41: 80.025 | AP41: B | AQ41: 83.81666667 | AR41: 81.71428571 | AS41: B | AT41: 80 | AU41: 80 | AV41: B | AW41: 79.18333333 | AX41: 79.75 | AY41: B | AZ41: 92 | BA41: 89 | BB41: B | BC41: 85.65 | BD41: 84.6 | BE41: B | BF41: 84 | BG41: 85 | BH41: B | BI41: - | BJ41: - | BK41: - | BL41: - | BM41: - | BN41: - | BO41: - | BP41: - | BQ41: - | BR41: - | BS41: - | BT41: - | BU41: - | BV41: - | BW41: - | BX41: - | BY41: - | BZ41: - | CA41: - | CB41: - | CC41: - | CD41: - | CE41: - | CF41: - | CG41: - | CH41: - | CI41: - | CJ41: - | CK41: - | CL41: - | CM41: 95.8 | CN41: 92.5 | CO41: A | CP41: - | CQ41: - | CR41: - | CS41: - | CT41: - | CU41: - | CV41: 85 | CW41: 80 | CX41: B | CY41: 85 | CZ41: 80 | DA41: B | DB41: 83 | DC41: 80 | DD41: A | DE41: 90 | DF41: 89 | DG41: A | DH41: 77.03333333 | DI41: 75 | DJ41: B | DK41: 80 | DL41: 80 | DM41: B | DN41: 94 | DO41: 89 | DP41: B | DQ41: 81.66666667 | DR41: 86.66666667 | DS41: B | DT41: 88.7 | DU41: 87.5 | DV41: A | DW41: 77.79533333 | DX41: 75.125 | DY41: B | DZ41: 77.975 | EA41: 80.025 | EB41: B | EC41: 83.81666667 | ED41: 81.71428571 | EE41: B | EF41: 80 | EG41: 80 | EH41: B | EI41: 79.18333333 | EJ41: 79.75 | EK41: B | EL41: 92 | EM41: 89 | EN41: B | EO41: 85.65 | EP41: 84.6 | EQ41: B | ER41: 84 | ES41: 85 | ET41: B | EU41: - | EV41: - | EW41: - | EX41: - | EY41: - | EZ41: - | FA41: - | FB41: - | FC41: - | FD41: - | FE41: - | FF41: - | FG41: - | FH41: - | FI41: - | FJ41: - | FK41: - | FL41: - | FM41: - | FN41: - | FO41: - | FP41: - | FQ41: - | FR41: - | FS41: - | FT41: - | FU41: - | FV41: - | FW41: - | FX41: - | FY41: 95.8 | FZ41: 92.5 | GA41: A | GB41: - | GC41: - | GD41: - | GE41: - | GF41: - | GG41: - | VR41: 85 | VS41: 85 | VT41: 83 | VU41: 90 | VV41: 77.03 | VW41: 80 | VX41: 94 | VY41: 81.67 | VZ41: 88.7 | WA41: 77.8 | WB41: 77.98 | WC41: 83.82 | WD41: 80 | WE41: 85.21 | WG41: 95.8 | WK41: 1520.620333 | WL41: 24 | WM41: 84.47890741 | WN41: 2 | WO41: 1520.620333 | WP41: 24 | WQ41: 84.47890741 | WR41: 2
A42: 35 | B42: RAP035 | D42: X TGB 1 | E42: TAUFIK ROHIDAYAT | I42: 15160037 | J42: 85 | K42: 80 | L42: B | M42: 85 | N42: 80 | O42: B | P42: 78 | Q42: 77 | R42: B | S42: 90 | T42: 85 | U42: B | V42: 76.76666667 | W42: 75 | X42: B | Y42: 75 | Z42: 75 | AA42: B | AB42: 94 | AC42: 89 | AD42: B | AE42: 77.83333333 | AF42: 80 | AG42: B | AH42: 93 | AI42: 91.625 | AJ42: A | AK42: 76.34 | AL42: 75.125 | AM42: B | AN42: 74.525 | AO42: 81.525 | AP42: B | AQ42: 79.03333333 | AR42: 78.28571429 | AS42: B | AT42: 76 | AU42: 76 | AV42: B | AW42: 80.2 | AX42: 79.75 | AY42: B | AZ42: 92 | BA42: 89 | BB42: B | BC42: 81.625 | BD42: 79 | BE42: B | BF42: 84 | BG42: 83 | BH42: B | BI42: - | BJ42: - | BK42: - | BL42: - | BM42: - | BN42: - | BO42: - | BP42: - | BQ42: - | BR42: - | BS42: - | BT42: - | BU42: - | BV42: - | BW42: - | BX42: - | BY42: - | BZ42: - | CA42: - | CB42: - | CC42: - | CD42: - | CE42: - | CF42: - | CG42: - | CH42: - | CI42: - | CJ42: - | CK42: - | CL42: - | CM42: 85 | CN42: 83.75 | CO42: B | CP42: - | CQ42: - | CR42: - | CS42: - | CT42: - | CU42: - | CV42: 85 | CW42: 80 | CX42: B | CY42: 85 | CZ42: 80 | DA42: B | DB42: 78 | DC42: 77 | DD42: B | DE42: 90 | DF42: 85 | DG42: B | DH42: 76.76666667 | DI42: 75 | DJ42: B | DK42: 75 | DL42: 75 | DM42: B | DN42: 94 | DO42: 89 | DP42: B | DQ42: 77.83333333 | DR42: 80 | DS42: B | DT42: 93 | DU42: 91.625 | DV42: A | DW42: 76.34 | DX42: 75.125 | DY42: B | DZ42: 74.525 | EA42: 81.525 | EB42: B | EC42: 79.03333333 | ED42: 78.28571429 | EE42: B | EF42: 76 | EG42: 76 | EH42: B | EI42: 80.2 | EJ42: 79.75 | EK42: B | EL42: 92 | EM42: 89 | EN42: B | EO42: 81.625 | EP42: 79 | EQ42: B | ER42: 84 | ES42: 83 | ET42: B | EU42: - | EV42: - | EW42: - | EX42: - | EY42: - | EZ42: - | FA42: - | FB42: - | FC42: - | FD42: - | FE42: - | FF42: - | FG42: - | FH42: - | FI42: - | FJ42: - | FK42: - | FL42: - | FM42: - | FN42: - | FO42: - | FP42: - | FQ42: - | FR42: - | FS42: - | FT42: - | FU42: - | FV42: - | FW42: - | FX42: - | FY42: 85 | FZ42: 83.75 | GA42: B | GB42: - | GC42: - | GD42: - | GE42: - | GF42: - | GG42: - | VR42: 85 | VS42: 85 | VT42: 78 | VU42: 90 | VV42: 76.77 | VW42: 75 | VX42: 94 | VY42: 77.83 | VZ42: 93 | WA42: 76.34 | WB42: 74.53 | WC42: 79.03 | WD42: 76 | WE42: 84.46 | WG42: 85 | WK42: 1483.323333 | WL42: 24 | WM42: 82.40685185 | WN42: 11 | WO42: 1483.323333 | WP42: 24 | WQ42: 82.40685185 | WR42: 11
A43: 36 | B43: RAP036 | D43: X TGB 1 | E43: TINI | I43: 15160039 | J43: 85 | K43: 85 | L43: B | M43: 85 | N43: 85 | O43: B | P43: 79 | Q43: 77 | R43: B | S43: 80 | T43: 85 | U43: B | V43: 83.76666667 | W43: 79.25 | X43: B | Y43: 88 | Z43: 88 | AA43: A | AB43: 92 | AC43: 85 | AD43: B | AE43: 81.66666667 | AF43: 85 | AG43: B | AH43: 87.2 | AI43: 86.25 | AJ43: A | AK43: 78.5 | AL43: 75.125 | AM43: B | AN43: 75 | AO43: 88.425 | AP43: B | AQ43: 78.56666667 | AR43: 78.14285714 | AS43: B | AT43: 78 | AU43: 78 | AV43: B | AW43: 80.05 | AX43: 79 | AY43: B | AZ43: 93 | BA43: 85 | BB43: B | BC43: 84.775 | BD43: 82.6 | BE43: B | BF43: 82 | BG43: 86 | BH43: B | BI43: - | BJ43: - | BK43: - | BL43: - | BM43: - | BN43: - | BO43: - | BP43: - | BQ43: - | BR43: - | BS43: - | BT43: - | BU43: - | BV43: - | BW43: - | BX43: - | BY43: - | BZ43: - | CA43: - | CB43: - | CC43: - | CD43: - | CE43: - | CF43: - | CG43: - | CH43: - | CI43: - | CJ43: - | CK43: - | CL43: - | CM43: 82.58333333 | CN43: 85 | CO43: B | CP43: - | CQ43: - | CR43: - | CS43: - | CT43: - | CU43: - | CV43: 85 | CW43: 85 | CX43: B | CY43: 85 | CZ43: 85 | DA43: B | DB43: 79 | DC43: 77 | DD43: B | DE43: 80 | DF43: 85 | DG43: B | DH43: 83.76666667 | DI43: 79.25 | DJ43: B | DK43: 88 | DL43: 88 | DM43: A | DN43: 92 | DO43: 85 | DP43: B | DQ43: 81.66666667 | DR43: 85 | DS43: B | DT43: 87.2 | DU43: 86.25 | DV43: A | DW43: 78.5 | DX43: 75.125 | DY43: B | DZ43: 75 | EA43: 88.425 | EB43: B | EC43: 78.56666667 | ED43: 78.14285714 | EE43: B | EF43: 78 | EG43: 78 | EH43: B | EI43: 80.05 | EJ43: 79 | EK43: B | EL43: 93 | EM43: 85 | EN43: B | EO43: 84.775 | EP43: 82.6 | EQ43: B | ER43: 82 | ES43: 86 | ET43: B | EU43: - | EV43: - | EW43: - | EX43: - | EY43: - | EZ43: - | FA43: - | FB43: - | FC43: - | FD43: - | FE43: - | FF43: - | FG43: - | FH43: - | FI43: - | FJ43: - | FK43: - | FL43: - | FM43: - | FN43: - | FO43: - | FP43: - | FQ43: - | FR43: - | FS43: - | FT43: - | FU43: - | FV43: - | FW43: - | FX43: - | FY43: 82.58333333 | FZ43: 85 | GA43: B | GB43: - | GC43: - | GD43: - | GE43: - | GF43: - | GG43: - | VR43: 85 | VS43: 85 | VT43: 79 | VU43: 80 | VV43: 83.77 | VW43: 88 | VX43: 92 | VY43: 81.67 | VZ43: 87.2 | WA43: 78.5 | WB43: 75 | WC43: 78.57 | WD43: 78 | WE43: 84.96 | WG43: 82.58 | WK43: 1494.108333 | WL43: 24 | WM43: 83.00601852 | WN43: 6 | WO43: 1494.108333 | WP43: 24 | WQ43: 83.00601852 | WR43: 6
A44: 37 | B44: RAP037 | D44: X TGB 1 | E44: WIDI NUR OKTAVIANI | I44: 15160040 | J44: 85 | K44: 85 | L44: B | M44: 85 | N44: 85 | O44: B | P44: 80 | Q44: 78 | R44: B | S44: 80 | T44: 85 | U44: B | V44: 76.55 | W44: 76.25 | X44: B | Y44: 78 | Z44: 78 | AA44: B | AB44: 92 | AC44: 86 | AD44: A | AE44: 81.66666667 | AF44: 86.66666667 | AG44: B | AH44: 89.45 | AI44: 87.25 | AJ44: A | AK44: 65.76066667 | AL44: 75.125 | AM44: B | AN44: 75 | AO44: 89.025 | AP44: B | AQ44: 78.21666667 | AR44: 78 | AS44: B | AT44: 78 | AU44: 78 | AV44: B | AW44: 80.2 | AX44: 79 | AY44: B | AZ44: 89 | BA44: 86 | BB44: A | BC44: 80.225 | BD44: 78.8 | BE44: B | BF44: 85 | BG44: 89 | BH44: B | BI44: - | BJ44: - | BK44: - | BL44: - | BM44: - | BN44: - | BO44: - | BP44: - | BQ44: - | BR44: - | BS44: - | BT44: - | BU44: - | BV44: - | BW44: - | BX44: - | BY44: - | BZ44: - | CA44: - | CB44: - | CC44: - | CD44: - | CE44: - | CF44: - | CG44: - | CH44: - | CI44: - | CJ44: - | CK44: - | CL44: - | CM44: 77.65 | CN44: 83.75 | CO44: B | CP44: - | CQ44: - | CR44: - | CS44: - | CT44: - | CU44: - | CV44: 85 | CW44: 85 | CX44: B | CY44: 85 | CZ44: 85 | DA44: B | DB44: 80 | DC44: 78 | DD44: B | DE44: 80 | DF44: 85 | DG44: B | DH44: 76.55 | DI44: 76.25 | DJ44: B | DK44: 78 | DL44: 78 | DM44: B | DN44: 92 | DO44: 86 | DP44: A | DQ44: 81.66666667 | DR44: 86.66666667 | DS44: B | DT44: 89.45 | DU44: 87.25 | DV44: A | DW44: 65.76066667 | DX44: 75.125 | DY44: B | DZ44: 75 | EA44: 89.025 | EB44: B | EC44: 78.21666667 | ED44: 78 | EE44: B | EF44: 78 | EG44: 78 | EH44: B | EI44: 80.2 | EJ44: 79 | EK44: B | EL44: 89 | EM44: 86 | EN44: A | EO44: 80.225 | EP44: 78.8 | EQ44: B | ER44: 85 | ES44: 89 | ET44: B | EU44: - | EV44: - | EW44: - | EX44: - | EY44: - | EZ44: - | FA44: - | FB44: - | FC44: - | FD44: - | FE44: - | FF44: - | FG44: - | FH44: - | FI44: - | FJ44: - | FK44: - | FL44: - | FM44: - | FN44: - | FO44: - | FP44: - | FQ44: - | FR44: - | FS44: - | FT44: - | FU44: - | FV44: - | FW44: - | FX44: - | FY44: 77.65 | FZ44: 83.75 | GA44: B | GB44: - | GC44: - | GD44: - | GE44: - | GF44: - | GG44: - | VR44: 85 | VS44: 85 | VT44: 80 | VU44: 80 | VV44: 76.55 | VW44: 78 | VX44: 92 | VY44: 81.67 | VZ44: 89.45 | WA44: 65.76 | WB44: 75 | WC44: 78.22 | WD44: 78 | WE44: 83.61 | WG44: 77.65 | WK44: 1456.719 | WL44: 24 | WM44: 80.92883333 | WN44: 18 | WO44: 1456.719 | WP44: 24 | WQ44: 80.92883333 | WR44: 18
A45: 38 | B45: RAP038 | WK45: 0 | WL45: 0 | WO45: 0 | WP45: 0
A46: 39 | B46: RAP039 | D46: X TGB 2 | WK46: 0 | WL46: 0 | WO46: 0 | WP46: 0
A47: 40 | B47: RAP041 | WK47: 0 | WL47: 0 | WO47: 0 | WP47: 0
A48: 41 | B48: RAP040 | D48: X TGB 3 | E48: ABDUL KHOLIK | I48: 15160081 | CV48: 79.76666667 | CW48: 79 | CX48: B | CY48: 75 | CZ48: 75 | DA48: C | DB48: 75.05 | DC48: 76 | DD48: B | DE48: 46.34 | DF48: 46.34 | DG48: B | DH48: 77.65 | DI48: 78 | DJ48: B | DK48: 70 | DL48: 70 | DM48: C | DN48: 75.59583333 | DO48: 79.71428571 | DP48: B | DQ48: 77.46666667 | DR48: 78.28571429 | DS48: B | DT48: 88.8 | DU48: 88.25 | DV48: A | DW48: 30.90466667 | DX48: 77.25 | DY48: B | DZ48: 77 | EA48: 80 | EB48: B | EC48: 78.76666667 | ED48: 78.85714286 | EE48: B | EF48: 79 | EG48: 79 | EH48: B | EI48: 79.58333333 | EJ48: 79.875 | EK48: B | EL48: 77.5 | EM48: 78.33333333 | EN48: B | EO48: 78 | EP48: 78 | EQ48: B | ER48: 76 | ES48: 76 | ET48: B | EU48: - | EV48: - | EW48: - | EX48: - | EY48: - | EZ48: - | FA48: - | FB48: - | FC48: - | FD48: - | FE48: - | FF48: - | FG48: - | FH48: - | FI48: - | FJ48: - | FK48: - | FL48: - | FM48: - | FN48: - | FO48: - | FP48: - | FQ48: - | FR48: - | FS48: - | FT48: - | FU48: - | FV48: - | FW48: - | FX48: - | FY48: 72 | FZ48: 70 | GA48: C | GB48: - | GC48: - | GD48: - | GE48: - | GF48: - | GG48: - | VR48: 79.77 | VS48: 75 | VT48: 75.05 | VU48: 46.34 | VV48: 77.65 | VW48: 70 | VX48: 75.6 | VY48: 77.47 | VZ48: 88.8 | WA48: 30.9 | WB48: 77 | WC48: 78.77 | WD48: 79 | WE48: 77.77 | WG48: 72 | WK48: 0 | WL48: 0 | WO48: 1314.423833 | WP48: 24 | WQ48: 73.0235463
A49: 42 | B49: RAP042 | D49: X TGB 3 | E49: ABDUL LATIF | I49: 15160082 | CV49: 76.38333333 | CW49: 75 | CX49: B | CY49: 75 | CZ49: 75 | DA49: B | DB49: 75.05 | DC49: 75.8 | DD49: B | DE49: 20 | DF49: 20 | DG49: B | DH49: 77.65 | DI49: 78 | DJ49: B | DK49: 70 | DL49: 70 | DM49: C | DN49: 67.88333333 | DO49: 81.57142857 | DP49: B | DQ49: 77.46666667 | DR49: 78.28571429 | DS49: B | DT49: 86.4 | DU49: 86.25 | DV49: A | DW49: 29.30866667 | DX49: 77 | DY49: B | DZ49: 77.1 | EA49: 80 | EB49: B | EC49: 78.18333333 | ED49: 78.14285714 | EE49: B | EF49: 79 | EG49: 79 | EH49: B | EI49: 78.7 | EJ49: 78.375 | EK49: B | EL49: 77.85 | EM49: 77.66666667 | EN49: B | EO49: 59.8 | EP49: 78 | EQ49: B | ER49: 76 | ES49: 76 | ET49: B | EU49: - | EV49: - | EW49: - | EX49: - | EY49: - | EZ49: - | FA49: - | FB49: - | FC49: - | FD49: - | FE49: - | FF49: - | FG49: - | FH49: - | FI49: - | FJ49: - | FK49: - | FL49: - | FM49: - | FN49: - | FO49: - | FP49: - | FQ49: - | FR49: - | FS49: - | FT49: - | FU49: - | FV49: - | FW49: - | FX49: - | FY49: 72 | FZ49: 70 | GA49: C | GB49: - | GC49: - | GD49: - | GE49: - | GF49: - | GG49: - | VR49: 76.38 | VS49: 75 | VT49: 75.05 | VU49: 20 | VV49: 77.65 | VW49: 70 | VX49: 67.88 | VY49: 77.47 | VZ49: 86.4 | WA49: 29.31 | WB49: 77.1 | WC49: 78.18 | WD49: 79 | WE49: 73.09 | WG49: 72 | WK49: 0 | WL49: 0 | WO49: 1253.775333 | WP49: 24 | WQ49: 69.65418519
A50: 43 | B50: RAP043 | D50: X TGB 3 | E50: ADNAN GUNAWAN | I50: 15160083 | CV50: 83.16666667 | CW50: 82 | CX50: B | CY50: 87 | CZ50: 75 | DA50: B | DB50: 81.1375 | DC50: 81.2 | DD50: B | DE50: 80.76 | DF50: 80.76 | DG50: B | DH50: 80.13333333 | DI50: 80 | DJ50: B | DK50: 87 | DL50: 86.85714286 | DM50: A | DN50: 85.72083333 | DO50: 80.28571429 | DP50: B | DQ50: 79.1 | DR50: 80.28571429 | DS50: B | DT50: 86.45 | DU50: 87.25 | DV50: A | DW50: 80.198 | DX50: 81.625 | DY50: A | DZ50: 82.7 | EA50: 80 | EB50: B | EC50: 80.75 | ED50: 81.28571429 | EE50: B | EF50: 88 | EG50: 88 | EH50: B | EI50: 79.58333333 | EJ50: 79.125 | EK50: B | EL50: 77.5 | EM50: 78.33333333 | EN50: B | EO50: 81.16666667 | EP50: 86.25 | EQ50: A | ER50: 90 | ES50: 90 | ET50: A | EU50: - | EV50: - | EW50: - | EX50: - | EY50: - | EZ50: - | FA50: - | FB50: - | FC50: - | FD50: - | FE50: - | FF50: - | FG50: - | FH50: - | FI50: - | FJ50: - | FK50: - | FL50: - | FM50: - | FN50: - | FO50: - | FP50: - | FQ50: - | FR50: - | FS50: - | FT50: - | FU50: - | FV50: - | FW50: - | FX50: - | FY50: 85 | FZ50: 85 | GA50: A | GB50: - | GC50: - | GD50: - | GE50: - | GF50: - | GG50: - | VR50: 83.17 | VS50: 87 | VT50: 81.14 | VU50: 80.76 | VV50: 80.13 | VW50: 87 | VX50: 85.72 | VY50: 79.1 | VZ50: 86.45 | WA50: 80.2 | WB50: 82.7 | WC50: 80.75 | WD50: 88 | WE50: 82.06 | WG50: 85 | WK50: 0 | WL50: 0 | WO50: 1495.366333 | WP50: 24 | WQ50: 83.07590741
A51: 44 | B51: RAP044 | D51: X TGB 3 | E51: ALFIAN SAHRUL KAHFI | I51: 15160084 | CV51: 86.83333333 | CW51: 86 | CX51: A | CY51: 87 | CZ51: 75 | DA51: B | DB51: 78.7 | DC51: 80 | DD51: B | DE51: 44.76 | DF51: 44.76 | DG51: B | DH51: 80 | DI51: 80 | DJ51: B | DK51: 82 | DL51: 80 | DM51: B | DN51: 78.09583333 | DO51: 79.14285714 | DP51: B | DQ51: 77.46666667 | DR51: 78.28571429 | DS51: B | DT51: 89.5 | DU51: 86.75 | DV51: A | DW51: 73.08266667 | DX51: 77 | DY51: B | DZ51: 77.1 | EA51: 80 | EB51: B | EC51: 79.46666667 | ED51: 79.71428571 | EE51: B | EF51: 81 | EG51: 81 | EH51: B | EI51: 78.55 | EJ51: 79.125 | EK51: B | EL51: 77.5 | EM51: 78.33333333 | EN51: B | EO51: 82.33333333 | EP51: 85 | EQ51: B | ER51: 76 | ES51: 76 | ET51: B | EU51: - | EV51: - | EW51: - | EX51: - | EY51: - | EZ51: - | FA51: - | FB51: - | FC51: - | FD51: - | FE51: - | FF51: - | FG51: - | FH51: - | FI51: - | FJ51: - | FK51: - | FL51: - | FM51: - | FN51: - | FO51: - | FP51: - | FQ51: - | FR51: - | FS51: - | FT51: - | FU51: - | FV51: - | FW51: - | FX51: - | FY51: 78 | FZ51: 79 | GA51: B | GB51: - | GC51: - | GD51: - | GE51: - | GF51: - | GG51: - | VR51: 86.83 | VS51: 87 | VT51: 78.7 | VU51: 44.76 | VV51: 80 | VW51: 82 | VX51: 78.1 | VY51: 77.47 | VZ51: 89.5 | WA51: 73.08 | WB51: 77.1 | WC51: 79.47 | WD51: 81 | WE51: 78.6 | WG51: 78 | WK51: 0 | WL51: 0 | WO51: 1407.3885 | WP51: 24 | WQ51: 78.18825
A52: 45 | B52: RAP045 | D52: X TGB 3 | E52: ADRI SULTAN HAIDIR | I52: 15160085 | CV52: 82.21666667 | CW52: 81 | CX52: A | CY52: 75 | CZ52: 75 | DA52: C | DB52: 75.185 | DC52: 76.4 | DD52: B | DE52: 20.92 | DF52: 20.92 | DG52: B | DH52: 80.13333333 | DI52: 80 | DJ52: B | DK52: 70 | DL52: 70 | DM52: C | DN52: 85.34583333 | DO52: 79.71428571 | DP52: B | DQ52: 77.46666667 | DR52: 78.28571429 | DS52: B | DT52: 87.8 | DU52: 86.25 | DV52: A | DW52: 75 | DX52: 77 | DY52: B | DZ52: 77.1 | EA52: 80 | EB52: B | EC52: 79.46666667 | ED52: 79.71428571 | EE52: B | EF52: 79 | EG52: 79 | EH52: B | EI52: 78.26666667 | EJ52: 78.375 | EK52: B | EL52: 70.08333333 | EM52: 77.66666667 | EN52: C | EO52: 78 | EP52: 78 | EQ52: C | ER52: 76 | ES52: 76 | ET52: B | EU52: - | EV52: - | EW52: - | EX52: - | EY52: - | EZ52: - | FA52: - | FB52: - | FC52: - | FD52: - | FE52: - | FF52: - | FG52: - | FH52: - | FI52: - | FJ52: - | FK52: - | FL52: - | FM52: - | FN52: - | FO52: - | FP52: - | FQ52: - | FR52: - | FS52: - | FT52: - | FU52: - | FV52: - | FW52: - | FX52: - | FY52: 73 | FZ52: 70 | GA52: C | GB52: - | GC52: - | GD52: - | GE52: - | GF52: - | GG52: - | VR52: 82.22 | VS52: 75 | VT52: 75.19 | VU52: 20.92 | VV52: 80.13 | VW52: 70 | VX52: 85.35 | VY52: 77.47 | VZ52: 87.8 | WA52: 75 | WB52: 77.1 | WC52: 79.47 | WD52: 79 | WE52: 75.59 | WG52: 73 | WK52: 0 | WL52: 0 | WO52: 1339.984167 | WP52: 24 | WQ52: 74.44356481
A53: 46 | B53: RAP046 | D53: X TGB 3 | E53: AFIFAH | I53: 15160086 | CV53: 83.98333333 | CW53: 83 | CX53: B | CY53: 80 | CZ53: 75 | DA53: B | DB53: 79 | DC53: 80.2 | DD53: B | DE53: 79.52 | DF53: 79.52 | DG53: B | DH53: 80 | DI53: 80 | DJ53: B | DK53: 80 | DL53: 80 | DM53: B | DN53: 90.66666667 | DO53: 79.14285714 | DP53: B | DQ53: 79.1 | DR53: 80.28571429 | DS53: B | DT53: 92.05 | DU53: 86.25 | DV53: A | DW53: 76.38333333 | DX53: 77 | DY53: B | DZ53: 79.9 | EA53: 80 | EB53: B | EC53: 79.58333333 | ED53: 79.85714286 | EE53: B | EF53: 81 | EG53: 81 | EH53: B | EI53: 78.98333333 | EJ53: 79.125 | EK53: B | EL53: 78.725 | EM53: 78.33333333 | EN53: B | EO53: 80.4 | EP53: 80 | EQ53: B | ER53: 90 | ES53: 90 | ET53: A | EU53: - | EV53: - | EW53: - | EX53: - | EY53: - | EZ53: - | FA53: - | FB53: - | FC53: - | FD53: - | FE53: - | FF53: - | FG53: - | FH53: - | FI53: - | FJ53: - | FK53: - | FL53: - | FM53: - | FN53: - | FO53: - | FP53: - | FQ53: - | FR53: - | FS53: - | FT53: - | FU53: - | FV53: - | FW53: - | FX53: - | FY53: 82 | FZ53: 80 | GA53: B | GB53: - | GC53: - | GD53: - | GE53: - | GF53: - | GG53: - | VR53: 83.98 | VS53: 80 | VT53: 79 | VU53: 79.52 | VV53: 80 | VW53: 80 | VX53: 90.67 | VY53: 79.1 | VZ53: 92.05 | WA53: 76.38 | WB53: 79.9 | WC53: 79.58 | WD53: 81 | WE53: 82.03 | WG53: 82 | WK53: 0 | WL53: 0 | WO53: 1471.295 | WP53: 24 | WQ53: 81.73861111
A54: 47 | B54: RAP047 | D54: X TGB 3 | E54: AHMAD RIYADI | I54: 15160087 | CV54: 78.9 | CW54: 78 | CX54: B | CY54: 75 | CZ54: 75 | DA54: B | DB54: 78.775 | DC54: 80.4 | DD54: B | DE54: 39.76 | DF54: 39.76 | DG54: B | DH54: 80 | DI54: 80 | DJ54: B | DK54: 77 | DL54: 77 | DM54: B | DN54: 69.19583333 | DO54: 76.14285714 | DP54: B | DQ54: 78.51666667 | DR54: 79.57142857 | DS54: B | DT54: 86.2 | DU54: 88.125 | DV54: A | DW54: 76.964 | DX54: 77.375 | DY54: B | DZ54: 81.3 | EA54: 80 | EB54: B | EC54: 80.28333333 | ED54: 80.71428571 | EE54: B | EF54: 83 | EG54: 83 | EH54: B | EI54: 79.58333333 | EJ54: 79.125 | EK54: A | EL54: 77.85 | EM54: 78.33333333 | EN54: B | EO54: 82.33333333 | EP54: 86.25 | EQ54: A | ER54: 85 | ES54: 85 | ET54: B | EU54: - | EV54: - | EW54: - | EX54: - | EY54: - | EZ54: - | FA54: - | FB54: - | FC54: - | FD54: - | FE54: - | FF54: - | FG54: - | FH54: - | FI54: - | FJ54: - | FK54: - | FL54: - | FM54: - | FN54: - | FO54: - | FP54: - | FQ54: - | FR54: - | FS54: - | FT54: - | FU54: - | FV54: - | FW54: - | FX54: - | FY54: 80 | FZ54: 80 | GA54: B | GB54: - | GC54: - | GD54: - | GE54: - | GF54: - | GG54: - | VR54: 78.9 | VS54: 75 | VT54: 78.78 | VU54: 39.76 | VV54: 80 | VW54: 77 | VX54: 69.2 | VY54: 78.52 | VZ54: 86.2 | WA54: 76.96 | WB54: 81.3 | WC54: 80.28 | WD54: 83 | WE54: 81.19 | WG54: 80 | WK54: 0 | WL54: 0 | WO54: 1389.6615 | WP54: 24 | WQ54: 77.20341667
A55: 48 | B55: RAP048 | D55: X TGB 3 | E55: BAYU DWI SAPUTRO | I55: 15160089 | CV55: 80.46666667 | CW55: 79 | CX55: B | CY55: 87 | CZ55: 75 | DA55: B | DB55: 80.95 | DC55: 81 | DD55: B | DE55: 79.7 | DF55: 79.7 | DG55: B | DH55: 80 | DI55: 80 | DJ55: B | DK55: 80 | DL55: 81 | DM55: B | DN55: 87.08333333 | DO55: 78.57142857 | DP55: B | DQ55: 77.46666667 | DR55: 78.28571429 | DS55: B | DT55: 88.05 | DU55: 86 | DV55: A | DW55: 75.01533333 | DX55: 77 | DY55: B | DZ55: 77.1 | EA55: 80 | EB55: B | EC55: 79.81666667 | ED55: 80.14285714 | EE55: B | EF55: 79 | EG55: 79 | EH55: B | EI55: 79.43333333 | EJ55: 79 | EK55: B | EL55: 77.75 | EM55: 78.33333333 | EN55: B | EO55: 81.16666667 | EP55: 80 | EQ55: B | ER55: 76 | ES55: 76 | ET55: A | EU55: - | EV55: - | EW55: - | EX55: - | EY55: - | EZ55: - | FA55: - | FB55: - | FC55: - | FD55: - | FE55: - | FF55: - | FG55: - | FH55: - | FI55: - | FJ55: - | FK55: - | FL55: - | FM55: - | FN55: - | FO55: - | FP55: - | FQ55: - | FR55: - | FS55: - | FT55: - | FU55: - | FV55: - | FW55: - | FX55: - | FY55: 80 | FZ55: 81 | GA55: B | GB55: - | GC55: - | GD55: - | GE55: - | GF55: - | GG55: - | VR55: 80.47 | VS55: 87 | VT55: 80.95 | VU55: 79.7 | VV55: 80 | VW55: 80 | VX55: 87.08 | VY55: 77.47 | VZ55: 88.05 | WA55: 75.02 | WB55: 77.1 | WC55: 79.82 | WD55: 79 | WE55: 78.59 | WG55: 80 | WK55: 0 | WL55: 0 | WO55: 1445.998667 | WP55: 24 | WQ55: 80.33325926
A56: 49 | B56: RAP049 | D56: X TGB 3 | E56: CHANDRA BARA FARGAS | I56: 15160090 | CV56: 81.63333333 | CW56: 81 | CX56: B | CY56: 87 | CZ56: 75 | DA56: B | DB56: 78.6625 | DC56: 80.4 | DD56: B | DE56: 79.7 | DF56: 79.7 | DG56: B | DH56: 80 | DI56: 80 | DJ56: B | DK56: 79 | DL56: 80 | DM56: B | DN56: 72.3 | DO56: 78.28571429 | DP56: B | DQ56: 78.51666667 | DR56: 79.57142857 | DS56: B | DT56: 90.65 | DU56: 87 | DV56: A | DW56: 75.48333333 | DX56: 77 | DY56: B | DZ56: 77.1 | EA56: 80 | EB56: B | EC56: 80.16666667 | ED56: 80.57142857 | EE56: B | EF56: 83 | EG56: 83 | EH56: B | EI56: 79.43333333 | EJ56: 78.375 | EK56: B | EL56: 77.73333333 | EM56: 78.33333333 | EN56: B | EO56: 81.16666667 | EP56: 80 | EQ56: B | ER56: 85 | ES56: 85 | ET56: B | EU56: - | EV56: - | EW56: - | EX56: - | EY56: - | EZ56: - | FA56: - | FB56: - | FC56: - | FD56: - | FE56: - | FF56: - | FG56: - | FH56: - | FI56: - | FJ56: - | FK56: - | FL56: - | FM56: - | FN56: - | FO56: - | FP56: - | FQ56: - | FR56: - | FS56: - | FT56: - | FU56: - | FV56: - | FW56: - | FX56: - | FY56: 79 | FZ56: 80 | GA56: B | GB56: - | GC56: - | GD56: - | GE56: - | GF56: - | GG56: - | VR56: 81.63 | VS56: 87 | VT56: 78.66 | VU56: 79.7 | VV56: 80 | VW56: 79 | VX56: 72.3 | VY56: 78.52 | VZ56: 90.65 | WA56: 75.48 | WB56: 77.1 | WC56: 80.17 | WD56: 83 | WE56: 80.83 | WG56: 79 | WK56: 0 | WL56: 0 | WO56: 1445.545833 | WP56: 24 | WQ56: 80.30810185
A57: 50 | B57: RAP077 | D57: X TGB 3 | E57: DANIEL SAPRIANTO. M | I57: 15160091 | CV57: 0 | CW57: 0 | CX57: 0 | CY57: 75 | CZ57: 75 | DA57: C | DB57: 74.9 | DC57: 76.4 | DD57: B | DE57: 33.14 | DF57: 33.14 | DG57: B | DH57: 80 | DI57: 80 | DJ57: B | DK57: 70 | DL57: 70 | DM57: B | DN57: 70.475 | DO57: 81.85714286 | DP57: B | DQ57: 77.46666667 | DR57: 78.28571429 | DS57: B | DT57: 93.55 | DU57: 88.625 | DV57: A | DW57: 65.00866667 | DX57: 77 | DY57: B | DZ57: 76.4 | EA57: 78 | EB57: B | EC57: 78.18333333 | ED57: 78.14285714 | EE57: B | EF57: 79 | EG57: 79 | EH57: B | EI57: 79.28333333 | EJ57: 79.125 | EK57: B | EL57: 61.25 | EM57: 78.33333333 | EN57: C | EO57: 78 | EP57: 78 | EQ57: C | ER57: 76 | ES57: 76 | ET57: B | EU57: - | EV57: - | EW57: - | EX57: - | EY57: - | EZ57: - | FA57: - | FB57: - | FC57: - | FD57: - | FE57: - | FF57: - | FG57: - | FH57: - | FI57: - | FJ57: - | FK57: - | FL57: - | FM57: - | FN57: - | FO57: - | FP57: - | FQ57: - | FR57: - | FS57: - | FT57: - | FU57: - | FV57: - | FW57: - | FX57: - | FY57: 75 | FZ57: 70 | GA57: B | GB57: - | GC57: - | GD57: - | GE57: - | GF57: - | GG57: - | VR57: 0 | VS57: 75 | VT57: 74.9 | VU57: 33.14 | VV57: 80 | VW57: 70 | VX57: 70.48 | VY57: 77.47 | VZ57: 93.55 | WA57: 65.01 | WB57: 76.4 | WC57: 78.18 | WD57: 79 | WE57: 73.63 | WG57: 75 | WK57: 0 | WL57: 0 | WO57: 1242.657 | WP57: 25 | WQ57: 69.0365
A58: 51 | B58: RAP050 | D58: X TGB 3 | E58: HAFIZ FADILAH | I58: 15160093 | CV58: 74 | CW58: 74 | CX58: B | CY58: 75 | CZ58: 75 | DA58: B | DB58: 79.4 | DC58: 79.6 | DD58: B | DE58: 42.34 | DF58: 42.34 | DG58: B | DH58: 80 | DI58: 80 | DJ58: B | DK58: 77 | DL58: 77 | DM58: B | DN58: 68.14583333 | DO58: 80.57142857 | DP58: B | DQ58: 77.46666667 | DR58: 78.28571429 | DS58: B | DT58: 86.7 | DU58: 86.125 | DV58: A | DW58: 31.58866667 | DX58: 77 | DY58: B | DZ58: 77.1 | EA58: 80 | EB58: B | EC58: 78.18333333 | ED58: 78.14285714 | EE58: B | EF58: 79 | EG58: 79 | EH58: B | EI58: 78.11666667 | EJ58: 78.375 | EK58: B | EL58: 76 | EM58: 78.33333333 | EN58: B | EO58: 78 | EP58: 78 | EQ58: B | ER58: 76 | ES58: 76 | ET58: B | EU58: - | EV58: - | EW58: - | EX58: - | EY58: - | EZ58: - | FA58: - | FB58: - | FC58: - | FD58: - | FE58: - | FF58: - | FG58: - | FH58: - | FI58: - | FJ58: - | FK58: - | FL58: - | FM58: - | FN58: - | FO58: - | FP58: - | FQ58: - | FR58: - | FS58: - | FT58: - | FU58: - | FV58: - | FW58: - | FX58: - | FY58: 76 | FZ58: 77 | GA58: B | GB58: - | GC58: - | GD58: - | GE58: - | GF58: - | GG58: - | VR58: 74 | VS58: 75 | VT58: 79.4 | VU58: 42.34 | VV58: 80 | VW58: 77 | VX58: 68.15 | VY58: 77.47 | VZ58: 86.7 | WA58: 31.59 | WB58: 77.1 | WC58: 78.18 | WD58: 79 | WE58: 77.03 | WG58: 76 | WK58: 0 | WL58: 0 | WO58: 1310.041167 | WP58: 24 | WQ58: 72.78006481
A59: 52 | B59: RAP051 | D59: X TGB 3 | E59: HASANUDIN | I59: 15160094 | CV59: 85.43333333 | CW59: 84 | CX59: B | CY59: 80 | CZ59: 75 | DA59: B | DB59: 81.1 | DC59: 81 | DD59: B | DE59: 65.16 | DF59: 65.16 | DG59: B | DH59: 82.66666667 | DI59: 82.625 | DJ59: A | DK59: 82 | DL59: 87.14285714 | DM59: A | DN59: 78.07916667 | DO59: 78.57142857 | DP59: B | DQ59: 79 | DR59: 80 | DS59: B | DT59: 89 | DU59: 88 | DV59: A | DW59: 76.97466667 | DX59: 77 | DY59: B | DZ59: 82.7 | EA59: 80 | EB59: B | EC59: 79.7 | ED59: 80 | EE59: B | EF59: 83 | EG59: 83 | EH59: B | EI59: 79.73333333 | EJ59: 79.125 | EK59: B | EL59: 77.625 | EM59: 78.33333333 | EN59: B | EO59: 84.66666667 | EP59: 86.25 | EQ59: A | ER59: 85 | ES59: 85 | ET59: B | EU59: - | EV59: - | EW59: - | EX59: - | EY59: - | EZ59: - | FA59: - | FB59: - | FC59: - | FD59: - | FE59: - | FF59: - | FG59: - | FH59: - | FI59: - | FJ59: - | FK59: - | FL59: - | FM59: - | FN59: - | FO59: - | FP59: - | FQ59: - | FR59: - | FS59: - | FT59: - | FU59: - | FV59: - | FW59: - | FX59: - | FY59: 82 | FZ59: 85 | GA59: A | GB59: - | GC59: - | GD59: - | GE59: - | GF59: - | GG59: - | VR59: 85.43 | VS59: 80 | VT59: 81.1 | VU59: 65.16 | VV59: 82.67 | VW59: 82 | VX59: 78.08 | VY59: 79 | VZ59: 89 | WA59: 76.97 | WB59: 82.7 | WC59: 79.7 | WD59: 83 | WE59: 81.76 | WG59: 82 | WK59: 0 | WL59: 0 | WO59: 1453.838833 | WP59: 24 | WQ59: 80.76882407
A60: 53 | B60: RAP079 | D60: X TGB 3 | E60: IRFAN AL GHANI MAHARDIKA | I60: 15160096 | CV60: 86.9 | CW60: 86 | CX60: B | CY60: 87 | CZ60: 75 | DA60: B | DB60: 81.3 | DC60: 80.8 | DD60: B | DE60: 79.52 | DF60: 79.52 | DG60: B | DH60: 80 | DI60: 80 | DJ60: B | DK60: 85 | DL60: 85 | DM60: A | DN60: 88.53333333 | DO60: 79.14285714 | DP60: B | DQ60: 79.1 | DR60: 80.28571429 | DS60: B | DT60: 92.55 | DU60: 88.75 | DV60: A | DW60: 80.42866667 | DX60: 77 | DY60: A | DZ60: 82.7 | EA60: 80 | EB60: B | EC60: 85.65 | ED60: 84.14285714 | EE60: B | EF60: 88 | EG60: 88 | EH60: B | EI60: 78.98333333 | EJ60: 79.125 | EK60: B | EL60: 77.625 | EM60: 78.33333333 | EN60: B | EO60: 82.33333333 | EP60: 86.25 | EQ60: B | ER60: 90 | ES60: 90 | ET60: A | EU60: - | EV60: - | EW60: - | EX60: - | EY60: - | EZ60: - | FA60: - | FB60: - | FC60: - | FD60: - | FE60: - | FF60: - | FG60: - | FH60: - | FI60: - | FJ60: - | FK60: - | FL60: - | FM60: - | FN60: - | FO60: - | FP60: - | FQ60: - | FR60: - | FS60: - | FT60: - | FU60: - | FV60: - | FW60: - | FX60: - | FY60: 85 | FZ60: 85 | GA60: A | GB60: - | GC60: - | GD60: - | GE60: - | GF60: - | GG60: - | VR60: 86.9 | VS60: 87 | VT60: 81.3 | VU60: 79.52 | VV60: 80 | VW60: 85 | VX60: 88.53 | VY60: 79.1 | VZ60: 92.55 | WA60: 80.43 | WB60: 82.7 | WC60: 85.65 | WD60: 88 | WE60: 82.24 | WG60: 85 | WK60: 0 | WL60: 0 | WO60: 1510.623667 | WP60: 24 | WQ60: 83.92353704
A61: 54 | B61: RAP052 | D61: X TGB 3 | E61: IRFAN ADI REKSA | I61: 15160097 | CV61: 83.91666667 | CW61: 83 | CX61: B | CY61: 87 | CZ61: 75 | DA61: B | DB61: 78.7 | DC61: 79.8 | DD61: B | DE61: 79.52 | DF61: 79.52 | DG61: B | DH61: 80 | DI61: 80 | DJ61: B | DK61: 80 | DL61: 81 | DM61: A | DN61: 84.55833333 | DO61: 80 | DP61: B | DQ61: 78.51666667 | DR61: 79.57142857 | DS61: B | DT61: 86.65 | DU61: 86.125 | DV61: A | DW61: 75.47133333 | DX61: 77 | DY61: B | DZ61: 77.91666667 | EA61: 80 | EB61: B | EC61: 78.18333333 | ED61: 78.14285714 | EE61: B | EF61: 83 | EG61: 83 | EH61: B | EI61: 79.58333333 | EJ61: 79.125 | EK61: B | EL61: 77.625 | EM61: 78.33333333 | EN61: B | EO61: 78 | EP61: 78 | EQ61: B | ER61: 85 | ES61: 85 | ET61: B | EU61: - | EV61: - | EW61: - | EX61: - | EY61: - | EZ61: - | FA61: - | FB61: - | FC61: - | FD61: - | FE61: - | FF61: - | FG61: - | FH61: - | FI61: - | FJ61: - | FK61: - | FL61: - | FM61: - | FN61: - | FO61: - | FP61: - | FQ61: - | FR61: - | FS61: - | FT61: - | FU61: - | FV61: - | FW61: - | FX61: - | FY61: 80 | FZ61: 81 | GA61: A | GB61: - | GC61: - | GD61: - | GE61: - | GF61: - | GG61: - | VR61: 83.92 | VS61: 87 | VT61: 78.7 | VU61: 79.52 | VV61: 80 | VW61: 80 | VX61: 84.56 | VY61: 78.52 | VZ61: 86.65 | WA61: 75.47 | WB61: 77.92 | WC61: 78.18 | WD61: 83 | WE61: 80.05 | WG61: 80 | WK61: 0 | WL61: 0 | WO61: 1453.641333 | WP61: 24 | WQ61: 80.75785185
A62: 55 | B62: RAP053 | D62: X TGB 3 | E62: JAENUDIN | I62: 15160098 | CV62: 85.16666667 | CW62: 84 | CX62: B | CY62: 80 | CZ62: 75 | DA62: B | DB62: 75.1625 | DC62: 76.2 | DD62: B | DE62: 43.48 | DF62: 43.48 | DG62: B | DH62: 82.66666667 | DI62: 82.625 | DJ62: A | DK62: 75 | DL62: 75 | DM62: B | DN62: 67.18333333 | DO62: 83.85714286 | DP62: B | DQ62: 77.46666667 | DR62: 78.28571429 | DS62: B | DT62: 89.5 | DU62: 88 | DV62: A | DW62: 75 | DX62: 77 | DY62: B | DZ62: 77.1 | EA62: 80 | EB62: B | EC62: 79.46666667 | ED62: 79.71428571 | EE62: B | EF62: 83 | EG62: 83 | EH62: B | EI62: 79.43333333 | EJ62: 79.125 | EK62: B | EL62: 77.7 | EM62: 78.33333333 | EN62: B | EO62: 81.16666667 | EP62: 80 | EQ62: A | ER62: 76 | ES62: 76 | ET62: B | EU62: - | EV62: - | EW62: - | EX62: - | EY62: - | EZ62: - | FA62: - | FB62: - | FC62: - | FD62: - | FE62: - | FF62: - | FG62: - | FH62: - | FI62: - | FJ62: - | FK62: - | FL62: - | FM62: - | FN62: - | FO62: - | FP62: - | FQ62: - | FR62: - | FS62: - | FT62: - | FU62: - | FV62: - | FW62: - | FX62: - | FY62: 78 | FZ62: 77 | GA62: B | GB62: - | GC62: - | GD62: - | GE62: - | GF62: - | GG62: - | VR62: 85.17 | VS62: 80 | VT62: 75.16 | VU62: 43.48 | VV62: 82.67 | VW62: 75 | VX62: 67.18 | VY62: 77.47 | VZ62: 89.5 | WA62: 75 | WB62: 77.1 | WC62: 79.47 | WD62: 83 | WE62: 78.58 | WG62: 78 | WK62: 0 | WL62: 0 | WO62: 1382.4925 | WP62: 24 | WQ62: 76.80513889
... 77 more rows

Sheet Macro1 (hidden)
